*,Body Name,P Card Transaction,Transaction Date,Period,Transaction Reference,VAT amount,Exclusive amount,Inclusive amount,Supplier Name,Service Area,Subjective Account,Expense Type,Cost Centre Name
*,,,,,,,,,,,,,
LIST,Cambridge City Council,GPC,01/04/23,2,187, -   ,51.75,51.75,Stationary,City Services,62002,Stationery,Cambridge Crematorium
LIST,Cambridge City Council,GPC,01/04/23,2,171, -   ,6.56,6.56,refreshments,Communities,64200,Subsistence,The Meadows Community Centre
LIST,Cambridge City Council,GPC,01/04/23,2,161, -   ,8.99,8.99,Prime Subscription,Communities,60410,Licences,Clay Farm Community Centre
LIST,Cambridge City Council,GPC,01/04/23,2,160, -   ,199,199,Vacuum Cleaner,Communities,51506,Parking - Residents Permits (B),City Homes Estate Management
LIST,Cambridge City Council,GPC,01/04/23,2,178, -   ,98,98,Bus passes,Communities,60914,Public Transport For Staff And Members,Syrian Resettlement
LIST,Cambridge City Council,GPC,02/04/23,2,152, -   ,125,125,Facebook advertising - Cambridge Matter,Corporate,62005,"Advertising, Publicity And Marketing",Corporate Marketing
LIST,Cambridge City Council,GPC,02/04/23,2,163, -   ,104.63,104.63,Reception 28/4/23 or Reach Fair 1/5/23,Chief Executive,62900,Events,Civic Affairs and Twinning
LIST,Cambridge City Council,GPC,02/04/23,2,163, -   ,29.98,29.98,Reception 28/4/23 or Reach Fair 1/5/23,Chief Executive,62900,Events,Civic Affairs and Twinning
LIST,Cambridge City Council,GPC,02/04/23,2,163, -   ,26.99,26.99,Reception 28/4/23 or Reach Fair 1/5/23,Chief Executive,62900,Events,Civic Affairs and Twinning
LIST,Cambridge City Council,GPC,03/04/23,2,171, -   ,40.55,40.55,materials,Communities,61703,"Purchase - Equipment, Furniture And Materials",The Meadows Community Centre
LIST,Cambridge City Council,GPC,03/04/23,2,161, -   ,12.35,12.35,Popcorn for Cinema Event,Communities,62900,Events,Clay Farm Community Centre
LIST,Cambridge City Council,GPC,03/04/23,2,159, -   ,40,40,MvF Weds,Communities,60402,Premises Hire - Facilities,Active Lifestyles - Communities (ex Sports Development)
LIST,Cambridge City Council,GPC,03/04/23,2,173, -   ,0.52,0.52,Amazon,Communities,64073,ICT Maintenance and Support,Culture and Community
LIST,Cambridge City Council,GPC,03/04/23,2,157, -   ,9.64,9.64,"Parcel sent to JB, approved by TT",Communities,62004,General Office Expenses,Corn Exchange and Guildhalls
LIST,Cambridge City Council,GPC,03/04/23,2,166, -   ,26.99,26.99,CL new phone,Communities,64077,Telephone And Mobile Phone Costs,DLUHC Homelessness Grants (RSI)
LIST,Cambridge City Council,GPC,03/04/23,2,160, -   ,39.99,39.99,Carpet Cleaner,Communities,51506,Parking - Residents Permits (B),City Homes Estate Management
LIST,Cambridge City Council,GPC,03/04/23,2,149, -   ,75,75,82 Maitland Ave - gas top up,Communities,60305,Gas,Temporary Accommodation
LIST,Cambridge City Council,GPC,03/04/23,2,149, -   ,75,75,24a Ekin Road - gas top up,Communities,60305,Gas,Temporary Accommodation
LIST,Cambridge City Council,GPC,03/04/23,2,149, -   ,75,75,2 Tuscan Court - gas top up,Communities,60305,Gas,Temporary Accommodation
LIST,Cambridge City Council,GPC,03/04/23,2,149, -   ,99,99,16 Ekin Road - gas top up,Communities,60305,Gas,Temporary Accommodation
LIST,Cambridge City Council,GPC,03/04/23,2,149, -   ,75,75,2 Tuscan Court - gas top up,Communities,60305,Gas,Temporary Accommodation
LIST,Cambridge City Council,GPC,03/04/23,2,149, -   ,99,99,85 Ekin Road - gas top up,Communities,60305,Gas,Temporary Accommodation
LIST,Cambridge City Council,GPC,03/04/23,2,149, -   ,75,75,33 hawthorn Way - gas,Communities,60305,Gas,Temporary Accommodation
LIST,Cambridge City Council,GPC,03/04/23,2,149, -   ,49,49,16 Cockerell Road - electric top up,Communities,60303,Electricity,Temporary Accommodation
LIST,Cambridge City Council,GPC,03/04/23,2,149, -   ,50,50,78 Hanover Court - electric top up,Communities,60303,Electricity,Temporary Accommodation
LIST,Cambridge City Council,GPC,03/04/23,2,149, -   ,99,99,27 Princess Court - electric top up,Communities,60303,Electricity,Temporary Accommodation
LIST,Cambridge City Council,GPC,03/04/23,2,149, -   ,50,50,23 Hanover Court - electric top up,Communities,60303,Electricity,Temporary Accommodation
LIST,Cambridge City Council,GPC,03/04/23,2,149, -   ,99,99,78 Hanover Court - electric top up,Communities,60303,Electricity,Temporary Accommodation
LIST,Cambridge City Council,GPC,03/04/23,2,149, -   ,50,50,23 Hanover Court - electric top up,Communities,60303,Electricity,Temporary Accommodation
LIST,Cambridge City Council,GPC,03/04/23,2,149, -   ,50,50,23 Hanover Court - electric top up,Communities,60303,Electricity,Temporary Accommodation
LIST,Cambridge City Council,GPC,03/04/23,2,149, -   ,49,49,16 Cockerell Road - electric top up,Communities,60303,Electricity,Temporary Accommodation
LIST,Cambridge City Council,GPC,03/04/23,2,149, -   ,50,50,51 Hanover Court - electric top up,Communities,60303,Electricity,Temporary Accommodation
LIST,Cambridge City Council,GPC,03/04/23,2,149, -   ,99,99,78 Hanover Court - electric,Communities,60303,Electricity,Temporary Accommodation
LIST,Cambridge City Council,GPC,03/04/23,2,149, -   ,75,75,24a Ekin Road - electric top up,Communities,60303,Electricity,Temporary Accommodation
LIST,Cambridge City Council,GPC,03/04/23,2,149, -   ,50,50,23 Hanover Court - electric top up,Communities,60303,Electricity,Temporary Accommodation
LIST,Cambridge City Council,GPC,04/04/23,2,171, -   ,204.94,204.94,equipment,Communities,61703,"Purchase - Equipment, Furniture And Materials",The Meadows Community Centre
LIST,Cambridge City Council,GPC,04/04/23,2,171, -   ,247.2,247.2,desk,Communities,63900,Miscellaneous Expenses,The Meadows Community Centre
LIST,Cambridge City Council,GPC,04/04/23,2,159,79.01,395.04,474.05,Astroturf Grass for Bowls Channels,Communities,61703,"Purchase - Equipment, Furniture And Materials",Sport & Recreation Administration
LIST,Cambridge City Council,GPC,04/04/23,2,164, -   ,298.2,298.2,Event/Conference Accommodation,Communities,64800,Membership And Subscriptions,City Events
LIST,Cambridge City Council,GPC,04/04/23,2,163, -   ,35,35,Reception 28/4/23 or Reach Fair 1/5/23,Chief Executive,62900,Events,Civic Affairs and Twinning
LIST,Cambridge City Council,GPC,05/04/23,2,187, -   ,14.58,14.58,Stationary,City Services,62002,Stationery,Cambridge Crematorium
LIST,Cambridge City Council,GPC,05/04/23,2,187, -   ,89.35,89.35,Stamps,City Services,64100,Postage And Courier Services,Bereavement Services Central Costs
LIST,Cambridge City Council,GPC,05/04/23,2,171, -   ,1.75,1.75,refreshments,Communities,64200,Subsistence,The Meadows Community Centre
LIST,Cambridge City Council,GPC,05/04/23,2,166, -   ,16.25,16.25,PG phone credit and supplies,Communities,63900,Miscellaneous Expenses,DLUHC Homelessness Grants (RSI)
LIST,Cambridge City Council,GPC,05/04/23,2,167,24.15,120.76,144.91,Purchase of activity equipment for shel,Communities,61703,"Purchase - Equipment, Furniture And Materials",Independent Living Services
LIST,Cambridge City Council,GPC,05/04/23,2,167, -   ,27.49,27.49,Purchase of activity equipment for shel,Communities,61703,"Purchase - Equipment, Furniture And Materials",Independent Living Services
LIST,Cambridge City Council,GPC,05/04/23,2,167,29.59,147.96,177.55,Purchase of activity equipment for shel,Communities,61703,"Purchase - Equipment, Furniture And Materials",Independent Living Services
LIST,Cambridge City Council,GPC,05/04/23,2,149, -   ,321.3,321.3,Curtain track for TA stock,Corporate,61703,"Purchase - Equipment, Furniture And Materials",Housing Revenue Account - Net Cost of Service
LIST,Cambridge City Council,GPC,06/04/23,2,171, -   ,18.18,18.18,Refreshments,Communities,64200,Subsistence,The Meadows Community Centre
LIST,Cambridge City Council,GPC,06/04/23,2,163, -   ,9.85,9.85,Reception 28/4/23 or Reach Fair 1/5/23,Chief Executive,62900,Events,Civic Affairs and Twinning
LIST,Cambridge City Council,GPC,06/04/23,2,160, -   ,77.4,77.4,Swing Gate Lock,City Services,61703,"Purchase - Equipment, Furniture And Materials",Building Maintenance Response - Direct
LIST,Cambridge City Council,GPC,06/04/23,2,149,12.5,62.5,75,29a Ekin Road - gas top up,Communities,60305,Gas,Temporary Accommodation
LIST,Cambridge City Council,GPC,06/04/23,2,149, -   ,75,75,33 Hawthorn Way - gas top up,Communities,60305,Gas,Temporary Accommodation
LIST,Cambridge City Council,GPC,06/04/23,2,149, -   ,50,50,29a Ekin Road - gas top up,Communities,60305,Gas,Temporary Accommodation
LIST,Cambridge City Council,GPC,06/04/23,2,149, -   ,99,99,130 Kingsway - electric top up,Communities,60303,Electricity,Temporary Accommodation
LIST,Cambridge City Council,GPC,06/04/23,2,149, -   ,80,80,4 Princess Court - electric top up,Communities,60303,Electricity,Temporary Accommodation
LIST,Cambridge City Council,GPC,06/04/23,2,149, -   ,99,99,130 Kingsway - electric top up,Communities,60303,Electricity,Temporary Accommodation
LIST,Cambridge City Council,GPC,06/04/23,2,149, -   ,10,10,130 Kingsway - electric top up,Communities,60303,Electricity,Temporary Accommodation
LIST,Cambridge City Council,GPC,06/04/23,2,149, -   ,10,10,130 Kingsway - electric top up,Communities,60303,Electricity,Temporary Accommodation
LIST,Cambridge City Council,GPC,06/04/23,2,149, -   ,50,50,130 Kingsway - electric top up,Communities,60303,Electricity,Temporary Accommodation
LIST,Cambridge City Council,GPC,07/04/23,2,175, -   ,30.3,30.3,Facebook,Communities,62005,"Advertising, Publicity And Marketing",Folk Festival
LIST,Cambridge City Council,GPC,07/04/23,2,175, -   ,41.7,41.7,Facebook,Communities,62005,"Advertising, Publicity And Marketing",Folk Festival
LIST,Cambridge City Council,GPC,07/04/23,2,178, -   ,98,98,Bus passes,Communities,60914,Public Transport For Staff And Members,Syrian Resettlement
LIST,Cambridge City Council,GPC,07/04/23,2,149, -   ,10,10,Courier charge for replacement credit c,Communities,64100,Postage And Courier Services,Temporary Accommodation
LIST,Cambridge City Council,GPC,07/04/23,2,175, -   ,80,80,Facebook,Communities,62005,"Advertising, Publicity And Marketing",Corn Exchange and Guildhalls
LIST,Cambridge City Council,GPC,07/04/23,2,175, -   ,48,48,Facebook,Communities,62005,"Advertising, Publicity And Marketing",Corn Exchange and Guildhalls
LIST,Cambridge City Council,GPC,08/04/23,4,174, -   ,57.98,57.98,Zoom license and webinar license for th,Communities,64077,Telephone And Mobile Phone Costs,Neighbourhood Community Development
LIST,Cambridge City Council,GPC,08/04/23,2,159, -   ,82.28,82.28,Online Coaching Platform,Communities,64800,Membership And Subscriptions,Active Lifestyles - Communities (ex Sports Development)
LIST,Cambridge City Council,GPC,09/04/23,2,178, -   ,98,98,Bus passes,Communities,60914,Public Transport For Staff And Members,Syrian Resettlement
LIST,Cambridge City Council,GPC,09/04/23,2,178, -   ,98,98,Bus passes,Communities,60914,Public Transport For Staff And Members,Syrian Resettlement
LIST,Cambridge City Council,GPC,10/04/23,2,159, -   ,40,40,MvF Weds,Communities,60402,Premises Hire - Facilities,Active Lifestyles - Communities (ex Sports Development)
LIST,Cambridge City Council,GPC,10/04/23,2,167,19.99,99.97,119.96,Purchase of activity equipment for shel,Communities,61703,"Purchase - Equipment, Furniture And Materials",Independent Living Services
LIST,Cambridge City Council,GPC,10/04/23,2,167,9.99,49.96,59.95,Purchase of activity equipment for shel,Communities,61703,"Purchase - Equipment, Furniture And Materials",Ditton Court
LIST,Cambridge City Council,GPC,11/04/23,2,151,5.38,26.87,32.25,Cleaning Materials,City Services,61300,Cleaning Materials,Cambridge Crematorium
LIST,Cambridge City Council,GPC,11/04/23,2,152, -   ,28.52,28.52,Facebook advertising - Voter ID campaign,Corporate,62005,"Advertising, Publicity And Marketing",Corporate Marketing
LIST,Cambridge City Council,GPC,11/04/23,2,166, -   ,26.99,26.99,DC new phone.,Communities,64077,Telephone And Mobile Phone Costs,DLUHC Homelessness Grants (RSI)
LIST,Cambridge City Council,GPC,11/04/23,2,178, -   ,63,63,Bus passes,Communities,60914,Public Transport For Staff And Members,Syrian Resettlement
LIST,Cambridge City Council,GPC,11/04/23,2,148,0.36,1.82,2.18,Save energy stickers,City Services,60300,Signs Erecting & Removal,Parking Administration
LIST,Cambridge City Council,GPC,11/04/23,2,148,31.06,155.32,186.38,Headphones,City Services,64070,ICT Hardware,Parking Administration
LIST,Cambridge City Council,GPC,11/04/23,2,162, -   ,99.99,99.99,microwave cowley depot,Place,60201,Cyclical/Planned Maintenance - Building,Cowley Road Compound
LIST,Cambridge City Council,GPC,11/04/23,2,177, -   ,18,18,DBS - Homes for Ukraines,Corporate,62500,Dbs Checks - Non-Staff,Strategic Director #2
LIST,Cambridge City Council,GPC,11/04/23,2,177, -   ,18,18,DBS - Homes for Ukraines,Corporate,62500,Dbs Checks - Non-Staff,Strategic Director #2
LIST,Cambridge City Council,GPC,12/04/23,2,171, -   ,88.61,88.61,Stationery,Communities,62002,Stationery,The Meadows Community Centre
LIST,Cambridge City Council,GPC,12/04/23,2,170, -   ,10.37,10.37,Equipment for maintenance,Communities,61702,"Maintenance - Equipment, Furniture And Materials",Brown's Field Youth and Community Centre
LIST,Cambridge City Council,GPC,12/04/23,10,399, -   ,30.96,30.96,DOMINO S PIZZA DOMINOS.CO.UK,Communities,63900,Miscellaneous Expenses,City Events
LIST,Cambridge City Council,GPC,12/04/23,2,169,20.26,101.32,121.58,Replacement unit kitchen Trolley,Corporate,61703,"Purchase - Equipment, Furniture And Materials",Housing Revenue Account - Net Cost of Service
LIST,Cambridge City Council,GPC,12/04/23,2,149, -   ,99,99,8 Ekin Road - gas top up,Communities,60305,Gas,Temporary Accommodation
LIST,Cambridge City Council,GPC,12/04/23,2,160, -   ,71.94,71.94,Meter Box,City Services,61703,"Purchase - Equipment, Furniture And Materials",Building Maintenance Response - Direct
LIST,Cambridge City Council,GPC,12/04/23,2,160, -   ,172.94,172.94,Shower Valve,City Services,61703,"Purchase - Equipment, Furniture And Materials",Building Maintenance Response - Direct
LIST,Cambridge City Council,GPC,12/04/23,2,160, -   ,21.58,21.58,Tell Tale,City Services,61703,"Purchase - Equipment, Furniture And Materials",Building Maintenance Response - Direct
LIST,Cambridge City Council,GPC,12/04/23,2,149, -   ,99,99,8 Ekin Road - electric top up,Communities,60303,Electricity,Temporary Accommodation
LIST,Cambridge City Council,GPC,13/04/23,3,220, -   ,39.99,39.99,Mitsubishi Fuso Canter 7C15 Drivers Fro,City Services,61703,"Purchase - Equipment, Furniture And Materials",Garage- External Work
LIST,Cambridge City Council,GPC,13/04/23,2,171, -   ,159,159,Tv licence,Communities,60413,TV Licences,The Meadows Community Centre
LIST,Cambridge City Council,GPC,13/04/23,2,157, -   ,14.98,14.98,Stationery,Communities,62002,Stationery,Corn Exchange and Guildhalls
LIST,Cambridge City Council,GPC,13/04/23,2,164, -   ,12.99,12.99,Zoom license for group meetings/intervi,Communities,64077,Telephone And Mobile Phone Costs,Folk Festival
LIST,Cambridge City Council,GPC,13/04/23,2,166, -   ,16.2,16.2,Taxi to Emmaus RD,Communities,63900,Miscellaneous Expenses,DLUHC Homelessness Grants (RSI)
LIST,Cambridge City Council,GPC,13/04/23,2,166, -   ,16.2,16.2,Taxi from Emmaus RD,Communities,63900,Miscellaneous Expenses,DLUHC Homelessness Grants (RSI)
LIST,Cambridge City Council,GPC,13/04/23,2,178, -   ,98,98,Bus passes,Communities,60914,Public Transport For Staff And Members,Syrian Resettlement
LIST,Cambridge City Council,GPC,13/04/23,2,167,5.33,26.67,32,Purchase of flowers for resident rep.,Communities,61903,Hospitality,Resident Involvement
LIST,Cambridge City Council,GPC,13/04/23,2,149, -   ,50,50,130 Kingsway - electric top up,Communities,60303,Electricity,Temporary Accommodation
LIST,Cambridge City Council,GPC,13/04/23,2,149, -   ,50,50,23 Hanover Court - electric top up,Communities,60303,Electricity,Temporary Accommodation
LIST,Cambridge City Council,GPC,13/04/23,2,149, -   ,50,50,23 Hanover Court - electric top up,Communities,60303,Electricity,Temporary Accommodation
LIST,Cambridge City Council,GPC,13/04/23,2,149, -   ,50,50,78 Hanover Court - electric top up,Communities,60303,Electricity,Temporary Accommodation
LIST,Cambridge City Council,GPC,13/04/23,2,149, -   ,99,99,77 Birdwood Road - gas top up,Communities,60305,Gas,Temporary Accommodation
LIST,Cambridge City Council,GPC,13/04/23,2,160, -   ,20.06,20.06,Anti Fungal Wash,City Services,61703,"Purchase - Equipment, Furniture And Materials",Building Maintenance Response - Direct
LIST,Cambridge City Council,GPC,13/04/23,2,160, -   ,20.06,20.06,Anti Fungal Wash,City Services,61703,"Purchase - Equipment, Furniture And Materials",Building Maintenance Response - Direct
LIST,Cambridge City Council,GPC,13/04/23,2,160, -   ,20.06,20.06,Anti Fungal Wash,City Services,61703,"Purchase - Equipment, Furniture And Materials",Building Maintenance Response - Direct
LIST,Cambridge City Council,GPC,13/04/23,2,160, -   ,20.05,20.05,Anti Fungal Wash,City Services,61703,"Purchase - Equipment, Furniture And Materials",Building Maintenance Response - Direct
LIST,Cambridge City Council,GPC,13/04/23,2,160, -   ,20.06,20.06,Anti Fungal Wash,City Services,61703,"Purchase - Equipment, Furniture And Materials",Building Maintenance Response - Direct
LIST,Cambridge City Council,GPC,13/04/23,2,166, -   ,100,100,Emmaus solidarity pack,Communities,50100,Grants - Other,Housing Charity Grant Payments
LIST,Cambridge City Council,GPC,14/04/23,2,158,34.57,172.82,207.39,Order of AV equipment for Corporate Mar,Corporate,64073,ICT Maintenance and Support,Corporate Marketing
LIST,Cambridge City Council,GPC,14/04/23,10,399, -   ,3.15,3.15,GREGGS PLC MUMBLES,Communities,64800,Membership And Subscriptions,City Events
LIST,Cambridge City Council,GPC,14/04/23,10,399, -   ,3,3,SumUp *Nofit State Co Cardiff,Communities,64800,Membership And Subscriptions,City Events
LIST,Cambridge City Council,GPC,14/04/23,10,399, -   ,3,3,CITY & COUNTY OF SWANS-SWANSEA,Communities,64800,Membership And Subscriptions,City Events
LIST,Cambridge City Council,GPC,14/04/23,2,166, -   ,26.99,26.99,EP new phone,Communities,64077,Telephone And Mobile Phone Costs,DLUHC Homelessness Grants (RSI)
LIST,Cambridge City Council,GPC,14/04/23,2,160, -   ,14.98,14.98,GU10 Bulbs,City Services,61703,"Purchase - Equipment, Furniture And Materials",Building Maintenance Response - Direct
LIST,Cambridge City Council,GPC,14/04/23,2,166, -   ,17.45,17.45,Toaster RD street aid grant,Communities,50100,Grants - Other,Housing Charity Grant Payments
LIST,Cambridge City Council,GPC,14/04/23,2,154, -   ,194.99,194.99,Joseph Mahon fridge and microwave-stree,Communities,63900,Miscellaneous Expenses,Housing Charity Grant Payments
LIST,Cambridge City Council,GPC,14/04/23,3,192, -   ,-59.99,-59.99,Refund for microwave,Communities,63900,Miscellaneous Expenses,Housing Charity Grant Payments
LIST,Cambridge City Council,GPC,15/04/23,2,161,2.16,10.82,12.98,Coronation Decorations,Communities,62900,Events,Clay Farm Community Centre
LIST,Cambridge City Council,GPC,15/04/23,2,161,1.33,6.65,7.98,Fabric for Coronation Event,Communities,62900,Events,Clay Farm Community Centre
LIST,Cambridge City Council,GPC,15/04/23,10,399, -   ,40.05,40.05,WATERTON S/STN-BRIDGEND,Communities,64800,Membership And Subscriptions,City Events
LIST,Cambridge City Council,GPC,16/04/23,2,161,4.33,21.65,25.98,Bunting and costume for Kings Coronatio,Communities,62900,Events,Clay Farm Community Centre
LIST,Cambridge City Council,GPC,16/04/23,2,161,1.67,8.32,9.99,Bunting and costume for Kings Coronatio,Communities,62900,Events,Clay Farm Community Centre
LIST,Cambridge City Council,GPC,16/04/23,2,161,1.99,9.97,11.96,Costumes & Flags for Kings Coronation E,Communities,62900,Events,Clay Farm Community Centre
LIST,Cambridge City Council,GPC,16/04/23,2,161,1.2,5.98,7.18,Costumes & Flags for Kings Coronation E,Communities,62900,Events,Clay Farm Community Centre
LIST,Cambridge City Council,GPC,16/04/23,2,161,1.67,8.32,9.99,Paint for Kings Coronation Event,Communities,62900,Events,Clay Farm Community Centre
LIST,Cambridge City Council,GPC,17/04/23,2,151,1.67,8.33,10,Spotlights for chapel catafalque,City Services,61703,"Purchase - Equipment, Furniture And Materials",Cambridge Crematorium
LIST,Cambridge City Council,GPC,17/04/23,2,156,6.66,33.32,39.98,uniform/workwear,City Services,61703,"Purchase - Equipment, Furniture And Materials",Bereavement Services - Burials & Grounds
LIST,Cambridge City Council,GPC,17/04/23,2,161, -   ,159,159,TV Licence,Communities,60413,TV Licences,Clay Farm Community Centre
LIST,Cambridge City Council,GPC,17/04/23,2,161,1,4.97,5.97,Door Wedges,Communities,61703,"Purchase - Equipment, Furniture And Materials",Clay Farm Community Centre
LIST,Cambridge City Council,GPC,17/04/23,2,161,5.98,29.92,35.9,Costumes for Coronation Event,Communities,62900,Events,Clay Farm Community Centre
LIST,Cambridge City Council,GPC,17/04/23,2,161,2.86,14.32,17.18,Crowns for Coronation Event,Communities,62900,Events,Clay Farm Community Centre
LIST,Cambridge City Council,GPC,17/04/23,2,161,2.34,11.7,14.04,Tassels & Cotton,Communities,62900,Events,Clay Farm Community Centre
LIST,Cambridge City Council,GPC,17/04/23,2,161,0.6,2.99,3.59,Costumes for Coronation Event,Communities,62900,Events,Clay Farm Community Centre
LIST,Cambridge City Council,GPC,17/04/23,2,159, -   ,99.99,99.99,Online media,Communities,64800,Membership And Subscriptions,Active Lifestyles - Communities (ex Sports Development)
LIST,Cambridge City Council,GPC,17/04/23,2,159, -   ,40,40,MvF Weds,Communities,60402,Premises Hire - Facilities,Active Lifestyles - Communities (ex Sports Development)
LIST,Cambridge City Council,GPC,17/04/23,2,159,7.68,38.39,46.07,Rounders Kit,Communities,61703,"Purchase - Equipment, Furniture And Materials",Active Lifestyles - Communities (ex Sports Development)
LIST,Cambridge City Council,GPC,17/04/23,2,159,16.67,83.32,99.99,Reistance Bands,Communities,62005,"Advertising, Publicity And Marketing",Sport - Ex Ref
LIST,Cambridge City Council,GPC,17/04/23,2,159,2.6,12.99,15.59,Online Coaching Platform,Communities,62005,"Advertising, Publicity And Marketing",Active Lifestyles - Projects
LIST,Cambridge City Council,GPC,17/04/23,2,157, -   ,6.6,6.6,Milk for bars,Communities,61900,Catering And Vending Supplies,Corn Exchange and Guildhalls
LIST,Cambridge City Council,GPC,17/04/23,2,157, -   ,22.93,22.93,"Parcel sent to Promoter, paid back to o",Communities,62004,General Office Expenses,Corn Exchange and Guildhalls
LIST,Cambridge City Council,GPC,17/04/23,2,157, -   ,11.15,11.15,"parcel sent to promoter, paid back to o",Communities,62004,General Office Expenses,Corn Exchange and Guildhalls
LIST,Cambridge City Council,GPC,17/04/23,2,166, -   ,35.94,35.94,TV aeriel PB,Communities,63900,Miscellaneous Expenses,DLUHC Homelessness Grants (RSI)
LIST,Cambridge City Council,GPC,17/04/23,2,166, -   ,14.94,14.94,TV remote GMK,Communities,63900,Miscellaneous Expenses,DLUHC Homelessness Grants (RSI)
LIST,Cambridge City Council,GPC,17/04/23,2,178, -   ,98,98,Bus passes,Communities,60914,Public Transport For Staff And Members,Syrian Resettlement
LIST,Cambridge City Council,GPC,17/04/23,3,155, -   ,79.9,79.9,2 x Safety Trainers for Area Team Leader,City Services,62000,"Clothes, Uniform And Laundry",Grounds Maintenance & Street Cleaning
LIST,Cambridge City Council,GPC,17/04/23,3,155, -   ,29.98,29.98,Safety Trainers x M.James SOS Operative,City Services,62000,"Clothes, Uniform And Laundry",Grounds Maintenance & Street Cleaning
LIST,Cambridge City Council,GPC,17/04/23,2,165, -   ,150,150,Annual membership,City Services,64800,Membership And Subscriptions,Open Space Development
LIST,Cambridge City Council,GPC,17/04/23,2,149, -   ,50,50,27 Princess Court - electric top up,Communities,60303,Electricity,Temporary Accommodation
LIST,Cambridge City Council,GPC,17/04/23,2,149, -   ,50,50,78 Hanover Court - electric top up,Communities,60303,Electricity,Temporary Accommodation
LIST,Cambridge City Council,GPC,17/04/23,2,149, -   ,50,50,130 Kingsway - electric top up,Communities,60303,Electricity,Temporary Accommodation
LIST,Cambridge City Council,GPC,17/04/23,2,149, -   ,50,50,12 Hanover Court - electric top up,Communities,60303,Electricity,Temporary Accommodation
LIST,Cambridge City Council,GPC,17/04/23,2,149, -   ,50,50,34 Fanshawe Road - electric top up,Communities,60303,Electricity,Temporary Accommodation
LIST,Cambridge City Council,GPC,17/04/23,2,149, -   ,50,50,78 Hanover Court - electric top up,Communities,60303,Electricity,Temporary Accommodation
LIST,Cambridge City Council,GPC,17/04/23,2,149, -   ,49,49,16 Cockerell Road - electric top up,Communities,60303,Electricity,Temporary Accommodation
LIST,Cambridge City Council,GPC,17/04/23,2,149, -   ,50,50,51 Hanover Court - electric top up,Communities,60303,Electricity,Temporary Accommodation
LIST,Cambridge City Council,GPC,17/04/23,2,149, -   ,50,50,78 Hanover Court - electric top up,Communities,60303,Electricity,Temporary Accommodation
LIST,Cambridge City Council,GPC,17/04/23,2,149, -   ,99,99,33 Hawthorn Way - gas top up,Communities,60305,Gas,Temporary Accommodation
LIST,Cambridge City Council,GPC,17/04/23,2,149, -   ,99,99,34 Fanshawe Road - gas top up,Communities,60305,Gas,Temporary Accommodation
LIST,Cambridge City Council,GPC,17/04/23,2,149, -   ,50,50,29a Ekin Road - gas top up,Communities,60305,Gas,Temporary Accommodation
LIST,Cambridge City Council,GPC,17/04/23,2,149, -   ,99,99,33 Hawthorn Way - gas top up,Communities,60305,Gas,Temporary Accommodation
LIST,Cambridge City Council,GPC,17/04/23,2,160, -   ,21.58,21.58,Tell Tales,City Services,61703,"Purchase - Equipment, Furniture And Materials",Building Maintenance Response - Direct
LIST,Cambridge City Council,GPC,18/04/23,2,156,3.33,16.67,20,yale lock,City Services,60503,Grounds Maintenance,City Cambridge Cemeteries
LIST,Cambridge City Council,GPC,18/04/23,2,156,5.1,25.47,30.57,screws/screwdriver set,City Services,61703,"Purchase - Equipment, Furniture And Materials",City Cambridge Cemeteries
LIST,Cambridge City Council,GPC,18/04/23,2,156,7.5,37.5,45,safety boots,City Services,60207,Health And Safety Supplies And Services,Bereavement Services Central Costs
LIST,Cambridge City Council,GPC,18/04/23,2,159, -   ,18,18,Replacement Wireless keyboard & mouse,Communities,64070,ICT Hardware,Sport & Recreation Administration
LIST,Cambridge City Council,GPC,18/04/23,2,158,17.84,89.22,107.06,Order of AV equipment for the Corporate,Corporate,64073,ICT Maintenance and Support,Corporate Marketing
LIST,Cambridge City Council,GPC,18/04/23,2,166, -   ,8.7,8.7,Coffee with client (DC),Communities,63900,Miscellaneous Expenses,DLUHC Homelessness Grants (RSI)
LIST,Cambridge City Council,GPC,18/04/23,2,166, -   ,10,10,AP phone credit,Communities,64077,Telephone And Mobile Phone Costs,DLUHC Homelessness Grants (RSI)
LIST,Cambridge City Council,GPC,18/04/23,2,148,12.84,64.2,77.04,"Batteries, Fire safety signs",City Services,60300,Signs Erecting & Removal,Parking Administration
LIST,Cambridge City Council,GPC,18/04/23,2,148,1.5,7.49,8.99,Fuses,City Services,61703,"Purchase - Equipment, Furniture And Materials",Parking Administration
LIST,Cambridge City Council,GPC,19/04/23,2,187, -   ,150.42,150.42,stamps,City Services,64100,Postage And Courier Services,Bereavement Services Central Costs
LIST,Cambridge City Council,GPC,19/04/23,4,174, -   ,158.82,158.82,coronation event consumables,Communities,62900,Events,Neighbourhood Community Development
LIST,Cambridge City Council,GPC,19/04/23,2,159,5.69,28.45,34.14,Exercise Referral Resistance Bands,Communities,61703,"Purchase - Equipment, Furniture And Materials",Sport - Ex Ref
LIST,Cambridge City Council,GPC,19/04/23,2,159,-5,-24.99,-29.99,Resistance Bands,Communities,61703,"Purchase - Equipment, Furniture And Materials",Sport - Ex Ref
LIST,Cambridge City Council,GPC,19/04/23,2,177, -   ,18,18,DBS - Homes for Ukraines,Corporate,62500,Dbs Checks - Non-Staff,Strategic Director #2
LIST,Cambridge City Council,GPC,19/04/23,2,177, -   ,18,18,DBS - Homes for Ukraines,Corporate,62500,Dbs Checks - Non-Staff,Strategic Director #2
LIST,Cambridge City Council,GPC,19/04/23,2,153, -   ,170.62,170.62,Travel to a conference,Communities,64200,Subsistence,Environmental Health Operational Support
LIST,Cambridge City Council,GPC,19/04/23,2,154, -   ,60.95,60.95,Ricky Green Microwave,Communities,63900,Miscellaneous Expenses,DLUHC Homelessness Grants (RSI)
LIST,Cambridge City Council,GPC,19/04/23,2,166, -   ,6.65,6.65,Coffee with client (AG),Communities,63900,Miscellaneous Expenses,DLUHC Homelessness Grants (RSI)
LIST,Cambridge City Council,GPC,19/04/23,2,149, -   ,535.5,535.5,Curtain track for TA stock,Corporate,61703,"Purchase - Equipment, Furniture And Materials",Housing Revenue Account - Net Cost of Service
LIST,Cambridge City Council,GPC,19/04/23,2,149, -   ,32,32,Curtains for 21 Dittonfields - RSAP,Corporate,61703,"Purchase - Equipment, Furniture And Materials",Housing Revenue Account - Net Cost of Service
LIST,Cambridge City Council,GPC,19/04/23,2,149, -   ,109.98,109.98,2 sets of induction hob pans for TA sto,Corporate,61703,"Purchase - Equipment, Furniture And Materials",Housing Revenue Account - Net Cost of Service
LIST,Cambridge City Council,GPC,19/04/23,2,160, -   ,65.29,65.29,Post Boxes,Communities,60503,Grounds Maintenance,City Homes Estate Management
LIST,Cambridge City Council,GPC,19/04/23,2,160, -   ,39.47,39.47,Tell Tales,City Services,61703,"Purchase - Equipment, Furniture And Materials",Building Maintenance Response - Direct
LIST,Cambridge City Council,GPC,19/04/23,2,160, -   ,144.8,144.8,Cut-Outs & Chambers,City Services,61703,"Purchase - Equipment, Furniture And Materials",Building Maintenance Response - Direct
LIST,Cambridge City Council,GPC,19/04/23,2,160, -   ,25.37,25.37,100A Fuses,City Services,61703,"Purchase - Equipment, Furniture And Materials",Building Maintenance Response - Direct
LIST,Cambridge City Council,GPC,19/04/23,2,162, -   ,81.47,81.47,P-Wave urinal mats guildhall,Place,60201,Cyclical/Planned Maintenance - Building,Guildhall
LIST,Cambridge City Council,GPC,19/04/23,5,265, -   ,164.2,164.2,Planning application,Corporate,11312,Assets Under Construction Cost,Housing Revenue Account Balance Sheet
LIST,Cambridge City Council,GPC,20/04/23,2,187, -   ,18.97,18.97,Stationary,City Services,62002,Stationery,Cambridge Crematorium
LIST,Cambridge City Council,GPC,20/04/23,4,150, -   , -   , -   ,safety footwear and clothing,City Services,62000,"Clothes, Uniform And Laundry",Fleet Management - Operational
LIST,Cambridge City Council,GPC,20/04/23,4,150, -   ,42.99,42.99,safety footwear and clothing,City Services,62000,"Clothes, Uniform And Laundry",Fleet Management - Operational
LIST,Cambridge City Council,GPC,20/04/23,4,150,3,14.98,17.98,safety footwear and clothing,City Services,62000,"Clothes, Uniform And Laundry",Fleet Management - Operational
LIST,Cambridge City Council,GPC,20/04/23,4,150,3.93,19.63,23.56,safety footwear and clothing,City Services,62000,"Clothes, Uniform And Laundry",Fleet Management - Operational
LIST,Cambridge City Council,GPC,20/04/23,4,150, -   ,42.99,42.99,safety footwear and clothing,City Services,62000,"Clothes, Uniform And Laundry",Fleet Management - Operational
LIST,Cambridge City Council,GPC,20/04/23,4,150, -   ,61.99,61.99,safety footwear and clothing,City Services,62000,"Clothes, Uniform And Laundry",Fleet Management - Operational
LIST,Cambridge City Council,GPC,20/04/23,2,159,3.8,19,22.8,Online Booking System,Communities,62005,"Advertising, Publicity And Marketing",Active Lifestyles - Projects
LIST,Cambridge City Council,GPC,20/04/23,2,176, -   ,4.99,4.99,Facebook,Communities,62005,"Advertising, Publicity And Marketing",Folk Festival
LIST,Cambridge City Council,GPC,20/04/23,3,155, -   ,8.99,8.99,"Amazon Prime used for quick, speedy del",City Services,61703,"Purchase - Equipment, Furniture And Materials",Grounds Maintenance & Street Cleaning
LIST,Cambridge City Council,GPC,20/04/23,2,149, -   ,50,50,12 Hanover Court - electric top up,Communities,60303,Electricity,Temporary Accommodation
LIST,Cambridge City Council,GPC,20/04/23,2,149, -   ,50,50,27 Princess Court - electric top up,Communities,60303,Electricity,Temporary Accommodation
LIST,Cambridge City Council,GPC,20/04/23,2,149, -   ,50,50,77 Birdwood Road - electric top up,Communities,60303,Electricity,Temporary Accommodation
LIST,Cambridge City Council,GPC,20/04/23,2,149, -   ,50,50,78 Hanover Court - electric top up,Communities,60303,Electricity,Temporary Accommodation
LIST,Cambridge City Council,GPC,20/04/23,2,149, -   ,99,99,8 Ekin Road - electric top up,Communities,60303,Electricity,Temporary Accommodation
LIST,Cambridge City Council,GPC,20/04/23,2,149, -   ,80,80,99 Wadloes Road - electric top up,Communities,60303,Electricity,Temporary Accommodation
LIST,Cambridge City Council,GPC,20/04/23,2,149, -   ,80,80,4 Princess Court - electric top up,Communities,60303,Electricity,Temporary Accommodation
LIST,Cambridge City Council,GPC,20/04/23,2,149, -   ,50,50,12 Hanover Court - electric top up,Communities,60303,Electricity,Temporary Accommodation
LIST,Cambridge City Council,GPC,20/04/23,2,149, -   ,50,50,27 Princess Court - electric top up,Communities,60303,Electricity,Temporary Accommodation
LIST,Cambridge City Council,GPC,20/04/23,2,149, -   ,50,50,51 Hanover Court - electric top up,Communities,60303,Electricity,Temporary Accommodation
LIST,Cambridge City Council,GPC,20/04/23,2,149, -   ,99,99,86 Nuns Way - gas top up,Communities,60305,Gas,Temporary Accommodation
LIST,Cambridge City Council,GPC,20/04/23,2,149, -   ,99,99,8 Ekin Road - gas top up,Communities,60305,Gas,Temporary Accommodation
LIST,Cambridge City Council,GPC,20/04/23,2,149, -   ,75,75,100x 2nd class stamps,Communities,64100,Postage And Courier Services,Temporary Accommodation
LIST,Cambridge City Council,GPC,20/04/23,2,149, -   ,110,110,x100 1st class stamps,Communities,64100,Postage And Courier Services,Temporary Accommodation
LIST,Cambridge City Council,GPC,20/04/23,2,160, -   ,"1,803.19","1,803.19",Electric Radiators,City Services,61703,"Purchase - Equipment, Furniture And Materials",Building Maintenance Response - Direct
LIST,Cambridge City Council,GPC,20/04/23,2,166, -   ,57.95,57.95,Hoover - street aid grant RD,Communities,50100,Grants - Other,Housing Charity Grant Payments
LIST,Cambridge City Council,GPC,20/04/23,2,154, -   ,58.95,58.95,Replacement microwave,Communities,63900,Miscellaneous Expenses,Housing Charity Grant Payments
LIST,Cambridge City Council,GPC,20/04/23,2,176, -   ,12.08,12.08,Facebook,Communities,62005,"Advertising, Publicity And Marketing",Corn Exchange and Guildhalls
LIST,Cambridge City Council,GPC,20/04/23,2,176, -   ,80,80,Facebook,Communities,62005,"Advertising, Publicity And Marketing",Corn Exchange and Guildhalls
LIST,Cambridge City Council,GPC,21/04/23,5,248, -   ,102.94,102.94,coronation,Communities,63900,Miscellaneous Expenses,Neighbourhood Community Development
LIST,Cambridge City Council,GPC,21/04/23,2,189,1.76,8.77,10.53,Blue Tac for Centre Use,Communities,62002,Stationery,Clay Farm Community Centre
LIST,Cambridge City Council,GPC,21/04/23,2,191, -   ,84,84,Twitter Blue verification,Corporate,62005,"Advertising, Publicity And Marketing",Corporate Marketing
LIST,Cambridge City Council,GPC,21/04/23,3,212,12.74,63.7,76.44,Tablecloths,Communities,61901,Catering Equipment,Corn Exchange and Guildhalls
LIST,Cambridge City Council,GPC,21/04/23,3,218,1.13,5.62,6.75,Equipment,Communities,52000,Courses & Training Income,Environmental Health Operational Support
LIST,Cambridge City Council,GPC,21/04/23,3,218,27.2,136,163.2,Equipment for new starter,Communities,61703,"Purchase - Equipment, Furniture And Materials",Environmental Health Operational Support
LIST,Cambridge City Council,GPC,21/04/23,4,181, -   ,98,98,Bus passes,Communities,60914,Public Transport For Staff And Members,Syrian Resettlement
LIST,Cambridge City Council,GPC,21/04/23,4,181, -   ,63,63,Bus passes,Communities,60914,Public Transport For Staff And Members,Syrian Resettlement
LIST,Cambridge City Council,GPC,22/04/23,2,189,2.14,10.67,12.81,Corrigated Cardboard for Coronation Eve,Communities,62900,Events,Clay Farm Community Centre
LIST,Cambridge City Council,GPC,22/04/23,2,191, -   ,125,125,Facebook advertisement - photo ID campa,Corporate,62005,"Advertising, Publicity And Marketing",Corporate Marketing
LIST,Cambridge City Council,GPC,23/04/23,2,189,2.24,11.17,13.41,Gems & Stickers for Coronation Event,Communities,62900,Events,Clay Farm Community Centre
LIST,Cambridge City Council,GPC,23/04/23,2,189, -   ,9,9,Coronation Decs,Communities,62900,Events,Clay Farm Community Centre
LIST,Cambridge City Council,GPC,23/04/23,2,189, -   ,23.04,23.04,Coronation Decs,Communities,62900,Events,Clay Farm Community Centre
LIST,Cambridge City Council,GPC,23/04/23,3,206, -   ,149.71,149.71,Facebook,Communities,62005,"Advertising, Publicity And Marketing",Folk Festival
LIST,Cambridge City Council,GPC,23/04/23,3,206, -   ,50.29,50.29,Facebook,Communities,62005,"Advertising, Publicity And Marketing",Corn Exchange and Guildhalls
LIST,Cambridge City Council,GPC,24/04/23,2,185,3.33,16.67,20,keys cut,City Services,61703,"Purchase - Equipment, Furniture And Materials",Bereavement Services - Burials & Grounds
LIST,Cambridge City Council,GPC,24/04/23,3,203, -   ,40,40,MvF Weds 24th May,Communities,60402,Premises Hire - Facilities,Active Lifestyles - Communities (ex Sports Development)
LIST,Cambridge City Council,GPC,24/04/23,4,181, -   ,98,98,Bus passes,Communities,60914,Public Transport For Staff And Members,Syrian Resettlement
LIST,Cambridge City Council,GPC,24/04/23,4,181, -   ,98,98,Bus passes,Communities,60914,Public Transport For Staff And Members,Syrian Resettlement
LIST,Cambridge City Council,GPC,24/04/23,4,181, -   ,98,98,Bus passes,Communities,60914,Public Transport For Staff And Members,Syrian Resettlement
LIST,Cambridge City Council,GPC,24/04/23,2,199, -   ,99,99,16 Ekin Road - gas top up,Communities,60305,Gas,Temporary Accommodation
LIST,Cambridge City Council,GPC,24/04/23,2,199, -   ,99,99,34 Fanshawe Road - gas top up,Communities,60305,Gas,Temporary Accommodation
LIST,Cambridge City Council,GPC,24/04/23,2,199, -   ,99,99,85 Ekin Road - gas top up,Communities,60305,Gas,Temporary Accommodation
LIST,Cambridge City Council,GPC,24/04/23,2,199, -   ,99,99,29a Ekin Road - gas top up,Communities,60305,Gas,Temporary Accommodation
LIST,Cambridge City Council,GPC,24/04/23,2,199, -   ,75,75,652 Newmarket Road - gas top up,Communities,60305,Gas,Temporary Accommodation
LIST,Cambridge City Council,GPC,24/04/23,2,199, -   ,75,75,24a Ekin Road - gas top up,Communities,60305,Gas,Temporary Accommodation
LIST,Cambridge City Council,GPC,24/04/23,3,200, -   ,15.96,15.96,8mm  Plugs,City Services,61703,"Purchase - Equipment, Furniture And Materials",Building Maintenance Response - Direct
LIST,Cambridge City Council,GPC,24/04/23,3,200, -   ,16.31,16.31,SDS Drill Bits,City Services,61703,"Purchase - Equipment, Furniture And Materials",Building Maintenance Response - Direct
LIST,Cambridge City Council,GPC,24/04/23,2,199, -   ,49,49,16 Cockerell Road - electric top up,Communities,60303,Electricity,Temporary Accommodation
LIST,Cambridge City Council,GPC,24/04/23,2,199, -   ,50,50,12 Hanover Court - electric top up,Communities,60303,Electricity,Temporary Accommodation
LIST,Cambridge City Council,GPC,24/04/23,2,199, -   ,50,50,51 Hanover Court - electric top up,Communities,60303,Electricity,Temporary Accommodation
LIST,Cambridge City Council,GPC,24/04/23,2,199, -   ,50,50,23 Hanover Court - electric top up,Communities,60303,Electricity,Temporary Accommodation
LIST,Cambridge City Council,GPC,24/04/23,2,199, -   ,50,50,78 Hanover Court - electric top up,Communities,60303,Electricity,Temporary Accommodation
LIST,Cambridge City Council,GPC,24/04/23,2,199, -   ,50,50,27 Princess Court - electric top up,Communities,60303,Electricity,Temporary Accommodation
LIST,Cambridge City Council,GPC,24/04/23,3,200, -   ,40.77,40.77,Tell Tales,City Services,61703,"Purchase - Equipment, Furniture And Materials",Building Maintenance Response - Direct
LIST,Cambridge City Council,GPC,25/04/23,2,196,2.28,11.39,13.67,Flip chart hooks,Communities,61703,"Purchase - Equipment, Furniture And Materials",Brown's Field Youth and Community Centre
LIST,Cambridge City Council,GPC,25/04/23,2,189,2.17,10.83,13,Door stops,Communities,61703,"Purchase - Equipment, Furniture And Materials",Clay Farm Community Centre
LIST,Cambridge City Council,GPC,25/04/23,2,189,3,14.98,17.98,Pavement chalk for coronation event,Communities,62900,Events,Clay Farm Community Centre
LIST,Cambridge City Council,GPC,25/04/23,3,203,22.65,113.25,135.9,Yoga Mats - New Meadows,Communities,61703,"Purchase - Equipment, Furniture And Materials",Healthy Weights
LIST,Cambridge City Council,GPC,25/04/23,7,334, -   ,156,156,Region of Learning Squarespace Annual S,Chief Executive,64071,ICT Software,Cambridgeshire and Peterborough Region of Learning
LIST,Cambridge City Council,GPC,25/04/23,3,212,5.33,26.62,31.95,Door Stoppers,Communities,62004,General Office Expenses,Corn Exchange and Guildhalls
LIST,Cambridge City Council,GPC,25/04/23,3,212, -   ,81.86,81.86,AirBnB London Conference,Communities,64300,Conference Expenses,Corn Exchange and Guildhalls
LIST,Cambridge City Council,GPC,26/04/23,3,219, -   ,3,3,materials,Communities,61300,Cleaning Materials,The Meadows Community Centre
LIST,Cambridge City Council,GPC,26/04/23,3,219, -   ,50.14,50.14,materials,Communities,61703,"Purchase - Equipment, Furniture And Materials",The Meadows Community Centre
LIST,Cambridge City Council,GPC,26/04/23,2,189,8.54,42.67,51.21,"Keybrd & Mouse, PC stand & Cable",Communities,61703,"Purchase - Equipment, Furniture And Materials",Clay Farm Community Centre
LIST,Cambridge City Council,GPC,26/04/23,2,189,1.67,8.32,9.99,Spray paint for coronation event,Communities,62900,Events,Clay Farm Community Centre
LIST,Cambridge City Council,GPC,26/04/23,3,212,12.74,63.7,76.44,Torches,Communities,62004,General Office Expenses,Corn Exchange and Guildhalls
LIST,Cambridge City Council,GPC,26/04/23,3,214, -   ,2,2,Facebook,Communities,62005,"Advertising, Publicity And Marketing",Cultural Services and Events - Central
LIST,Cambridge City Council,GPC,26/04/23,2,180, -   ,110,110,1st Class Stamps.,Communities,60207,Health And Safety Supplies And Services,Environmental Health Operational Support
LIST,Cambridge City Council,GPC,26/04/23,3,204, -   ,16.2,16.2,Taxi from Emmaus appointment,Communities,63900,Miscellaneous Expenses,DLUHC Homelessness Grants (RSI)
LIST,Cambridge City Council,GPC,26/04/23,3,204, -   ,16.2,16.2,Taxi to Emmaus appointment,Communities,63900,Miscellaneous Expenses,DLUHC Homelessness Grants (RSI)
LIST,Cambridge City Council,GPC,26/04/23,3,200, -   ,99.8,99.8,Storage Boxes,City Services,61703,"Purchase - Equipment, Furniture And Materials",Grounds Maintenance & Street Cleaning
LIST,Cambridge City Council,GPC,26/04/23,3,204, -   ,60,60,RD Emmaus furniture - street aid grant,Communities,63900,Miscellaneous Expenses,Housing Charity Grant Payments
LIST,Cambridge City Council,GPC,26/04/23,4,190, -   ,74.54,74.54,Travel for TechnologyOne Conference,Corporate,64300,Conference Expenses,Accountancy and Support Services
LIST,Cambridge City Council,GPC,26/04/23,5,265, -   ,190,190,County Council,Corporate,11312,Assets Under Construction Cost,Housing Revenue Account Balance Sheet
LIST,Cambridge City Council,GPC,26/04/23,3,219, -   ,6.6,6.6,refreshments,Communities,64200,Subsistence,The Meadows Community Centre
LIST,Cambridge City Council,GPC,26/04/23,2,183,16.67,83.36,100.03,Roller bearings fleet 141,City Services,61703,"Purchase - Equipment, Furniture And Materials",Fleet Management - Operational
LIST,Cambridge City Council,GPC,27/04/23,3,219, -   ,219.67,219.67,stationary,Communities,62002,Stationery,The Meadows Community Centre
LIST,Cambridge City Council,GPC,27/04/23,5,248, -   ,123.89,123.89,baker ross coronation materials,Communities,63900,Miscellaneous Expenses,Neighbourhood Community Development
LIST,Cambridge City Council,GPC,27/04/23,5,248, -   ,85.25,85.25,coronation activities,Communities,63900,Miscellaneous Expenses,Neighbourhood Community Development
LIST,Cambridge City Council,GPC,27/04/23,3,225, -   ,19.83,19.83,holiday lunch expense.,Communities,62900,Events,Neighbourhood Community Development
LIST,Cambridge City Council,GPC,27/04/23,3,212, -   ,10.99,10.99,Stationery,Communities,62002,Stationery,Corn Exchange and Guildhalls
LIST,Cambridge City Council,GPC,27/04/23,3,228,3.67,18.33,22,"Replacement Inspection Cover, damaged b",City Services,61703,"Purchase - Equipment, Furniture And Materials",Grounds Maintenance & Street Cleaning
LIST,Cambridge City Council,GPC,27/04/23,2,199, -   ,50,50,12 Hanover Court - electric top up,Communities,60303,Electricity,Temporary Accommodation
LIST,Cambridge City Council,GPC,27/04/23,2,199, -   ,50,50,130 Kingsway - electric top up,Communities,60303,Electricity,Temporary Accommodation
LIST,Cambridge City Council,GPC,27/04/23,2,199, -   ,50,50,23 Hanover Court - electric top up,Communities,60303,Electricity,Temporary Accommodation
LIST,Cambridge City Council,GPC,27/04/23,2,199, -   ,80,80,4 Princess Court - electric top up,Communities,60303,Electricity,Temporary Accommodation
LIST,Cambridge City Council,GPC,27/04/23,2,199, -   ,75,75,5 Tuscan Court - gas top up,Communities,60305,Gas,Temporary Accommodation
LIST,Cambridge City Council,GPC,27/04/23,2,199, -   ,75,75,33 Hawthorn Way - gas top up,Communities,60305,Gas,Temporary Accommodation
LIST,Cambridge City Council,GPC,27/04/23,2,199, -   ,75,75,82 Maitland Ave - gas top up,Communities,60305,Gas,Temporary Accommodation
LIST,Cambridge City Council,GPC,27/04/23,2,199, -   ,99,99,2 Tuscan Court - gas top up,Communities,60305,Gas,Temporary Accommodation
LIST,Cambridge City Council,GPC,27/04/23,2,199, -   ,99,99,8 Ekin Road - gas top up,Communities,60305,Gas,Temporary Accommodation
LIST,Cambridge City Council,GPC,27/04/23,2,199, -   ,99,99,8 Ekin Road - gas top up,Communities,60305,Gas,Temporary Accommodation
LIST,Cambridge City Council,GPC,27/04/23,3,200, -   ,27.6,27.6,CT1 Adhesive.,City Services,61703,"Purchase - Equipment, Furniture And Materials",Building Maintenance Response - Direct
LIST,Cambridge City Council,GPC,27/04/23,3,200, -   ,86.99,86.99,Recipricating Saw,City Services,61703,"Purchase - Equipment, Furniture And Materials",Building Maintenance Response - Direct
LIST,Cambridge City Council,GPC,28/04/23,5,248, -   ,64.99,64.99,canva account,Communities,62005,"Advertising, Publicity And Marketing",Neighbourhood Community Development
LIST,Cambridge City Council,GPC,28/04/23,5,248, -   ,352,352,cupcakes for coronation,Communities,63900,Miscellaneous Expenses,Neighbourhood Community Development
LIST,Cambridge City Council,GPC,28/04/23,7,334,3.33,16.66,19.99,Laminating pouches,Communities,62002,Stationery,Folk Festival
LIST,Cambridge City Council,GPC,28/04/23,7,334, -   ,33.3,33.3,Petrol,Communities,63900,Miscellaneous Expenses,Folk Festival
LIST,Cambridge City Council,GPC,28/04/23,3,207, -   ,59.38,59.38,Facebook adverts,Communities,62005,"Advertising, Publicity And Marketing",Folk Festival
LIST,Cambridge City Council,GPC,28/04/23,3,207, -   ,45.29,45.29,Facebook adverts,Communities,62005,"Advertising, Publicity And Marketing",Folk Festival
LIST,Cambridge City Council,GPC,28/04/23,3,215, -   ,0.09,0.09,Facebook,Communities,62005,"Advertising, Publicity And Marketing",Cultural Services and Events - Central
LIST,Cambridge City Council,GPC,28/04/23,3,217, -   ,3,3,Facebook,Communities,62005,"Advertising, Publicity And Marketing",Cultural Services and Events - Central
LIST,Cambridge City Council,GPC,28/04/23,3,217, -   ,2,2,Facebook,Communities,62005,"Advertising, Publicity And Marketing",Cultural Services and Events - Central
LIST,Cambridge City Council,GPC,28/04/23,3,217, -   ,2,2,Facebook,Communities,62005,"Advertising, Publicity And Marketing",Cultural Services and Events - Central
LIST,Cambridge City Council,GPC,28/04/23,3,217, -   ,1.06,1.06,Facebook,Communities,62005,"Advertising, Publicity And Marketing",Cultural Services and Events - Central
LIST,Cambridge City Council,GPC,28/04/23,3,218,16.5,82.5,99,Training,Communities,52000,Courses & Training Income,Environmental Health Operational Support
LIST,Cambridge City Council,GPC,28/04/23,3,204, -   ,164.97,164.97,Flight for rough sleeper with NRPF (EP),Communities,63900,Miscellaneous Expenses,Homelessness Prevention Grant
LIST,Cambridge City Council,GPC,28/04/23,3,201, -   ,52.92,52.92,Associate Project Management Book,City Services,60115,Staff Development And Training,Parking Administration
LIST,Cambridge City Council,GPC,28/04/23,3,207, -   ,60.31,60.31,Facebook adverts,Communities,62005,"Advertising, Publicity And Marketing",Corn Exchange and Guildhalls
LIST,Cambridge City Council,GPC,28/04/23,3,207, -   ,17.25,17.25,Facebook adverts,Communities,62005,"Advertising, Publicity And Marketing",Corn Exchange and Guildhalls
LIST,Cambridge City Council,GPC,28/04/23,3,207, -   ,17.77,17.77,Facebook adverts,Communities,62005,"Advertising, Publicity And Marketing",Corn Exchange and Guildhalls
LIST,Cambridge City Council,GPC,29/04/23,3,212,13.29,66.44,79.73,Office and barrels locks,Communities,62004,General Office Expenses,Corn Exchange and Guildhalls
LIST,Cambridge City Council,GPC,29/04/23,3,217, -   ,12,12,Facebook,Communities,62005,"Advertising, Publicity And Marketing",Cultural Services and Events - Central
LIST,Cambridge City Council,GPC,29/04/23,3,217, -   ,7,7,Facebook,Communities,62005,"Advertising, Publicity And Marketing",Cultural Services and Events - Central
LIST,Cambridge City Council,GPC,29/04/23,3,217, -   ,5.25,5.25,Facebook,Communities,62005,"Advertising, Publicity And Marketing",Cultural Services and Events - Central
LIST,Cambridge City Council,GPC,29/04/23,3,217, -   ,5,5,Facebook,Communities,62005,"Advertising, Publicity And Marketing",Cultural Services and Events - Central
LIST,Cambridge City Council,GPC,29/04/23,3,217, -   ,2.04,2.04,Facebook,Communities,62005,"Advertising, Publicity And Marketing",Cultural Services and Events - Central
LIST,Cambridge City Council,GPC,29/04/23,3,217, -   ,1.96,1.96,Facebook,Communities,62005,"Advertising, Publicity And Marketing",Cultural Services and Events - Central
LIST,Cambridge City Council,GPC,29/04/23,4,181, -   ,98,98,Bus passes,Communities,60914,Public Transport For Staff And Members,Syrian Resettlement
LIST,Cambridge City Council,GPC,30/04/23,3,212, -   ,35.99,35.99,B&Q - Office Lockers,Communities,62004,General Office Expenses,Corn Exchange and Guildhalls
LIST,Cambridge City Council,GPC,30/04/23,3,217, -   ,17,17,Facebook,Communities,62005,"Advertising, Publicity And Marketing",Cultural Services and Events - Central
LIST,Cambridge City Council,GPC,30/04/23,3,217, -   ,10.89,10.89,Facebook,Communities,62005,"Advertising, Publicity And Marketing",Cultural Services and Events - Central
LIST,Cambridge City Council,GPC,01/05/23,3,219, -   ,20,20,refreshments,Communities,64200,Subsistence,The Meadows Community Centre
LIST,Cambridge City Council,GPC,01/05/23,2,189, -   ,8.99,8.99,Prime Subscription,Communities,60410,Licences,Clay Farm Community Centre
LIST,Cambridge City Council,GPC,01/05/23,3,203, -   ,40,40,MvF Weds 3rd May,Communities,60402,Premises Hire - Facilities,Active Lifestyles - Communities (ex Sports Development)
LIST,Cambridge City Council,GPC,01/05/23,3,209, -   ,96.15,96.15,Facebook,Communities,62005,"Advertising, Publicity And Marketing",Folk Festival
LIST,Cambridge City Council,GPC,01/05/23,3,216, -   ,25,25,Facebook,Communities,62005,"Advertising, Publicity And Marketing",Cultural Services and Events - Central
LIST,Cambridge City Council,GPC,01/05/23,3,218,27.95,139.75,167.7,Equipment,Communities,61703,"Purchase - Equipment, Furniture And Materials",Environmental Health Operational Support
LIST,Cambridge City Council,GPC,01/05/23,4,181, -   ,98,98,Bus passes,Communities,60914,Public Transport For Staff And Members,Syrian Resettlement
LIST,Cambridge City Council,GPC,01/05/23,2,184,3.99,19.97,23.96,2 x mouse + 1 mouse mat,Communities,61703,"Purchase - Equipment, Furniture And Materials",Independent Living Services Management Costs
LIST,Cambridge City Council,GPC,01/05/23,3,209, -   ,32.75,32.75,Facebook,Communities,62005,"Advertising, Publicity And Marketing",Corn Exchange and Guildhalls
LIST,Cambridge City Council,GPC,01/05/23,3,209, -   ,38.87,38.87,Facebook,Communities,62005,"Advertising, Publicity And Marketing",Corn Exchange and Guildhalls
LIST,Cambridge City Council,GPC,01/05/23,3,209, -   ,32.23,32.23,Facebook,Communities,62005,"Advertising, Publicity And Marketing",Corn Exchange and Guildhalls
LIST,Cambridge City Council,GPC,02/05/23,3,216, -   ,18.96,18.96,Facebook,Communities,62005,"Advertising, Publicity And Marketing",Cultural Services and Events - Central
LIST,Cambridge City Council,GPC,02/05/23,2,199, -   ,49,49,78a Chalmers Road - electric top up,Communities,60303,Electricity,Temporary Accommodation
LIST,Cambridge City Council,GPC,02/05/23,2,199, -   ,49,49,78a Chalmers Road - electric top up,Communities,60303,Electricity,Temporary Accommodation
LIST,Cambridge City Council,GPC,02/05/23,3,200, -   ,59.99,59.99,15mm Peglar Valve,City Services,61703,"Purchase - Equipment, Furniture And Materials",Building Maintenance Response - Direct
LIST,Cambridge City Council,GPC,02/05/23,3,192, -   ,260,260,RD washing machine-grant funded,Communities,50100,Grants - Other,Housing Charity Grant Payments
LIST,Cambridge City Council,GPC,03/05/23,2,185,19.97,99.83,119.8,barley straw- ponds,City Services,60503,Grounds Maintenance,Bereavement Services - Burials & Grounds
LIST,Cambridge City Council,GPC,03/05/23,2,185,3.27,16.36,19.63,materials,City Services,60503,Grounds Maintenance,Bereavement Services - Burials & Grounds
LIST,Cambridge City Council,GPC,03/05/23,3,219, -   ,151.88,151.88,refreshments,Communities,64200,Subsistence,The Meadows Community Centre
LIST,Cambridge City Council,GPC,03/05/23,2,189,8.67,43.33,52,1st Aid Supplies,Communities,60207,Health And Safety Supplies And Services,Clay Farm Community Centre
LIST,Cambridge City Council,GPC,03/05/23,2,189,2.56,12.82,15.38,1st Aid Supplies,Communities,60207,Health And Safety Supplies And Services,Clay Farm Community Centre
LIST,Cambridge City Council,GPC,03/05/23,3,203,7.83,39.13,46.96,Storage Boxes,Communities,61703,"Purchase - Equipment, Furniture And Materials",Active Lifestyles - Projects
LIST,Cambridge City Council,GPC,03/05/23,3,202,49.66,248.32,297.98,Corporate subscription to Mentimeter. P,Corporate,64072,ICT Licences,Programme Office
LIST,Cambridge City Council,GPC,03/05/23,3,208, -   ,0.49,0.49,Arts Development,Communities,64073,ICT Maintenance and Support,Culture and Community
LIST,Cambridge City Council,GPC,03/05/23,3,228,36.16,180.81,216.97,2 x Cordless Sanders for Community Enga,City Services,61703,"Purchase - Equipment, Furniture And Materials",S&OS Community Engagement
LIST,Cambridge City Council,GPC,03/05/23,2,198, -   ,115,115,Money Claims On Line31a Galfrid Road Ca,Communities,62400,Consultancy Fees,Leasehold Property Management
LIST,Cambridge City Council,GPC,03/05/23,3,200, -   ,89.99,89.99,Cistern Miser,City Services,61703,"Purchase - Equipment, Furniture And Materials",Building Maintenance Response - Direct
LIST,Cambridge City Council,GPC,04/05/23,2,185,16.66,83.32,99.98,shrub -family garden,City Services,60503,Grounds Maintenance,Bereavement Services - Burials & Grounds
LIST,Cambridge City Council,GPC,04/05/23,2,189, -   ,8.99,8.99,Ice pops for coronation event,Communities,62900,Events,Clay Farm Community Centre
LIST,Cambridge City Council,GPC,04/05/23,3,212, -   ,30.96,30.96,Stationery,Communities,62002,Stationery,Corn Exchange and Guildhalls
LIST,Cambridge City Council,GPC,04/05/23,3,212,-6.91,-34.54,-41.45,Barrel locks refund,Communities,62004,General Office Expenses,Corn Exchange and Guildhalls
LIST,Cambridge City Council,GPC,04/05/23,3,218,-82.5,-412.5,-495,Training,Communities,52000,Courses & Training Income,Environmental Health Operational Support
LIST,Cambridge City Council,GPC,04/05/23,4,181, -   ,98,98,Bus passes,Communities,60914,Public Transport For Staff And Members,Syrian Resettlement
LIST,Cambridge City Council,GPC,04/05/23,2,198, -   ,70,70,Money Claims On Line70 St Bedes Crescen,Communities,62400,Consultancy Fees,Leasehold Property Management
LIST,Cambridge City Council,GPC,04/05/23,2,198, -   ,70,70,Money Claims Online111 St Bedes Crescen,Communities,62400,Consultancy Fees,Leasehold Property Management
LIST,Cambridge City Council,GPC,05/05/23,2,193,3.06,15.28,18.34,Highlighter pens,City Services,62002,Stationery,Cambridge Crematorium
LIST,Cambridge City Council,GPC,05/05/23,2,193,0.83,4.16,4.99,Sticky tape,City Services,62002,Stationery,Cambridge Crematorium
LIST,Cambridge City Council,GPC,05/05/23,3,219, -   ,6,6,materials,Communities,61703,"Purchase - Equipment, Furniture And Materials",The Meadows Community Centre
LIST,Cambridge City Council,GPC,05/05/23,3,219, -   ,3.6,3.6,refreshments,Communities,64200,Subsistence,The Meadows Community Centre
LIST,Cambridge City Council,GPC,05/05/23,3,219, -   ,13,13,refresments,Communities,64200,Subsistence,The Meadows Community Centre
LIST,Cambridge City Council,GPC,05/05/23,3,219, -   ,22,22,refreshments,Communities,64200,Subsistence,The Meadows Community Centre
LIST,Cambridge City Council,GPC,05/05/23,3,212,14.43,72.15,86.58,Barrel locks,Communities,62004,General Office Expenses,Corn Exchange and Guildhalls
LIST,Cambridge City Council,GPC,05/05/23,7,334, -   ,12.92,12.92,Postage costs,Communities,64200,Subsistence,Folk Festival
LIST,Cambridge City Council,GPC,05/05/23,3,192, -   ,11,11,Dan Beard birth certificate,Communities,63900,Miscellaneous Expenses,DLUHC Homelessness Grants (RSI)
LIST,Cambridge City Council,GPC,05/05/23,3,228,5.16,25.81,30.97,Sander Pads for Community Engagement Sa,City Services,61703,"Purchase - Equipment, Furniture And Materials",S&OS Community Engagement
LIST,Cambridge City Council,GPC,05/05/23,3,200, -   ,624.32,624.32,Door Repair A Small. D Feast,City Services,61703,"Purchase - Equipment, Furniture And Materials",Building Maintenance Response - Direct
LIST,Cambridge City Council,GPC,06/05/23,2,187, -   ,106.54,106.54,Stamps,City Services,64100,Postage And Courier Services,Bereavement Services Central Costs
LIST,Cambridge City Council,GPC,06/05/23,3,219, -   ,10.35,10.35,refreshments,Communities,64200,Subsistence,The Meadows Community Centre
LIST,Cambridge City Council,GPC,06/05/23,3,219, -   ,3.3,3.3,refreshments,Communities,64200,Subsistence,The Meadows Community Centre
LIST,Cambridge City Council,GPC,06/05/23,7,334, -   ,8.9,8.9,Conference Subsistence,Communities,64200,Subsistence,Folk Festival
LIST,Cambridge City Council,GPC,06/05/23,7,334, -   ,7,7,Conference Subsistence,Communities,64200,Subsistence,Folk Festival
LIST,Cambridge City Council,GPC,06/05/23,2,194, -   ,75.47,75.47,toilet seat/ guildhall,Place,60201,Cyclical/Planned Maintenance - Building,Guildhall
LIST,Cambridge City Council,GPC,06/05/23,2,194, -   ,25.97,25.97,Glue/tape,Place,61703,"Purchase - Equipment, Furniture And Materials",Admin Building Allocation
LIST,Cambridge City Council,GPC,07/05/23,7,334, -   ,3.85,3.85,Conference Subsistence,Communities,64200,Subsistence,Folk Festival
LIST,Cambridge City Council,GPC,07/05/23,7,334, -   ,8.9,8.9,Conference Subsistence,Communities,64200,Subsistence,Folk Festival
LIST,Cambridge City Council,GPC,07/05/23,4,181, -   ,98,98,Bus passes,Communities,60914,Public Transport For Staff And Members,Syrian Resettlement
LIST,Cambridge City Council,GPC,07/05/23,3,221, -   ,157.45,157.45,Folk Festival - Coldhams  Common site m,City Services,61703,"Purchase - Equipment, Furniture And Materials",Open Space Development
LIST,Cambridge City Council,GPC,08/05/23,5,248, -   ,57.98,57.98,zoom license,Communities,64077,Telephone And Mobile Phone Costs,Neighbourhood Community Development
LIST,Cambridge City Council,GPC,08/05/23,3,203, -   ,81.18,81.18,Online Coaching Platform,Communities,64800,Membership And Subscriptions,Active Lifestyles - Communities (ex Sports Development)
LIST,Cambridge City Council,GPC,08/05/23,3,203, -   ,40,40,MvF Weds 10th May,Communities,60402,Premises Hire - Facilities,Active Lifestyles - Communities (ex Sports Development)
LIST,Cambridge City Council,GPC,08/05/23,3,213, -   ,34.75,34.75,Facebook,Communities,62005,"Advertising, Publicity And Marketing",Cultural Services and Events - Central
LIST,Cambridge City Council,GPC,09/05/23,2,187, -   ,28.99,28.99,Stationary,City Services,62002,Stationery,Cambridge Crematorium
LIST,Cambridge City Council,GPC,09/05/23,3,203,12.27,61.33,73.6,Flyers & Leaflets,Communities,62001,Printing,Active Lifestyles - Communities (ex Sports Development)
LIST,Cambridge City Council,GPC,09/05/23,4,181, -   ,98,98,Bus passes,Communities,60914,Public Transport For Staff And Members,Syrian Resettlement
LIST,Cambridge City Council,GPC,09/05/23,4,181, -   ,98,98,Bus passes,Communities,60914,Public Transport For Staff And Members,Syrian Resettlement
LIST,Cambridge City Council,GPC,09/05/23,2,199, -   ,36,36,Curtains for 26 Helen Close - RSAP,Corporate,61703,"Purchase - Equipment, Furniture And Materials",Housing Revenue Account - Net Cost of Service
LIST,Cambridge City Council,GPC,09/05/23,2,191, -   ,138,138,Digital document BS EN IEC 62446-2:2020,City Services,64070,ICT Hardware,Asset Management and Compliance
LIST,Cambridge City Council,GPC,10/05/23,2,187, -   ,10.48,10.48,Cleaning materials,City Services,61703,"Purchase - Equipment, Furniture And Materials",Cambridge Crematorium
LIST,Cambridge City Council,GPC,10/05/23,2,187, -   ,22,22,Stationary,City Services,62002,Stationery,Cambridge Crematorium
LIST,Cambridge City Council,GPC,10/05/23,2,183, -   ,137,137,MOT and lane fee WM65EGJ (fleet number,City Services,61703,"Purchase - Equipment, Furniture And Materials",Garage- External Work
LIST,Cambridge City Council,GPC,10/05/23,2,183, -   ,66,66,MOT and lane fee WM65EGJ (fleet number,City Services,61703,"Purchase - Equipment, Furniture And Materials",Garage- External Work
LIST,Cambridge City Council,GPC,10/05/23,2,189,2.42,12.07,14.49,Dishwasher tablets,Communities,61300,Cleaning Materials,Clay Farm Community Centre
LIST,Cambridge City Council,GPC,10/05/23,2,189,2.33,11.65,13.98,Washing Up Liq,Communities,61300,Cleaning Materials,Clay Farm Community Centre
LIST,Cambridge City Council,GPC,10/05/23,2,189,0.95,4.74,5.69,Vinyl Cleaning gloves,Communities,61300,Cleaning Materials,Clay Farm Community Centre
LIST,Cambridge City Council,GPC,10/05/23,2,189,24.15,120.75,144.9,Vacuum Cleaner,Communities,61703,"Purchase - Equipment, Furniture And Materials",Clay Farm Community Centre
LIST,Cambridge City Council,GPC,10/05/23,2,189, -   ,19.85,19.85,Biscuits for events,Communities,62900,Events,Clay Farm Community Centre
LIST,Cambridge City Council,GPC,10/05/23,2,189, -   ,12.25,12.25,Milk pots for events,Communities,62900,Events,Clay Farm Community Centre
LIST,Cambridge City Council,GPC,10/05/23,2,191, -   ,126.48,126.48,Facebook advertisement - photo ID campa,Corporate,62005,"Advertising, Publicity And Marketing",Corporate Marketing
LIST,Cambridge City Council,GPC,10/05/23,7,334, -   ,14,14,Conference Subsistence (Programming Tea,Communities,64200,Subsistence,Corn Exchange and Guildhalls
LIST,Cambridge City Council,GPC,10/05/23,3,210, -   ,50,50,Facebook,Communities,62005,"Advertising, Publicity And Marketing",Folk Festival
LIST,Cambridge City Council,GPC,10/05/23,3,210, -   ,44.47,44.47,Facebook,Communities,62005,"Advertising, Publicity And Marketing",Folk Festival
LIST,Cambridge City Council,GPC,10/05/23,3,221, -   ,21.76,21.76,To Do List Books,City Services,62002,Stationery,Open Space Development
LIST,Cambridge City Council,GPC,10/05/23,3,221, -   ,15.48,15.48,Note Books,City Services,62002,Stationery,Open Space Development
LIST,Cambridge City Council,GPC,10/05/23,3,200, -   ,45.37,45.37,Mouse Mesh Vents,City Services,61703,"Purchase - Equipment, Furniture And Materials",Building Maintenance Response - Direct
LIST,Cambridge City Council,GPC,10/05/23,2,194, -   ,30.73,30.73,go gone sticky stuff remover,Place,61703,"Purchase - Equipment, Furniture And Materials",Admin Building Allocation
LIST,Cambridge City Council,GPC,10/05/23,3,210, -   ,105.53,105.53,Facebook,Communities,62005,"Advertising, Publicity And Marketing",Corn Exchange and Guildhalls
LIST,Cambridge City Council,GPC,11/05/23,2,185,1.66,8.3,9.96,bulbs,City Services,60503,Grounds Maintenance,Bereavement Services - Burials & Grounds
LIST,Cambridge City Council,GPC,11/05/23,2,185,5.83,29.16,34.99,safety boots,City Services,60207,Health And Safety Supplies And Services,Bereavement Services Central Costs
LIST,Cambridge City Council,GPC,11/05/23,3,219, -   ,184.96,184.96,supplies for building,Communities,61702,"Maintenance - Equipment, Furniture And Materials",The Meadows Community Centre
LIST,Cambridge City Council,GPC,11/05/23,3,219, -   ,3.3,3.3,refreshments,Communities,64200,Subsistence,The Meadows Community Centre
LIST,Cambridge City Council,GPC,11/05/23,5,248, -   ,21.32,21.32,bookwhen account - billed in dollars,Communities,63900,Miscellaneous Expenses,Neighbourhood Community Development
LIST,Cambridge City Council,GPC,11/05/23,7,334, -   ,9.95,9.95,Conference Subsistence (Programming Tea,Communities,64200,Subsistence,Corn Exchange and Guildhalls
LIST,Cambridge City Council,GPC,11/05/23,10,399, -   ,123.25,123.25,PREMIER INN-NORWICH NELSO,Communities,64400,Hotel And Other Accommodation Costs (Staff And Members),City Events
LIST,Cambridge City Council,GPC,11/05/23,3,192, -   ,4.6,4.6,Refreshments Alec Moss,Communities,63900,Miscellaneous Expenses,DLUHC Homelessness Grants (RSI)
LIST,Cambridge City Council,GPC,11/05/23,4,181, -   ,63,63,Bus passes,Communities,60914,Public Transport For Staff And Members,Syrian Resettlement
LIST,Cambridge City Council,GPC,11/05/23,3,228,3.17,15.83,19,Digital Tachograph Card Replacement for,City Services,60907,Other Vehicle Costs,Grounds Maintenance & Street Cleaning
LIST,Cambridge City Council,GPC,11/05/23,2,199, -   ,49,49,5 Tuscan Court - electric top up,Communities,60303,Electricity,Temporary Accommodation
LIST,Cambridge City Council,GPC,11/05/23,2,199, -   ,50,50,51 Hanover Court - electric top up,Communities,60303,Electricity,Temporary Accommodation
LIST,Cambridge City Council,GPC,11/05/23,2,199, -   ,50,50,23 Hanover Court - electric top up,Communities,60303,Electricity,Temporary Accommodation
LIST,Cambridge City Council,GPC,11/05/23,2,199, -   ,50,50,24a Ekin Road - electric top up,Communities,60303,Electricity,Temporary Accommodation
LIST,Cambridge City Council,GPC,11/05/23,2,199, -   ,50,50,78 Hanover Court - electric top up,Communities,60303,Electricity,Temporary Accommodation
LIST,Cambridge City Council,GPC,11/05/23,2,199, -   ,50,50,34 Fanshawe Road - electric top up,Communities,60303,Electricity,Temporary Accommodation
LIST,Cambridge City Council,GPC,11/05/23,2,199, -   ,50,50,29a Ekin Road - electric top up,Communities,60303,Electricity,Temporary Accommodation
LIST,Cambridge City Council,GPC,11/05/23,2,199, -   ,50,50,130 Kingsway - electric top up,Communities,60303,Electricity,Temporary Accommodation
LIST,Cambridge City Council,GPC,11/05/23,2,199, -   ,50,50,652 Newmarket Road - electric top up,Communities,60303,Electricity,Temporary Accommodation
LIST,Cambridge City Council,GPC,11/05/23,2,199, -   ,50,50,27 Princess Court - electric top up,Communities,60303,Electricity,Temporary Accommodation
LIST,Cambridge City Council,GPC,11/05/23,2,199, -   ,50,50,12 Hanover Court - electric top up,Communities,60303,Electricity,Temporary Accommodation
LIST,Cambridge City Council,GPC,11/05/23,2,199, -   ,50,50,78a Chalmers Road - electric top up,Communities,60303,Electricity,Temporary Accommodation
LIST,Cambridge City Council,GPC,11/05/23,2,199, -   ,49,49,16 Cockerell Road - electric top up,Communities,60303,Electricity,Temporary Accommodation
LIST,Cambridge City Council,GPC,11/05/23,2,199, -   ,49,49,78a Chalmers Road - electric top up,Communities,60303,Electricity,Temporary Accommodation
LIST,Cambridge City Council,GPC,11/05/23,2,199, -   ,49,49,78a Chalmers Road - electric top up,Communities,60303,Electricity,Temporary Accommodation
LIST,Cambridge City Council,GPC,11/05/23,2,199, -   ,99,99,34 Fanshawe Road - gas top up,Communities,60305,Gas,Temporary Accommodation
LIST,Cambridge City Council,GPC,11/05/23,2,199, -   ,99,99,85 Ekin Road - gas top up,Communities,60305,Gas,Temporary Accommodation
LIST,Cambridge City Council,GPC,11/05/23,2,199, -   ,99,99,86 Nuns Way - gas top up,Communities,60305,Gas,Temporary Accommodation
LIST,Cambridge City Council,GPC,11/05/23,2,199, -   ,99,99,29a Ekin Road - gas top up,Communities,60305,Gas,Temporary Accommodation
LIST,Cambridge City Council,GPC,11/05/23,2,199, -   ,99,99,77 Birdwood Road - gas top up,Communities,60305,Gas,Temporary Accommodation
LIST,Cambridge City Council,GPC,11/05/23,2,199, -   ,99,99,99 Wadloes Road - gas top up,Communities,60305,Gas,Temporary Accommodation
LIST,Cambridge City Council,GPC,11/05/23,2,199, -   ,75,75,24a Ekin Road - gas top up,Communities,60305,Gas,Temporary Accommodation
LIST,Cambridge City Council,GPC,11/05/23,2,199, -   ,75,75,652 Newmarket Road - gas top up,Communities,60305,Gas,Temporary Accommodation
LIST,Cambridge City Council,GPC,12/05/23,3,219, -   ,222.64,222.64,changing table,Communities,61702,"Maintenance - Equipment, Furniture And Materials",The Meadows Community Centre
LIST,Cambridge City Council,GPC,12/05/23,3,225, -   ,48.9,48.9,air fryer for heating and health projec,Communities,62900,Events,Community Resilience
LIST,Cambridge City Council,GPC,12/05/23,7,334, -   ,5.99,5.99,Conference Subsistence (Programming Tea,Communities,64200,Subsistence,Corn Exchange and Guildhalls
LIST,Cambridge City Council,GPC,12/05/23,7,334, -   ,9.45,9.45,Conference Subsistence (Programming Tea,Communities,64200,Subsistence,Corn Exchange and Guildhalls
LIST,Cambridge City Council,GPC,12/05/23,3,212,5.41,27.04,32.45,Smoking Signage,Communities,62004,General Office Expenses,Corn Exchange and Guildhalls
LIST,Cambridge City Council,GPC,12/05/23,2,186, -   ,226.8,226.8,Official Acceptance of Office bound sig,Chief Executive,62003,"Books, Publications And Resources",Members Support
LIST,Cambridge City Council,GPC,12/05/23,3,218,33,165,198,training,Communities,52000,Courses & Training Income,Environmental Health Operational Support
LIST,Cambridge City Council,GPC,12/05/23,3,204, -   ,26.99,26.99,CL new phone,Communities,64077,Telephone And Mobile Phone Costs,DLUHC Homelessness Grants (RSI)
LIST,Cambridge City Council,GPC,12/05/23,3,200, -   ,"1,004.40","1,004.40",Ladder Platform,City Services,61703,"Purchase - Equipment, Furniture And Materials",Grounds Maintenance & Street Cleaning
LIST,Cambridge City Council,GPC,12/05/23,3,228,9.88,49.37,59.25,30 x Magnifying Glasses for education o,City Services,61703,"Purchase - Equipment, Furniture And Materials",S&OS Community Engagement
LIST,Cambridge City Council,GPC,12/05/23,3,200, -   ,209.21,209.21,Birds Mouth Fencing,City Services,62002,Stationery,Building Services - Indirect
LIST,Cambridge City Council,GPC,12/05/23,3,192, -   ,260,260,Joseph Mahon washing machine-Street Aid,Communities,63900,Miscellaneous Expenses,Housing Charity Grant Payments
LIST,Cambridge City Council,GPC,13/05/23,7,334, -   ,12.5,12.5,Conference Subsistence (Programming Tea,Communities,64200,Subsistence,Corn Exchange and Guildhalls
LIST,Cambridge City Council,GPC,13/05/23,7,334, -   ,6,6,Conference Subsistence (Programming Tea,Communities,64200,Subsistence,Corn Exchange and Guildhalls
LIST,Cambridge City Council,GPC,13/05/23,3,212,4.67,23.32,27.99,Clothing Staff Allowance - Shoes,Communities,60012,Employee Allowances,Corn Exchange and Guildhalls
LIST,Cambridge City Council,GPC,13/05/23,7,334, -   ,12.99,12.99,Zoom monthly subscription,Communities,64077,Telephone And Mobile Phone Costs,Folk Festival
LIST,Cambridge City Council,GPC,13/05/23,4,181, -   ,98,98,Bus passes,Communities,60914,Public Transport For Staff And Members,Syrian Resettlement
LIST,Cambridge City Council,GPC,14/05/23,2,189,1.71,8.53,10.24,Sugar for events,Communities,62900,Events,Clay Farm Community Centre
LIST,Cambridge City Council,GPC,14/05/23,3,212, -   ,16.99,16.99,Stationery,Communities,62002,Stationery,Corn Exchange and Guildhalls
LIST,Cambridge City Council,GPC,14/05/23,3,212,7.61,38.02,45.63,Office Misc,Communities,62004,General Office Expenses,Corn Exchange and Guildhalls
LIST,Cambridge City Council,GPC,14/05/23,3,221, -   ,54.48,54.48,Printer Cartridges - Wayne Fergie,City Services,62002,Stationery,Open Space Development
LIST,Cambridge City Council,GPC,15/05/23,2,187, -   ,56.87,56.87,Stationary,City Services,62002,Stationery,Cambridge Crematorium
LIST,Cambridge City Council,GPC,15/05/23,2,189, -   ,83.17,83.17,Adobe Products/licence,Communities,60410,Licences,Clay Farm Community Centre
LIST,Cambridge City Council,GPC,15/05/23,3,203,0.83,4.16,4.99,Stationary - Virtual Leaving Card,Communities,62002,Stationery,Leisure Contract Client Costs
LIST,Cambridge City Council,GPC,15/05/23,3,203, -   ,40,40,MvF Weds 15th May,Communities,60402,Premises Hire - Facilities,Active Lifestyles - Communities (ex Sports Development)
LIST,Cambridge City Council,GPC,15/05/23,4,238, -   ,18,18,Homes for Ukraine,Corporate,62500,Dbs Checks - Non-Staff,Strategic Director #2
LIST,Cambridge City Council,GPC,15/05/23,3,212, -   ,18.59,18.59,London Conference - Travel expenses,Communities,60914,Public Transport For Staff And Members,Corn Exchange and Guildhalls
LIST,Cambridge City Council,GPC,15/05/23,3,211, -   ,96.15,96.15,Facebook,Communities,62005,"Advertising, Publicity And Marketing",Folk Festival
LIST,Cambridge City Council,GPC,15/05/23,3,221, -   ,18.99,18.99,Paper - Wayne Fergie,City Services,62002,Stationery,Open Space Development
LIST,Cambridge City Council,GPC,15/05/23,2,199, -   ,50,50,78 Hanover Court - electric top up,Communities,60303,Electricity,Temporary Accommodation
LIST,Cambridge City Council,GPC,15/05/23,2,199, -   ,50,50,51 Hanover Court - electric top up,Communities,60303,Electricity,Temporary Accommodation
LIST,Cambridge City Council,GPC,15/05/23,2,199, -   ,50,50,130 Kingsway - electric top up,Communities,60303,Electricity,Temporary Accommodation
LIST,Cambridge City Council,GPC,15/05/23,2,199, -   ,50,50,130 Kingsway - electric top up,Communities,60303,Electricity,Temporary Accommodation
LIST,Cambridge City Council,GPC,15/05/23,2,199, -   ,50,50,23 Hanover Court - electric top up,Communities,60303,Electricity,Temporary Accommodation
LIST,Cambridge City Council,GPC,15/05/23,2,199, -   ,50,50,12 Hanover Court - electric top up,Communities,60303,Electricity,Temporary Accommodation
LIST,Cambridge City Council,GPC,15/05/23,2,199, -   ,50,50,12 Hanover Court - electric top up,Communities,60303,Electricity,Temporary Accommodation
LIST,Cambridge City Council,GPC,15/05/23,2,199, -   ,50,50,27 Princess Court - electric top up,Communities,60303,Electricity,Temporary Accommodation
LIST,Cambridge City Council,GPC,15/05/23,4,190, -   ,407,407,Planning Negin Ghorbani 55 dwellings Ro,Corporate,11312,Assets Under Construction Cost,Housing Revenue Account Balance Sheet
LIST,Cambridge City Council,GPC,15/05/23,3,211, -   ,53.85,53.85,Facebook,Communities,62005,"Advertising, Publicity And Marketing",Corn Exchange and Guildhalls
LIST,Cambridge City Council,GPC,15/05/23,3,211, -   ,50,50,Facebook,Communities,62005,"Advertising, Publicity And Marketing",Corn Exchange and Guildhalls
LIST,Cambridge City Council,GPC,16/05/23,3,219, -   ,3.3,3.3,refreshments,Communities,64200,Subsistence,The Meadows Community Centre
LIST,Cambridge City Council,GPC,16/05/23,3,203, -   ,21,21,Online marketing Platform,Communities,64800,Membership And Subscriptions,Active Lifestyles - Communities (ex Sports Development)
LIST,Cambridge City Council,GPC,16/05/23,3,212, -   ,12,12,London Conf - Travel Expenses (Oyster C,Communities,60914,Public Transport For Staff And Members,Corn Exchange and Guildhalls
LIST,Cambridge City Council,GPC,16/05/23,3,212, -   ,5,5,London Conf - Travel Expenses (Oyster c,Communities,60914,Public Transport For Staff And Members,Corn Exchange and Guildhalls
LIST,Cambridge City Council,GPC,16/05/23,3,212, -   ,23.08,23.08,London Conf - Food Allowance,Communities,64300,Conference Expenses,Corn Exchange and Guildhalls
LIST,Cambridge City Council,GPC,16/05/23,3,212, -   ,23.9,23.9,London Conference - Food Allowance,Communities,64300,Conference Expenses,Corn Exchange and Guildhalls
LIST,Cambridge City Council,GPC,16/05/23,3,212,0.37,1.83,2.2,London Conference - Food Allowance,Communities,64300,Conference Expenses,Corn Exchange and Guildhalls
LIST,Cambridge City Council,GPC,16/05/23,3,218,10,50,60,Subscription,Communities,64200,Subsistence,Environmental Health Operational Support
LIST,Cambridge City Council,GPC,16/05/23,3,204, -   ,49.99,49.99,Hoover - street aid grant,Communities,63900,Miscellaneous Expenses,DLUHC Homelessness Grants (RSI)
LIST,Cambridge City Council,GPC,16/05/23,2,199, -   ,45.81,45.81,Lock parts for TA unit,City Services,61703,"Purchase - Equipment, Furniture And Materials",Building Maintenance Response - Direct
LIST,Cambridge City Council,GPC,16/05/23,2,183, -   ,424,424,Payment of overdue parking charge for f,Place,63900,Miscellaneous Expenses,Facilities Management
LIST,Cambridge City Council,GPC,16/05/23,2,194, -   ,45.73,45.73,CR123R Batteries for apperio wireless l,Place,60201,Cyclical/Planned Maintenance - Building,Guildhall
LIST,Cambridge City Council,GPC,17/05/23,2,197,2.58,12.87,15.45,AS Community Breakfast,Communities,64200,Subsistence,Community Resilience
LIST,Cambridge City Council,GPC,17/05/23,3,203,2.6,12.99,15.59,Online Coaching Platform,Communities,62005,"Advertising, Publicity And Marketing",Active Lifestyles - Projects
LIST,Cambridge City Council,GPC,17/05/23,3,227, -   ,29.1,29.1,Train London Conference,Communities,60914,Public Transport For Staff And Members,Corn Exchange and Guildhalls
LIST,Cambridge City Council,GPC,17/05/23,2,188, -   ,120,120,Training course,Communities,60115,Staff Development And Training,Corn Exchange and Guildhalls
LIST,Cambridge City Council,GPC,17/05/23,3,192, -   ,42,42,2 pairs of trousers for Nick Pritchard,Communities,63900,Miscellaneous Expenses,DLUHC Homelessness Grants (RSI)
LIST,Cambridge City Council,GPC,17/05/23,4,181, -   ,98,98,Bus passes,Communities,60914,Public Transport For Staff And Members,Syrian Resettlement
LIST,Cambridge City Council,GPC,17/05/23,2,199, -   ,267.5,267.5,Argos order for Ronald Peel - homeless,Communities,63900,Miscellaneous Expenses,Homelessness Prevention Grant
LIST,Cambridge City Council,GPC,17/05/23,3,228,5,25,30,"Replacement lock removed from bicycle,",City Services,61703,"Purchase - Equipment, Furniture And Materials",S&OS Community Engagement
LIST,Cambridge City Council,GPC,17/05/23,2,199, -   ,154,154,Curtains for 21 Dittonfields - RSAP pro,Corporate,61703,"Purchase - Equipment, Furniture And Materials",Housing Revenue Account - Net Cost of Service
LIST,Cambridge City Council,GPC,18/05/23,2,187, -   ,15.99,15.99,Stationary,City Services,62002,Stationery,Cambridge Crematorium
LIST,Cambridge City Council,GPC,18/05/23,2,195,4.9,24.5,29.4,Flip Chart Paper,Communities,61703,"Purchase - Equipment, Furniture And Materials",Brown's Field Youth and Community Centre
LIST,Cambridge City Council,GPC,18/05/23,2,189, -   ,99.99,99.99,Canva Licence,Communities,60410,Licences,Clay Farm Community Centre
LIST,Cambridge City Council,GPC,18/05/23,3,203, -   ,"1,200.00","1,200.00",External Bistro Chairs for pavilion Ver,Communities,61703,"Purchase - Equipment, Furniture And Materials",Sport & Recreation Administration
LIST,Cambridge City Council,GPC,18/05/23,3,204, -   ,18,18,Taxi - Emmaus appointment,Communities,63900,Miscellaneous Expenses,DLUHC Homelessness Grants (RSI)
LIST,Cambridge City Council,GPC,18/05/23,3,204, -   ,185,185,Emmaus solidarity pack and extra furnit,Communities,63900,Miscellaneous Expenses,DLUHC Homelessness Grants (RSI)
LIST,Cambridge City Council,GPC,18/05/23,3,230,0.67,3.33,4,soft play sand midi packcambridge retai,City Services,61703,"Purchase - Equipment, Furniture And Materials",S&OS Community Engagement
LIST,Cambridge City Council,GPC,18/05/23,3,228,6.67,33.32,39.99,Grappling Hook for Community Engagement,City Services,61703,"Purchase - Equipment, Furniture And Materials",S&OS Community Engagement
LIST,Cambridge City Council,GPC,18/05/23,2,199, -   ,50,50,23 Hanover Court - electric top up,Communities,60303,Electricity,Temporary Accommodation
LIST,Cambridge City Council,GPC,18/05/23,2,199, -   ,50,50,12 Hanover Court - electric top up,Communities,60303,Electricity,Temporary Accommodation
LIST,Cambridge City Council,GPC,18/05/23,2,199, -   ,50,50,78a Chalmers Road - electric top up,Communities,60303,Electricity,Temporary Accommodation
LIST,Cambridge City Council,GPC,18/05/23,2,199, -   ,50,50,78 Hanover Court - electric top up,Communities,60303,Electricity,Temporary Accommodation
LIST,Cambridge City Council,GPC,18/05/23,2,199, -   ,50,50,51 Hanover Court - electric top up,Communities,60303,Electricity,Temporary Accommodation
LIST,Cambridge City Council,GPC,18/05/23,2,199, -   ,50,50,12 Hanover Court - electric top up,Communities,60303,Electricity,Temporary Accommodation
LIST,Cambridge City Council,GPC,18/05/23,3,202,4.83,24.15,28.98,"Printer toner for non-3CICT printer, us",Corporate,62001,Printing,Business Support - Centralised Overheads
LIST,Cambridge City Council,GPC,18/05/23,2,186, -   ,48.55,48.55,Refreshments for new councillor network,Corporate,64200,Subsistence,Business Support - Centralised Overheads
LIST,Cambridge City Council,GPC,18/05/23,2,186, -   ,7.85,7.85,Refreshments for new councillor network,Corporate,64200,Subsistence,Business Support - Centralised Overheads
LIST,Cambridge City Council,GPC,19/05/23,3,234,13.51,67.54,81.05,tools,City Services,61702,"Maintenance - Equipment, Furniture And Materials",City Cambridge Cemeteries
LIST,Cambridge City Council,GPC,19/05/23,5,280, -   ,57.87,57.87,Stationery,City Services,62002,Stationery,Cambridge Crematorium
LIST,Cambridge City Council,GPC,19/05/23,3,227, -   ,35.95,35.95,Stationery,Communities,62002,Stationery,Corn Exchange and Guildhalls
LIST,Cambridge City Council,GPC,19/05/23,3,236, -   ,18.4,18.4,LD taxi to Emmaus,Communities,60913,Public Transport For Clients,DLUHC Homelessness Grants (RSI)
LIST,Cambridge City Council,GPC,19/05/23,3,224, -   ,41.81,41.81,Food for Annual Council,Corporate,64200,Subsistence,Business Support - Centralised Overheads
LIST,Cambridge City Council,GPC,20/05/23,3,231,3.8,19,22.8,Online Booking System,Communities,62005,"Advertising, Publicity And Marketing",Active Lifestyles - Projects
LIST,Cambridge City Council,GPC,20/05/23,5,253, -   ,3.85,3.85,Facebook,Communities,62005,"Advertising, Publicity And Marketing",Folk Festival
LIST,Cambridge City Council,GPC,20/05/23,3,228,1.5,7.49,8.99,"Monthly charge for Amazon Prime, speeds",City Services,61703,"Purchase - Equipment, Furniture And Materials",Grounds Maintenance & Street Cleaning
LIST,Cambridge City Council,GPC,20/05/23,5,253, -   ,39.3,39.3,Facebook,Communities,62005,"Advertising, Publicity And Marketing",Corn Exchange and Guildhalls
LIST,Cambridge City Council,GPC,20/05/23,5,253, -   ,88.21,88.21,Facebook,Communities,62005,"Advertising, Publicity And Marketing",Corn Exchange and Guildhalls
LIST,Cambridge City Council,GPC,21/05/23,3,226,7.01,35.02,42.03,Craft Supplies for Event,Communities,62900,Events,Clay Farm Community Centre
LIST,Cambridge City Council,GPC,21/05/23,3,226,1.05,5.24,6.29,Craft Supplies for event,Communities,62900,Events,Clay Farm Community Centre
LIST,Cambridge City Council,GPC,21/05/23,4,181, -   ,98,98,Bus passes,Communities,60914,Public Transport For Staff And Members,Syrian Resettlement
LIST,Cambridge City Council,GPC,21/05/23,4,181, -   ,63,63,Bus passes,Communities,60914,Public Transport For Staff And Members,Syrian Resettlement
LIST,Cambridge City Council,GPC,22/05/23,4,247, -   ,3.3,3.3,refreshments,Communities,64200,Subsistence,The Meadows Community Centre
LIST,Cambridge City Council,GPC,22/05/23,3,231, -   ,40,40,MvF Weds,Communities,60402,Premises Hire - Facilities,Active Lifestyles - Communities (ex Sports Development)
LIST,Cambridge City Council,GPC,22/05/23,7,334, -   ,415.1,415.1,City Events Conference Accommodation,Communities,64800,Membership And Subscriptions,City Events
LIST,Cambridge City Council,GPC,22/05/23,3,236, -   ,25,25,Taxi to move items out to TA to support,Communities,63900,Miscellaneous Expenses,DLUHC Homelessness Grants (RSI)
LIST,Cambridge City Council,GPC,22/05/23,3,236, -   ,4.19,4.19,Bin liners To help move accommodation,Communities,63900,Miscellaneous Expenses,DLUHC Homelessness Grants (RSI)
LIST,Cambridge City Council,GPC,22/05/23,4,232, -   ,50,50,130 Kingsway - electric top up,Communities,60303,Electricity,Temporary Accommodation
LIST,Cambridge City Council,GPC,22/05/23,4,232, -   ,50,50,78 Hanover Court - electric top up,Communities,60303,Electricity,Temporary Accommodation
LIST,Cambridge City Council,GPC,22/05/23,4,232, -   ,50,50,23 Hanover Court - electric top up,Communities,60303,Electricity,Temporary Accommodation
LIST,Cambridge City Council,GPC,22/05/23,4,232, -   ,50,50,51 Hanover Court - electric top up,Communities,60303,Electricity,Temporary Accommodation
LIST,Cambridge City Council,GPC,22/05/23,4,232, -   ,50,50,34 Fanshawe Road - electric top up,Communities,60303,Electricity,Temporary Accommodation
LIST,Cambridge City Council,GPC,22/05/23,4,232, -   ,50,50,77 Birdwood Road - electric top up,Communities,60303,Electricity,Temporary Accommodation
LIST,Cambridge City Council,GPC,22/05/23,4,232, -   ,49,49,78a Chalmers Road - electric top up,Communities,60303,Electricity,Temporary Accommodation
LIST,Cambridge City Council,GPC,22/05/23,4,232, -   ,50,50,29a Ekin Road - electric top up,Communities,60303,Electricity,Temporary Accommodation
LIST,Cambridge City Council,GPC,22/05/23,4,232, -   ,50,50,130 Kingsway - electric top up,Communities,60303,Electricity,Temporary Accommodation
LIST,Cambridge City Council,GPC,22/05/23,4,246, -   ,12.94,12.94,Child Safety Locks,City Services,61703,"Purchase - Equipment, Furniture And Materials",Building Maintenance Response - Direct
LIST,Cambridge City Council,GPC,22/05/23,2,LEDGER EV, -   ,-64.95,-64.95,,Corporate,80009,Disbursement Control - Events,General Fund Balance Sheet
LIST,Cambridge City Council,GPC,22/05/23,2,172, -   ,64.95,64.95,,Corporate,80009,Disbursement Control - Events,General Fund Balance Sheet
LIST,Cambridge City Council,GPC,22/05/23,4,232, -   ,99,99,8 Ekin Road - gas top up,Communities,60305,Gas,Temporary Accommodation
LIST,Cambridge City Council,GPC,22/05/23,4,232, -   ,99,99,16 Ekin Road - gas top up,Communities,60305,Gas,Temporary Accommodation
LIST,Cambridge City Council,GPC,22/05/23,4,232, -   ,99,99,85 Ekin Road - gas top up,Communities,60305,Gas,Temporary Accommodation
LIST,Cambridge City Council,GPC,22/05/23,4,232, -   ,75,75,652 Newmarket Road - gas top up,Communities,60305,Gas,Temporary Accommodation
LIST,Cambridge City Council,GPC,22/05/23,4,232, -   ,75,75,652 Newmarket Road - gas top up,Communities,60305,Gas,Temporary Accommodation
LIST,Cambridge City Council,GPC,22/05/23,4,232, -   ,99,99,2 Tuscan Court - gas top up,Communities,60305,Gas,Temporary Accommodation
LIST,Cambridge City Council,GPC,22/05/23,2,175, -   ,128,128,,Corporate,80009,Disbursement Control - Events,General Fund Balance Sheet
LIST,Cambridge City Council,GPC,22/05/23,2,LEDGER EV, -   ,-128,-128,,Corporate,80009,Disbursement Control - Events,General Fund Balance Sheet
LIST,Cambridge City Council,GPC,22/05/23,2,176, -   ,92.08,92.08,,Corporate,80009,Disbursement Control - Events,General Fund Balance Sheet
LIST,Cambridge City Council,GPC,22/05/23,2,LEDGER EV, -   ,-92.08,-92.08,,Corporate,80009,Disbursement Control - Events,General Fund Balance Sheet
LIST,Cambridge City Council,GPC,23/05/23,3,226, -   ,8.05,8.05,Play Dough Cutter for event,Communities,62900,Events,Clay Farm Community Centre
LIST,Cambridge City Council,GPC,23/05/23,3,242,95,475,570,Install of AQ equipment,Communities,61703,"Purchase - Equipment, Furniture And Materials",Environmental Health Operational Support
LIST,Cambridge City Council,GPC,23/05/23,3,223,8.59,42.92,51.51,Boltcutters,City Services,61703,"Purchase - Equipment, Furniture And Materials",Grand Arcade Car Park
LIST,Cambridge City Council,GPC,23/05/23,3,223,1.67,8.32,9.99,Charging cables,City Services,61703,"Purchase - Equipment, Furniture And Materials",Parking Administration
LIST,Cambridge City Council,GPC,23/05/23,3,223,9.86,49.32,59.18,USB charger and bodycam harness,City Services,64070,ICT Hardware,Parking Administration
LIST,Cambridge City Council,GPC,23/05/23,3,230,2.33,11.67,14,water for volunteers,City Services,61703,"Purchase - Equipment, Furniture And Materials",S&OS Community Engagement
LIST,Cambridge City Council,GPC,23/05/23,4,252, -   ,455,455,"Debt Recovery - Mr & Mrs Hrnjijic, 18a",Communities,62400,Consultancy Fees,Leasehold Property Management
LIST,Cambridge City Council,GPC,23/05/23,4,246, -   ,8.88,8.88,Fuses,City Services,61703,"Purchase - Equipment, Furniture And Materials",Building Maintenance Response - Direct
LIST,Cambridge City Council,GPC,24/05/23,3,237,9.49,47.43,56.92,First Aid Boxes (supplies),City Services,60207,Health And Safety Supplies And Services,Bereavement Services Central Costs
LIST,Cambridge City Council,GPC,24/05/23,4,249, -   ,14.83,14.83,Akeman Community Breakfast supplies,Communities,64200,Subsistence,Community Resilience
LIST,Cambridge City Council,GPC,24/05/23,3,225, -   ,341.87,341.87,buffet for volunteer thank you event,Communities,62900,Events,Community Resilience
LIST,Cambridge City Council,GPC,24/05/23,4,238, -   ,18,18,Homes for Ukraine,Corporate,62500,Dbs Checks - Non-Staff,Strategic Director #2
LIST,Cambridge City Council,GPC,24/05/23,4,238, -   ,18,18,Homes for Ukraine,Corporate,62500,Dbs Checks - Non-Staff,Strategic Director #2
LIST,Cambridge City Council,GPC,24/05/23,7,334,21.47,107.35,128.82,Jotform Monthly Subscription,Communities,64800,Membership And Subscriptions,Folk Festival
LIST,Cambridge City Council,GPC,24/05/23,4,181, -   ,98,98,Bus passes,Communities,60914,Public Transport For Staff And Members,Syrian Resettlement
LIST,Cambridge City Council,GPC,24/05/23,4,181, -   ,98,98,Bus passes,Communities,60914,Public Transport For Staff And Members,Syrian Resettlement
LIST,Cambridge City Council,GPC,24/05/23,4,181, -   ,98,98,Bus passes,Communities,60914,Public Transport For Staff And Members,Syrian Resettlement
LIST,Cambridge City Council,GPC,24/05/23,3,236, -   ,270,270,AM Bed (street aid grant),Communities,63900,Miscellaneous Expenses,Housing Charity Grant Payments
LIST,Cambridge City Council,GPC,24/05/23,3,240, -   ,59,59,"Removal van for Alec Moss, Street Aid G",Communities,63900,Miscellaneous Expenses,Housing Charity Grant Payments
LIST,Cambridge City Council,GPC,24/05/23,3,240, -   ,17,17,Additional cost for removal van-due to,Communities,63900,Miscellaneous Expenses,Housing Charity Grant Payments
LIST,Cambridge City Council,GPC,25/05/23,3,234,2.26,11.3,13.56,water hose attachment,City Services,60503,Grounds Maintenance,City Cambridge Cemeteries
LIST,Cambridge City Council,GPC,25/05/23,3,234,1.68,8.39,10.07,hose attachment,City Services,60503,Grounds Maintenance,City Cambridge Cemeteries
LIST,Cambridge City Council,GPC,25/05/23,3,234,1.33,6.66,7.99,hose attachment,City Services,60503,Grounds Maintenance,City Cambridge Cemeteries
LIST,Cambridge City Council,GPC,25/05/23,3,234,4,20,24,shrubs,City Services,60503,Grounds Maintenance,City Cambridge Cemeteries
LIST,Cambridge City Council,GPC,25/05/23,3,234,5.8,28.97,34.77,strimmer mowing head,City Services,61702,"Maintenance - Equipment, Furniture And Materials",City Cambridge Cemeteries
LIST,Cambridge City Council,GPC,25/05/23,5,280, -   ,58.86,58.86,Cleaning Products,City Services,61703,"Purchase - Equipment, Furniture And Materials",Cambridge Crematorium
LIST,Cambridge City Council,GPC,25/05/23,4,247, -   ,137.13,137.13,refreshments,Communities,64200,Subsistence,The Meadows Community Centre
LIST,Cambridge City Council,GPC,25/05/23,4,247, -   ,3.3,3.3,refreshments,Communities,64200,Subsistence,The Meadows Community Centre
LIST,Cambridge City Council,GPC,25/05/23,3,225, -   ,79.14,79.14,items for community cupboard,Communities,62900,Events,Neighbourhood Community Development
LIST,Cambridge City Council,GPC,25/05/23,4,232, -   ,50,50,51 Hanover Court - electric top up,Communities,60303,Electricity,Temporary Accommodation
LIST,Cambridge City Council,GPC,25/05/23,4,232, -   ,50,50,78a Chalmers Road - electric top up,Communities,60303,Electricity,Temporary Accommodation
LIST,Cambridge City Council,GPC,25/05/23,4,232, -   ,50,50,51 Hanover Court - electric top up,Communities,60303,Electricity,Temporary Accommodation
LIST,Cambridge City Council,GPC,25/05/23,3,240, -   ,210,210,Fridge freezer for Alec Moss-Street Aid,Communities,63900,Miscellaneous Expenses,Housing Charity Grant Payments
LIST,Cambridge City Council,GPC,25/05/23,5,265, -   ,234,234,ERG Facilities,Corporate,11312,Assets Under Construction Cost,Housing Revenue Account Balance Sheet
LIST,Cambridge City Council,GPC,25/05/23,5,254, -   ,4.55,4.55,Facebook,Communities,62005,"Advertising, Publicity And Marketing",Corn Exchange and Guildhalls
LIST,Cambridge City Council,GPC,25/05/23,5,254, -   ,111.79,111.79,Facebook,Communities,62005,"Advertising, Publicity And Marketing",Corn Exchange and Guildhalls
LIST,Cambridge City Council,GPC,25/05/23,5,254, -   ,77.1,77.1,Facebook,Communities,62005,"Advertising, Publicity And Marketing",Corn Exchange and Guildhalls
LIST,Cambridge City Council,GPC,25/05/23,5,254, -   ,3.1,3.1,Facebook,Communities,62005,"Advertising, Publicity And Marketing",Corn Exchange and Guildhalls
LIST,Cambridge City Council,GPC,25/05/23,5,254, -   ,3.46,3.46,Facebook,Communities,62005,"Advertising, Publicity And Marketing",Corn Exchange and Guildhalls
LIST,Cambridge City Council,GPC,26/05/23,4,247, -   ,117.9,117.9,materials and equipment,Communities,61703,"Purchase - Equipment, Furniture And Materials",The Meadows Community Centre
LIST,Cambridge City Council,GPC,26/05/23,10,399, -   ,50.01,50.01,TEVERSHAM SF CONNECT-CAMBRIDGE,Communities,60902,Transport Fuel,City Events
LIST,Cambridge City Council,GPC,26/05/23,3,236, -   ,25,25,AP taxi to move items out of TA,Communities,63900,Miscellaneous Expenses,DLUHC Homelessness Grants (RSI)
LIST,Cambridge City Council,GPC,26/05/23,4,232, -   ,84,84,Curtains - RSAP property,Corporate,61703,"Purchase - Equipment, Furniture And Materials",Housing Revenue Account - Net Cost of Service
LIST,Cambridge City Council,GPC,26/05/23,5,245, -   ,24.95,24.95,Parking for Procurex at NEC Birmingham,Corporate,63900,Miscellaneous Expenses,Procurement
LIST,Cambridge City Council,GPC,27/05/23,4,255, -   ,55.52,55.52,Facebook,Communities,62005,"Advertising, Publicity And Marketing",Folk Festival
LIST,Cambridge City Council,GPC,27/05/23,4,255, -   ,21.96,21.96,Facebook,Communities,62005,"Advertising, Publicity And Marketing",Corn Exchange and Guildhalls
LIST,Cambridge City Council,GPC,27/05/23,4,255, -   ,56.75,56.75,Facebook,Communities,62005,"Advertising, Publicity And Marketing",Corn Exchange and Guildhalls
LIST,Cambridge City Council,GPC,27/05/23,4,255, -   ,32.78,32.78,Facebook,Communities,62005,"Advertising, Publicity And Marketing",Corn Exchange and Guildhalls
LIST,Cambridge City Council,GPC,27/05/23,4,255, -   ,32.99,32.99,Facebook,Communities,62005,"Advertising, Publicity And Marketing",Corn Exchange and Guildhalls
LIST,Cambridge City Council,GPC,28/05/23,5,248, -   ,64.99,64.99,publicity marketing platform,Communities,63900,Miscellaneous Expenses,Neighbourhood Community Development
LIST,Cambridge City Council,GPC,28/05/23,7,334, -   ,64,64,Region of Learning Squarespace Subscrip,Chief Executive,64071,ICT Software,Cambridgeshire and Peterborough Region of Learning
LIST,Cambridge City Council,GPC,29/05/23,5,280, -   ,27.03,27.03,Cleaning,City Services,61703,"Purchase - Equipment, Furniture And Materials",Cambridge Crematorium
LIST,Cambridge City Council,GPC,29/05/23,3,231, -   ,40,40,MvF Weds,Communities,60402,Premises Hire - Facilities,Active Lifestyles - Communities (ex Sports Development)
LIST,Cambridge City Council,GPC,29/05/23,3,231, -   ,99.75,99.75,Step Challenge Books,Communities,62404,Instructors/Tutors,Active Lifestyles - Communities (ex Sports Development)
LIST,Cambridge City Council,GPC,29/05/23,3,227,22.97,114.86,137.83,Staff Safety Boots,Communities,60012,Employee Allowances,Corn Exchange and Guildhalls
LIST,Cambridge City Council,GPC,29/05/23,3,227,20.19,100.93,121.12,Staff Safety Boots,Communities,60012,Employee Allowances,Corn Exchange and Guildhalls
LIST,Cambridge City Council,GPC,29/05/23,4,181, -   ,98,98,Bus passes,Communities,60914,Public Transport For Staff And Members,Syrian Resettlement
LIST,Cambridge City Council,GPC,30/05/23,5,280, -   ,2.6,2.6,Postage,City Services,64100,Postage And Courier Services,Bereavement Services Central Costs
LIST,Cambridge City Council,GPC,30/05/23,4,247, -   ,3.3,3.3,refreshments,Communities,64200,Subsistence,The Meadows Community Centre
LIST,Cambridge City Council,GPC,30/05/23,3,226,3.33,16.64,19.97,Craft supplies for event,Communities,62900,Events,Clay Farm Community Centre
LIST,Cambridge City Council,GPC,30/05/23,3,225, -   ,61.3,61.3,drinks and refreshments for volunteer t,Communities,62900,Events,Community Resilience
LIST,Cambridge City Council,GPC,30/05/23,4,238, -   ,18,18,Homes for Ukraine,Corporate,62500,Dbs Checks - Non-Staff,Strategic Director #2
LIST,Cambridge City Council,GPC,30/05/23,4,238, -   ,18,18,Homes for Ukraine,Corporate,62500,Dbs Checks - Non-Staff,Strategic Director #2
LIST,Cambridge City Council,GPC,30/05/23,3,227, -   ,31.46,31.46,Staff Safety Boots,Communities,60012,Employee Allowances,Corn Exchange and Guildhalls
LIST,Cambridge City Council,GPC,30/05/23,3,227, -   ,31.46,31.46,Staff Safety Boots,Communities,60012,Employee Allowances,Corn Exchange and Guildhalls
LIST,Cambridge City Council,GPC,30/05/23,4,256, -   ,73.81,73.81,Facebook,Communities,62005,"Advertising, Publicity And Marketing",Folk Festival
LIST,Cambridge City Council,GPC,30/05/23,3,242,10,50,60,Noise Training,Communities,60115,Staff Development And Training,Environmental Health Operational Support
LIST,Cambridge City Council,GPC,30/05/23,3,240, -   ,11,11,Birth Certificate for Martyn Gilroy,Communities,63900,Miscellaneous Expenses,DLUHC Homelessness Grants (RSI)
LIST,Cambridge City Council,GPC,30/05/23,3,240, -   ,11,11,Shirella Bee Birth Certificate,Communities,63900,Miscellaneous Expenses,DLUHC Homelessness Grants (RSI)
LIST,Cambridge City Council,GPC,30/05/23,3,236, -   ,96.96,96.96,PG clothing (street aid),Communities,63900,Miscellaneous Expenses,Housing Charity Grant Payments
LIST,Cambridge City Council,GPC,30/05/23,3,236, -   ,37.98,37.98,Amazon fire stick (street aid grant),Communities,63900,Miscellaneous Expenses,Housing Charity Grant Payments
LIST,Cambridge City Council,GPC,30/05/23,3,240, -   ,165,165,Curtains and curtain poles for Alec Mos,Communities,63900,Miscellaneous Expenses,Housing Charity Grant Payments
LIST,Cambridge City Council,GPC,30/05/23,4,256, -   ,13.76,13.76,Facebook,Communities,62005,"Advertising, Publicity And Marketing",Corn Exchange and Guildhalls
LIST,Cambridge City Council,GPC,30/05/23,4,256, -   ,13.91,13.91,Facebook,Communities,62005,"Advertising, Publicity And Marketing",Corn Exchange and Guildhalls
LIST,Cambridge City Council,GPC,30/05/23,4,256, -   ,27.3,27.3,Facebook,Communities,62005,"Advertising, Publicity And Marketing",Corn Exchange and Guildhalls
LIST,Cambridge City Council,GPC,30/05/23,4,256, -   ,71.22,71.22,Facebook,Communities,62005,"Advertising, Publicity And Marketing",Corn Exchange and Guildhalls
LIST,Cambridge City Council,GPC,31/05/23,5,280, -   ,16,16,Stationery,City Services,62002,Stationery,Cambridge Crematorium
LIST,Cambridge City Council,GPC,31/05/23,3,225, -   ,202.8,202.8,yearly charge for cupboard online,Communities,62900,Events,Neighbourhood Community Development
LIST,Cambridge City Council,GPC,31/05/23,3,226, -   ,23.65,23.65,Food for event,Communities,62900,Events,Clay Farm Community Centre
LIST,Cambridge City Council,GPC,31/05/23,3,231, -   ,82.69,82.69,Online Coaching Platform,Communities,64800,Membership And Subscriptions,Active Lifestyles - Communities (ex Sports Development)
LIST,Cambridge City Council,GPC,31/05/23,3,240, -   ,-7,-7,Partial refund of birth certificate as,Communities,63900,Miscellaneous Expenses,DLUHC Homelessness Grants (RSI)
LIST,Cambridge City Council,GPC,31/05/23,4,246, -   ,262.32,262.32,Polycarbonate Sheets,City Services,61703,"Purchase - Equipment, Furniture And Materials",Building Maintenance Response - Direct
LIST,Cambridge City Council,GPC,01/06/23,3,239,30.27,151.32,181.59,Safety clothing - shoes,City Services,62000,"Clothes, Uniform And Laundry",Fleet Management - Operational
LIST,Cambridge City Council,GPC,01/06/23,4,247, -   ,226.77,226.77,equipment,Communities,61703,"Purchase - Equipment, Furniture And Materials",The Meadows Community Centre
LIST,Cambridge City Council,GPC,01/06/23,4,247, -   ,184.97,184.97,equipment,Communities,61703,"Purchase - Equipment, Furniture And Materials",The Meadows Community Centre
LIST,Cambridge City Council,GPC,01/06/23,3,226, -   ,7,7,Food for event,Communities,62900,Events,Neighbourhood Community Development
LIST,Cambridge City Council,GPC,01/06/23,3,226, -   ,8.99,8.99,PRIME Subscription,Communities,60410,Licences,Clay Farm Community Centre
LIST,Cambridge City Council,GPC,01/06/23,4,257, -   ,133.51,133.51,Google ads,Communities,62005,"Advertising, Publicity And Marketing",Folk Festival
LIST,Cambridge City Council,GPC,01/06/23,3,242,2.5,12.47,14.97,Equipment,Communities,61703,"Purchase - Equipment, Furniture And Materials",Environmental Health Operational Support
LIST,Cambridge City Council,GPC,01/06/23,3,240, -   ,89,89,Joseph Mahon Cooker-Street Aid Grant,Communities,63900,Miscellaneous Expenses,DLUHC Homelessness Grants (RSI)
LIST,Cambridge City Council,GPC,01/06/23,4,181, -   ,98,98,Bus passes,Communities,60914,Public Transport For Staff And Members,Syrian Resettlement
LIST,Cambridge City Council,GPC,01/06/23,3,233,148,740,888,Replacement Benches for Brandon Court,Corporate,61703,"Purchase - Equipment, Furniture And Materials",Housing Revenue Account - Net Cost of Service
LIST,Cambridge City Council,GPC,01/06/23,4,232, -   ,50,50,27 Princess Court - electric top up,Communities,60303,Electricity,Temporary Accommodation
LIST,Cambridge City Council,GPC,01/06/23,4,232, -   ,50,50,51 Hanover Court - electric top up,Communities,60303,Electricity,Temporary Accommodation
LIST,Cambridge City Council,GPC,01/06/23,4,232, -   ,50,50,78 Hanover Court - electric top up,Communities,60303,Electricity,Temporary Accommodation
LIST,Cambridge City Council,GPC,01/06/23,4,232, -   ,50,50,23 Hanover Court - electric top up,Communities,60303,Electricity,Temporary Accommodation
LIST,Cambridge City Council,GPC,01/06/23,4,232, -   ,50,50,33 Hawthorn Way - electric top up,Communities,60303,Electricity,Temporary Accommodation
LIST,Cambridge City Council,GPC,01/06/23,4,232, -   ,50,50,78a Chalmers Road - electric top up,Communities,60303,Electricity,Temporary Accommodation
LIST,Cambridge City Council,GPC,01/06/23,4,232, -   ,99,99,33 Hawthorn Way - gas top up,Communities,60305,Gas,Temporary Accommodation
LIST,Cambridge City Council,GPC,01/06/23,3,240, -   ,310,310,Joseph Mahon Cooker-Street Aid Grant,Communities,63900,Miscellaneous Expenses,Housing Charity Grant Payments
LIST,Cambridge City Council,GPC,02/06/23,3,225, -   ,291.58,291.58,new batteries for music bins,Communities,62900,Events,Neighbourhood Community Development
LIST,Cambridge City Council,GPC,02/06/23,3,227,12.49,62.46,74.95,Bar Jugs,Communities,61900,Catering And Vending Supplies,Corn Exchange and Guildhalls
LIST,Cambridge City Council,GPC,02/06/23,3,227,8.45,42.22,50.67,Bar Jugs,Communities,61900,Catering And Vending Supplies,Corn Exchange and Guildhalls
LIST,Cambridge City Council,GPC,02/06/23,3,227, -   ,25.98,25.98,Bar Scoops,Communities,61900,Catering And Vending Supplies,Corn Exchange and Guildhalls
LIST,Cambridge City Council,GPC,02/06/23,3,228,3.52,17.61,21.13,Holdall for carrying Community Engageme,City Services,61703,"Purchase - Equipment, Furniture And Materials",S&OS Community Engagement
LIST,Cambridge City Council,GPC,02/06/23,3,233,46.66,233.32,279.98,2 x sets of garden furniture for Brando,Corporate,61703,"Purchase - Equipment, Furniture And Materials",Housing Revenue Account - Net Cost of Service
LIST,Cambridge City Council,GPC,02/06/23,3,233,7.16,35.79,42.95,Wheeled back pack for ILF,Communities,61703,"Purchase - Equipment, Furniture And Materials",Independent Living Services Management Costs
LIST,Cambridge City Council,GPC,02/06/23,4,246, -   ,"1,668.00","1,668.00",Napit Subscriptions,City Services,64800,Membership And Subscriptions,Asset Management and Compliance
LIST,Cambridge City Council,GPC,02/06/23,3,236, -   ,114,114,Rug/Lamps (street aid grant),Communities,63900,Miscellaneous Expenses,Housing Charity Grant Payments
LIST,Cambridge City Council,GPC,02/06/23,3,224, -   ,9.8,9.8,Refreshments for Mayor,Corporate,64200,Subsistence,Business Support - Centralised Overheads
LIST,Cambridge City Council,GPC,02/06/23,4,259, -   ,0.59,0.59,Amazon,Communities,64073,ICT Maintenance and Support,Culture and Community
LIST,Cambridge City Council,GPC,03/06/23,10,399, -   ,95.88,95.88,Dropbox-db.tt/cchelp,Communities,64800,Membership And Subscriptions,City Events
LIST,Cambridge City Council,GPC,03/06/23,4,260, -   ,70.67,70.67,Facebook,Communities,62005,"Advertising, Publicity And Marketing",Folk Festival
LIST,Cambridge City Council,GPC,03/06/23,4,260, -   ,16.22,16.22,Facebook,Communities,62005,"Advertising, Publicity And Marketing",Corn Exchange and Guildhalls
LIST,Cambridge City Council,GPC,03/06/23,4,260, -   ,45.63,45.63,Facebook,Communities,62005,"Advertising, Publicity And Marketing",Corn Exchange and Guildhalls
LIST,Cambridge City Council,GPC,03/06/23,4,260, -   ,67.48,67.48,Facebook,Communities,62005,"Advertising, Publicity And Marketing",Corn Exchange and Guildhalls
LIST,Cambridge City Council,GPC,04/06/23,4,247, -   ,15.28,15.28,equipment,Communities,61703,"Purchase - Equipment, Furniture And Materials",The Meadows Community Centre
LIST,Cambridge City Council,GPC,04/06/23,3,227,1.17,5.82,6.99,Bar Speed Pourers,Communities,61900,Catering And Vending Supplies,Corn Exchange and Guildhalls
LIST,Cambridge City Council,GPC,04/06/23,3,242,6.37,31.87,38.24,Equipment,Communities,61703,"Purchase - Equipment, Furniture And Materials",Environmental Health Operational Support
LIST,Cambridge City Council,GPC,04/06/23,4,181, -   ,98,98,Bus passes,Communities,60914,Public Transport For Staff And Members,Syrian Resettlement
LIST,Cambridge City Council,GPC,05/06/23,3,234,26.95,134.73,161.68,granite setts for family gardens,City Services,60503,Grounds Maintenance,City Cambridge Cemeteries
LIST,Cambridge City Council,GPC,05/06/23,4,247, -   ,4.2,4.2,refreshments,Communities,64200,Subsistence,The Meadows Community Centre
LIST,Cambridge City Council,GPC,05/06/23,3,226,15.41,77.07,92.48,Cleaning Materials,Communities,61300,Cleaning Materials,Clay Farm Community Centre
LIST,Cambridge City Council,GPC,05/06/23,3,226,11,54.98,65.98,Storage Baskets,Communities,61703,"Purchase - Equipment, Furniture And Materials",Clay Farm Community Centre
LIST,Cambridge City Council,GPC,05/06/23,3,226,41.86,209.32,251.18,Carpet Cleaner,Communities,61703,"Purchase - Equipment, Furniture And Materials",Clay Farm Community Centre
LIST,Cambridge City Council,GPC,05/06/23,3,231, -   ,40,40,MvF weds,Communities,60402,Premises Hire - Facilities,Active Lifestyles - Communities (ex Sports Development)
LIST,Cambridge City Council,GPC,05/06/23,3,227,6.33,31.65,37.98,Bar Stuff,Communities,61900,Catering And Vending Supplies,Corn Exchange and Guildhalls
LIST,Cambridge City Council,GPC,05/06/23,3,227,3.17,15.82,18.99,Bar Stuff,Communities,61900,Catering And Vending Supplies,Corn Exchange and Guildhalls
LIST,Cambridge City Council,GPC,05/06/23,4,258, -   ,133.63,133.63,Google ads,Communities,62005,"Advertising, Publicity And Marketing",Folk Festival
LIST,Cambridge City Council,GPC,05/06/23,3,242,34.35,171.75,206.1,Bed for homelessness team,Communities,63900,Miscellaneous Expenses,Homelessness Prevention Grant
LIST,Cambridge City Council,GPC,05/06/23,4,232, -   ,50,50,16 Cockerell Road - electric top up,Communities,60303,Electricity,Temporary Accommodation
LIST,Cambridge City Council,GPC,05/06/23,4,232, -   ,80,80,99 Wadloes Road - electric top up,Communities,60303,Electricity,Temporary Accommodation
LIST,Cambridge City Council,GPC,05/06/23,4,232, -   ,80,80,99 Wadloes Road - electric top up,Communities,60303,Electricity,Temporary Accommodation
LIST,Cambridge City Council,GPC,05/06/23,4,232, -   ,50,50,130 Kingsway - electric top up,Communities,60303,Electricity,Temporary Accommodation
LIST,Cambridge City Council,GPC,05/06/23,4,232, -   ,50,50,78a Chalmers Road - electric top up,Communities,60303,Electricity,Temporary Accommodation
LIST,Cambridge City Council,GPC,05/06/23,4,232, -   ,99,99,34 Fanshawe Road - gas top up,Communities,60305,Gas,Temporary Accommodation
LIST,Cambridge City Council,GPC,05/06/23,4,232, -   ,1.8,1.8,Soap for the visitors toilet at 116 Che,Communities,61703,"Purchase - Equipment, Furniture And Materials",Temporary Accommodation
LIST,Cambridge City Council,GPC,05/06/23,3,241,15.97,79.82,95.79,Ditchburn Place pest control equipment,Communities,60504,Pest Control,Ditchburn Place
LIST,Cambridge City Council,GPC,05/06/23,3,236, -   ,31.99,31.99,Wall art (street aid grant),Communities,63900,Miscellaneous Expenses,Housing Charity Grant Payments
LIST,Cambridge City Council,GPC,05/06/23,3,235, -   ,7.5,7.5,romini flag,Place,63900,Miscellaneous Expenses,Facilities Management
LIST,Cambridge City Council,GPC,05/06/23,3,206, -   ,50.29,50.29,,Corporate,80009,Disbursement Control - Events,General Fund Balance Sheet
LIST,Cambridge City Council,GPC,05/06/23,3,LEDGER EV, -   ,-50.29,-50.29,,Corporate,80009,Disbursement Control - Events,General Fund Balance Sheet
LIST,Cambridge City Council,GPC,05/06/23,3,207, -   ,95.33,95.33,,Corporate,80009,Disbursement Control - Events,General Fund Balance Sheet
LIST,Cambridge City Council,GPC,05/06/23,3,LEDGER EV, -   ,-95.33,-95.33,,Corporate,80009,Disbursement Control - Events,General Fund Balance Sheet
LIST,Cambridge City Council,GPC,06/06/23,3,234,14.53,72.62,87.15,rootgrow,City Services,60503,Grounds Maintenance,City Cambridge Cemeteries
LIST,Cambridge City Council,GPC,06/06/23,5,280, -   ,75,75,Stamps,City Services,64100,Postage And Courier Services,Bereavement Services Central Costs
LIST,Cambridge City Council,GPC,06/06/23,5,280, -   ,6.85,6.85,Stamps,City Services,64100,Postage And Courier Services,Bereavement Services Central Costs
LIST,Cambridge City Council,GPC,06/06/23,4,247, -   ,153.59,153.59,equipment,Communities,61703,"Purchase - Equipment, Furniture And Materials",The Meadows Community Centre
LIST,Cambridge City Council,GPC,06/06/23,4,249, -   ,9.99,9.99,Pink Stuff cleaning paste,Communities,61300,Cleaning Materials,Brown's Field Youth and Community Centre
LIST,Cambridge City Council,GPC,06/06/23,4,249, -   ,4.49,4.49,Blind cord,Communities,61702,"Maintenance - Equipment, Furniture And Materials",Brown's Field Youth and Community Centre
LIST,Cambridge City Council,GPC,06/06/23,4,247, -   ,12.2,12.2,refreshments,Communities,64200,Subsistence,The Meadows Community Centre
LIST,Cambridge City Council,GPC,06/06/23,3,227, -   ,31.49,31.49,Train London Conference ABTT,Communities,60914,Public Transport For Staff And Members,Corn Exchange and Guildhalls
LIST,Cambridge City Council,GPC,06/06/23,3,227, -   ,3.3,3.3,Bar supplies,Communities,61900,Catering And Vending Supplies,Corn Exchange and Guildhalls
LIST,Cambridge City Council,GPC,06/06/23,3,227, -   ,9.84,9.84,stationery,Communities,62002,Stationery,Corn Exchange and Guildhalls
LIST,Cambridge City Council,GPC,06/06/23,3,224, -   ,220,220,Cllr Anna Smith accommodation for the L,Chief Executive,63900,Miscellaneous Expenses,Members Support
LIST,Cambridge City Council,GPC,06/06/23,3,209, -   ,103.85,103.85,,Corporate,80009,Disbursement Control - Events,General Fund Balance Sheet
LIST,Cambridge City Council,GPC,06/06/23,3,LEDGER EV, -   ,-103.85,-103.85,,Corporate,80009,Disbursement Control - Events,General Fund Balance Sheet
LIST,Cambridge City Council,GPC,06/06/23,3,210, -   ,105.53,105.53,,Corporate,80009,Disbursement Control - Events,General Fund Balance Sheet
LIST,Cambridge City Council,GPC,06/06/23,3,LEDGER EV, -   ,-105.53,-105.53,,Corporate,80009,Disbursement Control - Events,General Fund Balance Sheet
LIST,Cambridge City Council,GPC,06/06/23,3,211, -   ,103.85,103.85,,Corporate,80009,Disbursement Control - Events,General Fund Balance Sheet
LIST,Cambridge City Council,GPC,06/06/23,3,LEDGER EV, -   ,-103.85,-103.85,,Corporate,80009,Disbursement Control - Events,General Fund Balance Sheet
LIST,Cambridge City Council,GPC,07/06/23,3,234,5,24.99,29.99,barnish blanket weed control,City Services,60503,Grounds Maintenance,City Cambridge Cemeteries
LIST,Cambridge City Council,GPC,07/06/23,3,234,10,49.99,59.99,shrubs family garden,City Services,60503,Grounds Maintenance,City Cambridge Cemeteries
LIST,Cambridge City Council,GPC,07/06/23,3,234,5.49,27.46,32.95,strimmer mower head,City Services,61703,"Purchase - Equipment, Furniture And Materials",City Cambridge Cemeteries
LIST,Cambridge City Council,GPC,07/06/23,3,226, -   ,81,81,Sanitary products for period poverty,Communities,61703,"Purchase - Equipment, Furniture And Materials",Community Resilience
LIST,Cambridge City Council,GPC,07/06/23,4,181, -   ,98,98,Bus passes,Communities,60914,Public Transport For Staff And Members,Syrian Resettlement
LIST,Cambridge City Council,GPC,07/06/23,4,251, -   ,177.98,177.98,John Richards accommodation for Birming,City Services,64400,Hotel And Other Accommodation Costs (Staff And Members),Open Space Development
LIST,Cambridge City Council,GPC,07/06/23,4,243, -   ,25.84,25.84,Garden Tools.,City Services,64073,ICT Maintenance and Support,Open Space Development
LIST,Cambridge City Council,GPC,07/06/23,4,244, -   ,47.7,47.7,Garden Tools.,City Services,64073,ICT Maintenance and Support,Open Space Development
LIST,Cambridge City Council,GPC,07/06/23,4,232, -   ,87.96,87.96,4x laptop stands for the new office at,Corporate,61703,"Purchase - Equipment, Furniture And Materials",Housing Revenue Account - Net Cost of Service
LIST,Cambridge City Council,GPC,07/06/23,4,232, -   ,40,40,Curtains RSAP property,Corporate,61703,"Purchase - Equipment, Furniture And Materials",Housing Revenue Account - Net Cost of Service
LIST,Cambridge City Council,GPC,07/06/23,3,233,10.65,53.25,63.9,Pest Control Spray for Ditchburn,Communities,60504,Pest Control,Ditchburn Place
LIST,Cambridge City Council,GPC,07/06/23,3,241,130,649.99,779.99,Pest Control treatment 142 Ditchburn Pl,Communities,60504,Pest Control,Ditchburn Place
LIST,Cambridge City Council,GPC,07/06/23,4,246, -   ,4.98,4.98,Lubricant,City Services,61703,"Purchase - Equipment, Furniture And Materials",Building Maintenance Response - Direct
LIST,Cambridge City Council,GPC,07/06/23,4,246, -   ,9.98,9.98,Plumbers Grease,City Services,61703,"Purchase - Equipment, Furniture And Materials",Building Maintenance Response - Direct
LIST,Cambridge City Council,GPC,07/06/23,4,246, -   ,"1,062.00","1,062.00",Napit Additional Member Registration,City Services,64800,Membership And Subscriptions,Asset Management and Compliance
LIST,Cambridge City Council,GPC,07/06/23,3,235, -   ,157.96,157.96,crockery for mandela house,Place,61703,"Purchase - Equipment, Furniture And Materials",Facilities Management
LIST,Cambridge City Council,GPC,08/06/23,5,248, -   ,57.98,57.98,zoom license,Communities,64077,Telephone And Mobile Phone Costs,Neighbourhood Community Development
LIST,Cambridge City Council,GPC,08/06/23,4,247, -   ,3.3,3.3,refreshments,Communities,64200,Subsistence,The Meadows Community Centre
LIST,Cambridge City Council,GPC,08/06/23,3,227,4.1,20.49,24.59,Food allowance - London Conf ABTT,Communities,63900,Miscellaneous Expenses,Corn Exchange and Guildhalls
LIST,Cambridge City Council,GPC,08/06/23,3,224, -   ,110,110,Extra night accommodation for Cllr Anna,Chief Executive,63900,Miscellaneous Expenses,Members Support
LIST,Cambridge City Council,GPC,08/06/23,4,232, -   ,50,50,51 Hanover Court - electric top up,Communities,60303,Electricity,Temporary Accommodation
LIST,Cambridge City Council,GPC,08/06/23,4,232, -   ,50,50,78 Hanover Court - electric top up,Communities,60303,Electricity,Temporary Accommodation
LIST,Cambridge City Council,GPC,08/06/23,4,232, -   ,50,50,23 Hanover Court - electric top up,Communities,60303,Electricity,Temporary Accommodation
LIST,Cambridge City Council,GPC,08/06/23,4,232, -   ,50,50,23 Hanover Court - electric top up,Communities,60303,Electricity,Temporary Accommodation
LIST,Cambridge City Council,GPC,08/06/23,4,232, -   ,99,99,652 Newmarket Road - gas top up,Communities,60305,Gas,Temporary Accommodation
LIST,Cambridge City Council,GPC,08/06/23,4,246, -   ,31.84,31.84,Bath Repair Kit,City Services,61703,"Purchase - Equipment, Furniture And Materials",Building Maintenance Response - Direct
LIST,Cambridge City Council,GPC,08/06/23,4,246, -   ,730.86,730.86,Rointe Radiators,City Services,61703,"Purchase - Equipment, Furniture And Materials",Building Maintenance Response - Direct
LIST,Cambridge City Council,GPC,08/06/23,3,240, -   ,12.65,12.65,Nick Pritchard taxi to hospital appoint,Communities,63900,Miscellaneous Expenses,Housing Charity Grant Payments
LIST,Cambridge City Council,GPC,08/06/23,3,240, -   ,12.45,12.45,Nick Pritchard taxi to hospital appoint,Communities,63900,Miscellaneous Expenses,Housing Charity Grant Payments
LIST,Cambridge City Council,GPC,09/06/23,3,234,3.11,15.57,18.68,fluescent light tubes,City Services,61702,"Maintenance - Equipment, Furniture And Materials",City Cambridge Cemeteries
LIST,Cambridge City Council,GPC,09/06/23,3,226,11.33,56.66,67.99,Cups & Saucers for refreshments,Communities,61703,"Purchase - Equipment, Furniture And Materials",Neighbourhood Community Development
LIST,Cambridge City Council,GPC,09/06/23,4,249, -   ,259,259,Washing Machine for centre,Communities,61703,"Purchase - Equipment, Furniture And Materials",Brown's Field Youth and Community Centre
LIST,Cambridge City Council,GPC,09/06/23,3,226,2.38,11.89,14.27,Food and Stationery for events,Communities,62002,Stationery,Clay Farm Community Centre
LIST,Cambridge City Council,GPC,09/06/23,3,226,3.38,16.88,20.26,Food and Stationery for events,Communities,62900,Events,Clay Farm Community Centre
LIST,Cambridge City Council,GPC,09/06/23,3,226,5.41,27.03,32.44,Food and Stationery for events,Communities,62900,Events,Clay Farm Community Centre
LIST,Cambridge City Council,GPC,09/06/23,3,226, -   ,23.65,23.65,Food and Stationery for events,Communities,62900,Events,Clay Farm Community Centre
LIST,Cambridge City Council,GPC,09/06/23,4,238, -   ,18,18,DBS Community Services,Corporate,62500,Dbs Checks - Non-Staff,Strategic Director #2
LIST,Cambridge City Council,GPC,09/06/23,4,238, -   ,18,18,DBS Customer Services,Corporate,62500,Dbs Checks - Non-Staff,Strategic Director #2
LIST,Cambridge City Council,GPC,09/06/23,7,334,2.83,14.16,16.99,Flower Decor,Communities,61950,D�cor,Folk Festival
LIST,Cambridge City Council,GPC,09/06/23,7,334, -   ,16,16,Flowers,Communities,64200,Subsistence,Folk Festival
LIST,Cambridge City Council,GPC,09/06/23,7,334, -   ,6,6,Meeting Subsistence,Communities,64200,Subsistence,Folk Festival
LIST,Cambridge City Council,GPC,09/06/23,4,261, -   ,13.89,13.89,Facebook,Communities,62005,"Advertising, Publicity And Marketing",Folk Festival
LIST,Cambridge City Council,GPC,09/06/23,4,261, -   ,50.97,50.97,Facebook,Communities,62005,"Advertising, Publicity And Marketing",Folk Festival
LIST,Cambridge City Council,GPC,09/06/23,4,181, -   ,98,98,Bus passes,Communities,60914,Public Transport For Staff And Members,Syrian Resettlement
LIST,Cambridge City Council,GPC,09/06/23,4,181, -   ,98,98,Buss passes,Communities,60914,Public Transport For Staff And Members,Syrian Resettlement
LIST,Cambridge City Council,GPC,09/06/23,4,251, -   ,64.18,64.18,Print Cartridges,City Services,62002,Stationery,Open Space Development
LIST,Cambridge City Council,GPC,09/06/23,3,241,130,650,780,Pest control treatment 142 Ditchburn Pl,Communities,60504,Pest Control,Ditchburn Place
LIST,Cambridge City Council,GPC,09/06/23,4,238, -   ,164,164,CIPD Membership AL,Corporate,64800,Membership And Subscriptions,Human Resources - Organisational Development
LIST,Cambridge City Council,GPC,09/06/23,4,238, -   ,33.59,33.59,Books for AL CipD,Corporate,64800,Membership And Subscriptions,Human Resources - Organisational Development
LIST,Cambridge City Council,GPC,09/06/23,4,261, -   ,63.78,63.78,Facebook,Communities,62005,"Advertising, Publicity And Marketing",Corn Exchange and Guildhalls
LIST,Cambridge City Council,GPC,09/06/23,4,261, -   ,71.36,71.36,Facebook,Communities,62005,"Advertising, Publicity And Marketing",Corn Exchange and Guildhalls
LIST,Cambridge City Council,GPC,10/06/23,4,247, -   ,25,25,equipment,Communities,61703,"Purchase - Equipment, Furniture And Materials",The Meadows Community Centre
LIST,Cambridge City Council,GPC,11/06/23,5,248, -   ,28.59,28.59,team booking system - billed in dollars,Communities,62005,"Advertising, Publicity And Marketing",Neighbourhood Community Development
LIST,Cambridge City Council,GPC,11/06/23,4,247, -   ,6.3,6.3,refreshments,Communities,64200,Subsistence,The Meadows Community Centre
LIST,Cambridge City Council,GPC,11/06/23,4,238, -   ,18,18,Homes from Ukriane,Corporate,62500,Dbs Checks - Non-Staff,Strategic Director #2
LIST,Cambridge City Council,GPC,11/06/23,4,238, -   , -   , -   ,Homes from Ukriane,Corporate,62500,Dbs Checks - Non-Staff,Strategic Director #2
LIST,Cambridge City Council,GPC,11/06/23,4,181, -   ,63,63,Bus passes,Communities,60914,Public Transport For Staff And Members,Syrian Resettlement
LIST,Cambridge City Council,GPC,11/06/23,3,241, -   ,51.37,51.37,Ditchburn Place pest control equipment,Communities,60504,Pest Control,Ditchburn Place
LIST,Cambridge City Council,GPC,12/06/23,5,280, -   ,165.39,165.39,Stationery,City Services,62002,Stationery,Cambridge Crematorium
LIST,Cambridge City Council,GPC,12/06/23,3,231, -   ,40,40,MvF Weds,Communities,60402,Premises Hire - Facilities,Active Lifestyles - Communities (ex Sports Development)
LIST,Cambridge City Council,GPC,12/06/23,3,242,71.84,359.2,431.04,Housing Training,Communities,60115,Staff Development And Training,Environmental Health Operational Support
LIST,Cambridge City Council,GPC,12/06/23,4,232, -   ,23.97,23.97,Phone case and mouse mat for office 116,Corporate,61703,"Purchase - Equipment, Furniture And Materials",Housing Revenue Account - Net Cost of Service
LIST,Cambridge City Council,GPC,12/06/23,4,246, -   ,130,130,Dehumidifier,City Services,61703,"Purchase - Equipment, Furniture And Materials",Building Maintenance Response - Direct
LIST,Cambridge City Council,GPC,12/06/23,4,238, -   ,205,205,CIPD Membership - BH,Corporate,64800,Membership And Subscriptions,Human Resources - Business Support
LIST,Cambridge City Council,GPC,13/06/23,3,231, -   ,21,21,Printing,Communities,62001,Printing,Active Lifestyles - Communities (ex Sports Development)
LIST,Cambridge City Council,GPC,13/06/23,7,334, -   ,12.99,12.99,Zoom monthly subscription,Communities,64077,Telephone And Mobile Phone Costs,Folk Festival
LIST,Cambridge City Council,GPC,13/06/23,3,242,31.25,156.25,187.5,IEMA subscription,Communities,64800,Membership And Subscriptions,Environmental Health Operational Support
LIST,Cambridge City Council,GPC,13/06/23,4,181, -   ,98,98,Bus passes,Communities,60914,Public Transport For Staff And Members,Syrian Resettlement
LIST,Cambridge City Council,GPC,13/06/23,4,246, -   ,13.8,13.8,CT1 Adhesive,City Services,61703,"Purchase - Equipment, Furniture And Materials",Building Maintenance Response - Direct
LIST,Cambridge City Council,GPC,13/06/23,3,236,28,139.98,167.98,"Hoover, freezer, crock pot (street aid",Communities,61703,"Purchase - Equipment, Furniture And Materials",Housing Charity Grant Payments
LIST,Cambridge City Council,GPC,14/06/23,4,250, -   ,630,630,Training for J Johnson,Corporate,60115,Staff Development And Training,Programme Office
LIST,Cambridge City Council,GPC,14/06/23,10,399, -   ,43.98,43.98,SP BUSINESS SUPPLIES LIVERPOOL,Communities,64200,Subsistence,City Events
LIST,Cambridge City Council,GPC,14/06/23,4,262, -   ,28.46,28.46,Facebook,Communities,62005,"Advertising, Publicity And Marketing",Folk Festival
LIST,Cambridge City Council,GPC,14/06/23,4,262, -   ,36.11,36.11,Facebook,Communities,62005,"Advertising, Publicity And Marketing",Folk Festival
LIST,Cambridge City Council,GPC,14/06/23,4,262, -   ,79.5,79.5,Facebook,Communities,62005,"Advertising, Publicity And Marketing",Folk Festival
LIST,Cambridge City Council,GPC,14/06/23,3,242,11.6,57.99,69.59,Equipment,Communities,61703,"Purchase - Equipment, Furniture And Materials",Environmental Health Operational Support
LIST,Cambridge City Council,GPC,14/06/23,3,242,4.75,23.72,28.47,Equipment,Communities,61703,"Purchase - Equipment, Furniture And Materials",Environmental Health Operational Support
LIST,Cambridge City Council,GPC,14/06/23,4,232, -   ,97.5,97.5,6 kettles for Corner House,Corporate,61703,"Purchase - Equipment, Furniture And Materials",Housing Revenue Account - Net Cost of Service
LIST,Cambridge City Council,GPC,14/06/23,4,232, -   ,-4,-4,Refund from Dunelm order for missing it,Corporate,61703,"Purchase - Equipment, Furniture And Materials",Housing Revenue Account - Net Cost of Service
LIST,Cambridge City Council,GPC,14/06/23,4,232, -   ,184,184,Supplies for Corner House - kitchen & b,Corporate,61703,"Purchase - Equipment, Furniture And Materials",Housing Revenue Account - Net Cost of Service
LIST,Cambridge City Council,GPC,14/06/23,4,267, -   ,-14.4,-14.4,Refund from Dunelm order,Corporate,61703,"Purchase - Equipment, Furniture And Materials",Housing Revenue Account - Net Cost of Service
LIST,Cambridge City Council,GPC,14/06/23,4,246, -   ,32.4,32.4,Anti-Urine Spray,City Services,61703,"Purchase - Equipment, Furniture And Materials",Building Maintenance Response - Direct
LIST,Cambridge City Council,GPC,14/06/23,3,236, -   ,29.95,29.95,Saucepans (street aid grant) PB,Communities,61703,"Purchase - Equipment, Furniture And Materials",Housing Charity Grant Payments
LIST,Cambridge City Council,GPC,14/06/23,4,250, -   ,24,24,Card reader/setting up CF in BACS,Corporate,64070,ICT Hardware,Accountancy and Support Services
LIST,Cambridge City Council,GPC,14/06/23,4,262, -   ,55.93,55.93,Facebook,Communities,62005,"Advertising, Publicity And Marketing",Corn Exchange and Guildhalls
LIST,Cambridge City Council,GPC,15/06/23,3,237,24.16,120.78,144.94,Henry Hoover,City Services,61300,Cleaning Materials,Cambridge Crematorium
LIST,Cambridge City Council,GPC,15/06/23,3,227,2.89,14.42,17.31,Cable Ties,Communities,62002,Stationery,Corn Exchange and Guildhalls
LIST,Cambridge City Council,GPC,15/06/23,10,399, -   ,31.85,31.85,TM *TICKETMASTERUK-LONDON,Communities,64800,Membership And Subscriptions,City Events
LIST,Cambridge City Council,GPC,15/06/23,3,240, -   ,26.99,26.99,Ian Huddlestone mobile phone,Communities,63900,Miscellaneous Expenses,DLUHC Homelessness Grants (RSI)
LIST,Cambridge City Council,GPC,15/06/23,4,232, -   ,50,50,130 Kingsway - electric top up,Communities,60303,Electricity,Temporary Accommodation
LIST,Cambridge City Council,GPC,15/06/23,4,232, -   ,50,50,78a Chalmers Road - electric top up,Communities,60303,Electricity,Temporary Accommodation
LIST,Cambridge City Council,GPC,15/06/23,4,232, -   ,80,80,4 Princess Court - electric top up,Communities,60303,Electricity,Temporary Accommodation
LIST,Cambridge City Council,GPC,15/06/23,4,232, -   ,17.67,17.67,Master key ring holders,Communities,61703,"Purchase - Equipment, Furniture And Materials",Temporary Accommodation
LIST,Cambridge City Council,GPC,15/06/23,4,246, -   ,22.35,22.35,Kitchen Cupboard Hinges,City Services,61703,"Purchase - Equipment, Furniture And Materials",Building Maintenance Response - Direct
LIST,Cambridge City Council,GPC,16/06/23,4,249, -   ,20.98,20.98,Sealant and wood adhesive,Communities,61700,Hire - Equipment Furniture And Materials,Brown's Field Youth and Community Centre
LIST,Cambridge City Council,GPC,16/06/23,4,247, -   ,10.97,10.97,refreshments,Communities,64200,Subsistence,The Meadows Community Centre
LIST,Cambridge City Council,GPC,16/06/23,7,334, -   ,489,489,City Events Conference Accommodation,Communities,64800,Membership And Subscriptions,City Events
LIST,Cambridge City Council,GPC,16/06/23,3,242,-6.37,-31.87,-38.24,Equipment,Communities,61703,"Purchase - Equipment, Furniture And Materials",Environmental Health Operational Support
LIST,Cambridge City Council,GPC,16/06/23,3,240, -   ,5,5,Beverages Alec Moss,Communities,63900,Miscellaneous Expenses,DLUHC Homelessness Grants (RSI)
LIST,Cambridge City Council,GPC,16/06/23,4,246, -   ,37.99,37.99,First Aid Kit,City Services,61703,"Purchase - Equipment, Furniture And Materials",Building Maintenance Response - Direct
LIST,Cambridge City Council,GPC,16/06/23,3,240, -   ,25,25,Delivery cost to deliver sofa-Alec Moss,Communities,63900,Miscellaneous Expenses,Housing Charity Grant Payments
LIST,Cambridge City Council,GPC,16/06/23,3,235, -   ,159,159,tv lisence 130 cowley rd,Place,60201,Cyclical/Planned Maintenance - Building,130 Cowley Road
LIST,Cambridge City Council,GPC,17/06/23,5,280, -   ,160.89,160.89,Stationery,City Services,62002,Stationery,Cambridge Crematorium
LIST,Cambridge City Council,GPC,17/06/23,5,280, -   ,2.6,2.6,Postage,City Services,64100,Postage And Courier Services,Bereavement Services Central Costs
LIST,Cambridge City Council,GPC,17/06/23,4,249, -   ,4,4,Washing powder,Communities,61300,Cleaning Materials,Brown's Field Youth and Community Centre
LIST,Cambridge City Council,GPC,17/06/23,3,231,2.6,12.99,15.59,Online Coaching Platform,Communities,62005,"Advertising, Publicity And Marketing",Active Lifestyles - Projects
LIST,Cambridge City Council,GPC,17/06/23,4,181, -   ,98,98,Bus passes,Communities,60914,Public Transport For Staff And Members,Syrian Resettlement
LIST,Cambridge City Council,GPC,18/06/23,4,247, -   ,17.3,17.3,leads for screen,Communities,61703,"Purchase - Equipment, Furniture And Materials",The Meadows Community Centre
LIST,Cambridge City Council,GPC,18/06/23,3,223,30.68,153.41,184.09,Headset,City Services,64070,ICT Hardware,Parking Administration
LIST,Cambridge City Council,GPC,18/06/23,3,223,1.42,7.07,8.49,charging cables,City Services,64073,ICT Maintenance and Support,Parking Administration
LIST,Cambridge City Council,GPC,19/06/23,3,237,27.83,139.17,167,Henry Hoover,City Services,61300,Cleaning Materials,Cambridge Crematorium
LIST,Cambridge City Council,GPC,19/06/23,5,280, -   ,130.96,130.96,Stamps,City Services,64100,Postage And Courier Services,Bereavement Services Central Costs
LIST,Cambridge City Council,GPC,19/06/23,3,226,15.56,77.8,93.36,Display Equipment,Communities,61703,"Purchase - Equipment, Furniture And Materials",Clay Farm Community Centre
LIST,Cambridge City Council,GPC,19/06/23,3,231, -   ,40,40,MvF Weds,Communities,60402,Premises Hire - Facilities,Active Lifestyles - Communities (ex Sports Development)
LIST,Cambridge City Council,GPC,19/06/23,3,227,7.58,37.87,45.45,Sand bucket (to be refunded),Communities,61703,"Purchase - Equipment, Furniture And Materials",Corn Exchange and Guildhalls
LIST,Cambridge City Council,GPC,19/06/23,10,399, -   ,51,51,PREMIER INN-BEDFORD,Communities,64400,Hotel And Other Accommodation Costs (Staff And Members),City Events
LIST,Cambridge City Council,GPC,19/06/23,5,263, -   ,69.53,69.53,Facebook,Communities,62005,"Advertising, Publicity And Marketing",Folk Festival
LIST,Cambridge City Council,GPC,19/06/23,5,263, -   ,71.37,71.37,Facebook,Communities,62005,"Advertising, Publicity And Marketing",Folk Festival
LIST,Cambridge City Council,GPC,19/06/23,3,223,2.33,11.66,13.99,Footpump,City Services,61703,"Purchase - Equipment, Furniture And Materials",Shopmobility-Grand Arcade
LIST,Cambridge City Council,GPC,19/06/23,3,228,8.5,42.47,50.97,60 Sand Bags for base of seats and benc,City Services,61703,"Purchase - Equipment, Furniture And Materials",Grounds Maintenance & Street Cleaning
LIST,Cambridge City Council,GPC,19/06/23,4,232, -   ,50,50,23 Hanover Court - electric top up,Communities,60303,Electricity,Temporary Accommodation
LIST,Cambridge City Council,GPC,19/06/23,4,232, -   ,50,50,27 Princess Court - electric top up,Communities,60303,Electricity,Temporary Accommodation
LIST,Cambridge City Council,GPC,19/06/23,4,232, -   ,50,50,29a Ekin Road - electric top up,Communities,60303,Electricity,Temporary Accommodation
LIST,Cambridge City Council,GPC,19/06/23,4,232, -   ,50,50,78 Hanover Court - electric top up,Communities,60303,Electricity,Temporary Accommodation
LIST,Cambridge City Council,GPC,19/06/23,5,263, -   ,59.1,59.1,Facebook,Communities,62005,"Advertising, Publicity And Marketing",Corn Exchange and Guildhalls
LIST,Cambridge City Council,GPC,20/06/23,3,231,3.8,19,22.8,Online Booking System,Communities,62005,"Advertising, Publicity And Marketing",Active Lifestyles - Projects
LIST,Cambridge City Council,GPC,20/06/23,3,229, -   ,149.99,149.99,Defib pad battery and new pads for Crem,Corporate,61703,"Purchase - Equipment, Furniture And Materials",Quality/Health & Safety Management - Indirect
LIST,Cambridge City Council,GPC,20/06/23,3,227,1.85,9.22,11.07,Smoking signs,Communities,62002,Stationery,Corn Exchange and Guildhalls
LIST,Cambridge City Council,GPC,20/06/23,3,227,3,14.99,17.99,Sand Bucket,Communities,63900,Miscellaneous Expenses,Corn Exchange and Guildhalls
LIST,Cambridge City Council,GPC,20/06/23,6,299, -   ,22.49,22.49,Folk Festival,Communities,63900,Miscellaneous Expenses,Folk Festival
LIST,Cambridge City Council,GPC,20/06/23,5,264, -   ,0.17,0.17,Facebook,Communities,62005,"Advertising, Publicity And Marketing",Folk Festival
LIST,Cambridge City Council,GPC,20/06/23,3,236, -   ,26.99,26.99,CL New phone,Communities,64077,Telephone And Mobile Phone Costs,DLUHC Homelessness Grants (RSI)
LIST,Cambridge City Council,GPC,20/06/23,3,228,1.5,7.49,8.99,"Monthly charge for Amazon Prime, speeds",City Services,61703,"Purchase - Equipment, Furniture And Materials",Grounds Maintenance & Street Cleaning
LIST,Cambridge City Council,GPC,20/06/23,4,238, -   ,176,176,Cipd membership VJ,Corporate,64800,Membership And Subscriptions,Human Resources - Business Support
LIST,Cambridge City Council,GPC,20/06/23,3,235, -   ,39.99,39.99,replacement bike lock,Place,61703,"Purchase - Equipment, Furniture And Materials",Facilities Management
LIST,Cambridge City Council,GPC,20/06/23,5,264, -   ,1.77,1.77,Facebook,Communities,62005,"Advertising, Publicity And Marketing",Corn Exchange and Guildhalls
LIST,Cambridge City Council,GPC,21/06/23,5,282,6.16,30.79,36.95,Perspex sheets for flower stands,City Services,61703,"Purchase - Equipment, Furniture And Materials",Cambridge Crematorium
LIST,Cambridge City Council,GPC,21/06/23,10,399, -   ,59.5,59.5,TESCO STORES 2555-FULBOURN,Communities,64200,Subsistence,City Events
LIST,Cambridge City Council,GPC,21/06/23,6,299, -   ,-5.5,-5.5,Folk Festival - Refund,Communities,63900,Miscellaneous Expenses,Folk Festival
LIST,Cambridge City Council,GPC,21/06/23,6,299, -   ,-39.95,-39.95,Refund - Folk Festival,Communities,63900,Miscellaneous Expenses,Folk Festival
LIST,Cambridge City Council,GPC,21/06/23,4,267, -   ,175,175,Holly Doy Training Course,Communities,60115,Staff Development And Training,Asylum Seekers and Refugees
LIST,Cambridge City Council,GPC,21/06/23,4,269, -   ,372.27,372.27,Plants ordered for EIP Project for Jame,Corporate,11312,Assets Under Construction Cost,General Fund Balance Sheet
LIST,Cambridge City Council,GPC,22/06/23,5,295, -   ,14.25,14.25,Refreshments,Communities,64200,Subsistence,The Meadows Community Centre
LIST,Cambridge City Council,GPC,22/06/23,5,278, -   ,26.99,26.99,Mobile phone,Communities,63900,Miscellaneous Expenses,DLUHC Homelessness Grants (RSI)
LIST,Cambridge City Council,GPC,22/06/23,6,293, -   ,28,28,Bus passes,Communities,60914,Public Transport For Staff And Members,Syrian Resettlement
LIST,Cambridge City Council,GPC,22/06/23,6,293, -   ,28,28,Bus passes,Communities,60914,Public Transport For Staff And Members,Syrian Resettlement
LIST,Cambridge City Council,GPC,22/06/23,4,267, -   ,623,623,Town Hall Lettings - 1x fridge/freezer,Communities,61703,"Purchase - Equipment, Furniture And Materials",Asylum Seekers and Refugees
LIST,Cambridge City Council,GPC,22/06/23,4,267, -   ,49,49,16 Cockerell Road - electric top up,Communities,60303,Electricity,Temporary Accommodation
LIST,Cambridge City Council,GPC,22/06/23,4,267, -   ,49,49,78a Chalmers Road - electric top up,Communities,60303,Electricity,Temporary Accommodation
LIST,Cambridge City Council,GPC,22/06/23,4,267, -   ,49,49,5 Tuscan Court - electric top up,Communities,60303,Electricity,Temporary Accommodation
LIST,Cambridge City Council,GPC,22/06/23,4,267, -   ,80,80,Gas top up - 86 Nuns Way,Communities,60305,Gas,Temporary Accommodation
LIST,Cambridge City Council,GPC,22/06/23,4,267, -   ,80,80,5 Tuscan Court - gas top up,Communities,60305,Gas,Temporary Accommodation
LIST,Cambridge City Council,GPC,22/06/23,4,267, -   ,75,75,Gas top up - 2 Tuscan Court,Communities,60305,Gas,Temporary Accommodation
LIST,Cambridge City Council,GPC,23/06/23,5,280, -   ,118.02,118.02,Stationery,City Services,62002,Stationery,Cambridge Crematorium
LIST,Cambridge City Council,GPC,23/06/23,5,288,4.16,20.82,24.98,shrubs,City Services,60503,Grounds Maintenance,Bereavement Services - Burials & Grounds
LIST,Cambridge City Council,GPC,23/06/23,5,284,3.8,19,22.8,Level 2 Food Hygiene Training for 2 ten,Communities,52000,Courses & Training Income,Environmental Health Operational Support
LIST,Cambridge City Council,GPC,23/06/23,5,278, -   ,4.45,4.45,Shaun Hardwicke sandwich and drink,Communities,63900,Miscellaneous Expenses,DLUHC Homelessness Grants (RSI)
LIST,Cambridge City Council,GPC,23/06/23,5,278, -   ,13.45,13.45,Taxi from hospital to GP surgery Shaun,Communities,63900,Miscellaneous Expenses,DLUHC Homelessness Grants (RSI)
LIST,Cambridge City Council,GPC,23/06/23,5,289, -   ,16.2,16.2,Emmaus taxi (PB),Communities,63900,Miscellaneous Expenses,DLUHC Homelessness Grants (RSI)
LIST,Cambridge City Council,GPC,23/06/23,5,289, -   ,16.2,16.2,Taxi Emmaus (PB),Communities,63900,Miscellaneous Expenses,DLUHC Homelessness Grants (RSI)
LIST,Cambridge City Council,GPC,23/06/23,5,289, -   ,100,100,Emmaus solidarity pack,Communities,63900,Miscellaneous Expenses,Housing Charity Grant Payments
LIST,Cambridge City Council,GPC,23/06/23,5,289, -   ,12,12,Home items (street aid grant),Communities,63900,Miscellaneous Expenses,Housing Charity Grant Payments
LIST,Cambridge City Council,GPC,23/06/23,4,271, -   ,91.89,91.89,replacement pool bike locks,Place,61703,"Purchase - Equipment, Furniture And Materials",Facilities Management
LIST,Cambridge City Council,GPC,24/06/23,7,334, -   ,125.65,125.65,Jotform Monthly Subscription,Communities,64800,Membership And Subscriptions,Folk Festival
LIST,Cambridge City Council,GPC,25/06/23,5,288,6.91,34.55,41.46,roses and hose attachments,City Services,60503,Grounds Maintenance,Bereavement Services - Burials & Grounds
LIST,Cambridge City Council,GPC,25/06/23,5,288,13.33,66.65,79.98,Garden hoses,City Services,61703,"Purchase - Equipment, Furniture And Materials",Bereavement Services - Burials & Grounds
LIST,Cambridge City Council,GPC,25/06/23,5,284,11,54.97,65.97,Items for new Drop In Office at Brandon,Corporate,61703,"Purchase - Equipment, Furniture And Materials",Housing Revenue Account - Net Cost of Service
LIST,Cambridge City Council,GPC,25/06/23,5,284,10.36,51.82,62.18,Disposable Boot Covers,Communities,60504,Pest Control,Ditchburn Place
LIST,Cambridge City Council,GPC,26/06/23,5,280, -   ,46.26,46.26,Stationery,City Services,62002,Stationery,Cambridge Crematorium
LIST,Cambridge City Council,GPC,26/06/23,4,270, -   ,40,40,MvF Weds Session,Communities,60402,Premises Hire - Facilities,Active Lifestyles - Communities (ex Sports Development)
LIST,Cambridge City Council,GPC,26/06/23,6,297, -   ,134.08,134.08,Facebook adverts,Communities,62005,"Advertising, Publicity And Marketing",Folk Festival
LIST,Cambridge City Council,GPC,26/06/23,7,277, -   ,176,176,CIPD Membership VJ,Corporate,64800,Membership And Subscriptions,Human Resources - Organisational Development
LIST,Cambridge City Council,GPC,26/06/23,6,297, -   ,65.92,65.92,Facebook adverts,Communities,62005,"Advertising, Publicity And Marketing",Corn Exchange and Guildhalls
LIST,Cambridge City Council,GPC,27/06/23,5,288,2.83,14.14,16.97,compost/ aqua gel,City Services,61703,"Purchase - Equipment, Furniture And Materials",Bereavement Services - Burials & Grounds
LIST,Cambridge City Council,GPC,27/06/23,4,270, -   ,8.95,8.95,Postage of Contract Documents for Seali,Communities,64100,Postage And Courier Services,Sport & Recreation Administration
LIST,Cambridge City Council,GPC,27/06/23,4,270,9.16,45.82,54.98,Summer events equipment,Communities,61703,"Purchase - Equipment, Furniture And Materials",Active Lifestyles - Communities (ex Sports Development)
LIST,Cambridge City Council,GPC,27/06/23,4,276, -   ,59.98,59.98,2 x pair safety trainers for Operationa,City Services,62000,"Clothes, Uniform And Laundry",Grounds Maintenance & Street Cleaning
LIST,Cambridge City Council,GPC,27/06/23,4,267, -   ,535.5,535.5,Curtain track for TA stock,Corporate,61703,"Purchase - Equipment, Furniture And Materials",Housing Revenue Account - Net Cost of Service
LIST,Cambridge City Council,GPC,27/06/23,4,267, -   ,"1,204.00","1,204.00",3x cookers & 3x fridges for TA stock,Corporate,61703,"Purchase - Equipment, Furniture And Materials",Housing Revenue Account - Net Cost of Service
LIST,Cambridge City Council,GPC,27/06/23,5,274,20.43,102.16,122.59,Snapper Tool and Lock Picker,City Services,61703,"Purchase - Equipment, Furniture And Materials",Building Maintenance Response - Direct
LIST,Cambridge City Council,GPC,27/06/23,4,271, -   ,159,159,tv license,Place,63900,Miscellaneous Expenses,130 Cowley Road
LIST,Cambridge City Council,GPC,28/06/23,5,282,4.52,22.58,27.1,Small boxes for ashes,City Services,61703,"Purchase - Equipment, Furniture And Materials",Cambridge Crematorium
LIST,Cambridge City Council,GPC,28/06/23,5,296, -   ,64.99,64.99,canva lisence,Communities,62005,"Advertising, Publicity And Marketing",Neighbourhood Community Development
LIST,Cambridge City Council,GPC,28/06/23,5,284,2.4,12,14.4,1 x Level 2 Food Hygiene for Sheltered,Communities,52000,Courses & Training Income,Environmental Health Operational Support
LIST,Cambridge City Council,GPC,28/06/23,4,283,4.83,24.13,28.96,Equipment,Communities,61703,"Purchase - Equipment, Furniture And Materials",Environmental Health Operational Support
LIST,Cambridge City Council,GPC,28/06/23,4,283,2,9.98,11.98,Equipment,Communities,61703,"Purchase - Equipment, Furniture And Materials",Environmental Health Operational Support
LIST,Cambridge City Council,GPC,28/06/23,5,274, -   ,19.99,19.99,Hop-Up,City Services,61703,"Purchase - Equipment, Furniture And Materials",Building Maintenance Response - Direct
LIST,Cambridge City Council,GPC,28/06/23,5,274, -   ,37.68,37.68,Reference Book,City Services,61703,"Purchase - Equipment, Furniture And Materials",Building Maintenance Response - Direct
LIST,Cambridge City Council,GPC,28/06/23,5,274,8.3,41.49,49.79,Work Platform,City Services,61703,"Purchase - Equipment, Furniture And Materials",Building Maintenance Response - Direct
LIST,Cambridge City Council,GPC,28/06/23,4,266,4.56,22.8,27.36,5 Notebooks,Corporate,62002,Stationery,Business Support - Centralised Overheads
LIST,Cambridge City Council,GPC,29/06/23,5,295, -   ,220.28,220.28,tools and equipment,Communities,61703,"Purchase - Equipment, Furniture And Materials",The Meadows Community Centre
LIST,Cambridge City Council,GPC,29/06/23,5,295, -   ,181.37,181.37,tools and equipment,Communities,61703,"Purchase - Equipment, Furniture And Materials",The Meadows Community Centre
LIST,Cambridge City Council,GPC,29/06/23,6,273, -   ,307.5,307.5,MOT test slots,City Services,61703,"Purchase - Equipment, Furniture And Materials",Garage- External Work
LIST,Cambridge City Council,GPC,29/06/23,5,292,1.15,5.74,6.89,Wall Planner,Communities,62002,Stationery,Brown's Field Youth and Community Centre
LIST,Cambridge City Council,GPC,29/06/23,10,399, -   ,33,33,TEVERSHAM SF CONNECT-CAMBRIDGE,Communities,60902,Transport Fuel,City Events
LIST,Cambridge City Council,GPC,29/06/23,10,399, -   ,45,45,MERCURE WESSEX HOTEL-WINCHESTER HA,Communities,64800,Membership And Subscriptions,City Events
LIST,Cambridge City Council,GPC,29/06/23,4,283,4.25,21.22,25.47,Equipment,Communities,61703,"Purchase - Equipment, Furniture And Materials",Environmental Health Operational Support
LIST,Cambridge City Council,GPC,29/06/23,5,278, -   ,3.99,3.99,Disabled access key for Lesley Wolfe,Communities,63900,Miscellaneous Expenses,DLUHC Homelessness Grants (RSI)
LIST,Cambridge City Council,GPC,29/06/23,4,276, -   ,19.12,19.12,Cable Ties for Public Enforcement Notic,City Services,61703,"Purchase - Equipment, Furniture And Materials",Public Realm Enforcement
LIST,Cambridge City Council,GPC,29/06/23,4,276, -   ,10.94,10.94,Twine used for Public Realm Enforcement,City Services,61703,"Purchase - Equipment, Furniture And Materials",Public Realm Enforcement
LIST,Cambridge City Council,GPC,29/06/23,4,276, -   ,42.35,42.35,White / Natural Biodegradable Cable Tie,City Services,61703,"Purchase - Equipment, Furniture And Materials",Public Realm Enforcement
LIST,Cambridge City Council,GPC,29/06/23,4,267, -   ,50,50,77 Birdwood Road - electric top up,Communities,60303,Electricity,Temporary Accommodation
LIST,Cambridge City Council,GPC,29/06/23,4,267, -   ,50,50,78a Chalmers Road - electric top up,Communities,60303,Electricity,Temporary Accommodation
LIST,Cambridge City Council,GPC,29/06/23,4,267, -   ,99,99,8 Davy Road - gas top up,Communities,60305,Gas,Temporary Accommodation
LIST,Cambridge City Council,GPC,29/06/23,7,277, -   ,205,205,CIPD DS,Corporate,64800,Membership And Subscriptions,Human Resources Operations (Staff-General)
LIST,Cambridge City Council,GPC,30/06/23,5,292,4.17,20.82,24.99,Child safety gate,Communities,61703,"Purchase - Equipment, Furniture And Materials",Brown's Field Youth and Community Centre
LIST,Cambridge City Council,GPC,30/06/23,4,270, -   ,100.8,100.8,Online Coaching Platform,Communities,64800,Membership And Subscriptions,Active Lifestyles - Communities (ex Sports Development)
LIST,Cambridge City Council,GPC,30/06/23,7,277, -   ,18,18,Homes for Ukraine,Corporate,62500,Dbs Checks - Non-Staff,Strategic Director #2
LIST,Cambridge City Council,GPC,30/06/23,7,277, -   ,18,18,Homes for Ukraine,Corporate,62500,Dbs Checks - Non-Staff,Strategic Director #2
LIST,Cambridge City Council,GPC,30/06/23,4,283,1.49,7.46,8.95,Equipment,Communities,61703,"Purchase - Equipment, Furniture And Materials",Environmental Health Operational Support
LIST,Cambridge City Council,GPC,30/06/23,5,278, -   ,5,5,AM coffee,Communities,63900,Miscellaneous Expenses,DLUHC Homelessness Grants (RSI)
LIST,Cambridge City Council,GPC,30/06/23,5,284,33.34,166.72,200.06,Items for Kitchen Areas at Drop in Offi,Corporate,61703,"Purchase - Equipment, Furniture And Materials",Housing Revenue Account - Net Cost of Service
LIST,Cambridge City Council,GPC,30/06/23,5,274, -   ,-4.98,-4.98,Plumbers Grease,City Services,61703,"Purchase - Equipment, Furniture And Materials",Building Maintenance Response - Direct
LIST,Cambridge City Council,GPC,30/06/23,5,274, -   ,33.84,33.84,Napit Guide Book,City Services,62003,"Books, Publications And Resources",Building Maintenance Response - Direct
LIST,Cambridge City Council,GPC,30/06/23,7,277, -   ,232,232,CIPD AD,Corporate,64800,Membership And Subscriptions,Human Resources Operations (Staff-General)
LIST,Cambridge City Council,GPC,30/06/23,7,277, -   , -   , -   ,CIPD AD,Corporate,64800,Membership And Subscriptions,Human Resources Operations (Staff-General)
LIST,Cambridge City Council,GPC,30/06/23,4,275, -   ,49.05,49.05,Refreshments for Honorary Recorder Civi,Corporate,64200,Subsistence,Business Support - Centralised Overheads
LIST,Cambridge City Council,GPC,01/07/23,4,272, -   ,8.99,8.99,Amazon Prime,Communities,60410,Licences,Clay Farm Community Centre
LIST,Cambridge City Council,GPC,01/07/23,6,297, -   ,95.88,95.88,Marketing Dropbox folder,Communities,62005,"Advertising, Publicity And Marketing",Cultural Services and Events - Central
LIST,Cambridge City Council,GPC,01/07/23,6,297, -   ,171.94,171.94,Folk Festival google ads,Communities,62005,"Advertising, Publicity And Marketing",Folk Festival
LIST,Cambridge City Council,GPC,01/07/23,6,297, -   ,172.25,172.25,Folk Festival google ads,Communities,62005,"Advertising, Publicity And Marketing",Folk Festival
LIST,Cambridge City Council,GPC,01/07/23,5,274,1.38,6.91,8.29,Rust Remover,City Services,61703,"Purchase - Equipment, Furniture And Materials",Building Maintenance Response - Direct
LIST,Cambridge City Council,GPC,01/07/23,5,274,11.81,59.06,70.87,Gully Grids,City Services,61703,"Purchase - Equipment, Furniture And Materials",Building Maintenance Response - Direct
LIST,Cambridge City Council,GPC,02/07/23,5,287, -   ,14,14,Facebook ad payment for Comms Team,City Services,61703,"Purchase - Equipment, Furniture And Materials",Public Realm Enforcement
LIST,Cambridge City Council,GPC,02/07/23,6,297, -   ,0.5,0.5,CAN - Amazon,Communities,64073,ICT Maintenance and Support,Culture and Community
LIST,Cambridge City Council,GPC,03/07/23,5,280, -   ,47.65,47.65,Cleaning products,City Services,61703,"Purchase - Equipment, Furniture And Materials",Cambridge Crematorium
LIST,Cambridge City Council,GPC,03/07/23,5,280, -   ,92.5,92.5,Stamps,City Services,64100,Postage And Courier Services,Bereavement Services Central Costs
LIST,Cambridge City Council,GPC,03/07/23,5,295, -   ,243.49,243.49,tools and equipment,Communities,61703,"Purchase - Equipment, Furniture And Materials",The Meadows Community Centre
LIST,Cambridge City Council,GPC,03/07/23,5,295, -   ,82.31,82.31,tools and equipment,Communities,61703,"Purchase - Equipment, Furniture And Materials",The Meadows Community Centre
LIST,Cambridge City Council,GPC,03/07/23,4,270, -   ,40,40,MvF Weds Session,Communities,60402,Premises Hire - Facilities,Active Lifestyles - Communities (ex Sports Development)
LIST,Cambridge City Council,GPC,03/07/23,4,270, -   ,33.95,33.95,Dyna Exercise Bands - Ex Ref,Communities,61703,"Purchase - Equipment, Furniture And Materials",Active Lifestyles - Projects
LIST,Cambridge City Council,GPC,03/07/23,7,277, -   ,18,18,Homes for Ukraine,Corporate,62500,Dbs Checks - Non-Staff,Strategic Director #2
LIST,Cambridge City Council,GPC,03/07/23,4,267, -   ,50,50,23 Hanover Court - electric top up,Communities,60303,Electricity,Temporary Accommodation
LIST,Cambridge City Council,GPC,03/07/23,4,267, -   ,50,50,27 Princess Court - electric top up,Communities,60303,Electricity,Temporary Accommodation
LIST,Cambridge City Council,GPC,03/07/23,4,267, -   ,50,50,33 Hawthorn Way - electric top up,Communities,60303,Electricity,Temporary Accommodation
LIST,Cambridge City Council,GPC,03/07/23,4,267, -   ,50,50,29a Ekin Road - electric top up,Communities,60303,Electricity,Temporary Accommodation
LIST,Cambridge City Council,GPC,03/07/23,4,267, -   ,50,50,12 Hanover Court - electric top up,Communities,60303,Electricity,Temporary Accommodation
LIST,Cambridge City Council,GPC,03/07/23,4,267, -   ,50,50,78 Hanover Court - electric top up,Communities,60303,Electricity,Temporary Accommodation
LIST,Cambridge City Council,GPC,03/07/23,4,267, -   ,99,99,33 Hawthorn Way - gas top up,Communities,60305,Gas,Temporary Accommodation
LIST,Cambridge City Council,GPC,03/07/23,4,267, -   ,50,50,51 Hanover Court - electric top up,Communities,60305,Gas,Temporary Accommodation
LIST,Cambridge City Council,GPC,03/07/23,4,267, -   ,75,75,8 Davy Road - gas top up,Communities,60305,Gas,Temporary Accommodation
LIST,Cambridge City Council,GPC,04/07/23,5,295, -   ,13.2,13.2,stamps,Communities,64100,Postage And Courier Services,The Meadows Community Centre
LIST,Cambridge City Council,GPC,04/07/23,5,295, -   ,209.74,209.74,refreshments,Communities,64200,Subsistence,The Meadows Community Centre
LIST,Cambridge City Council,GPC,04/07/23,5,292,2.17,10.83,13,Key,Communities,61703,"Purchase - Equipment, Furniture And Materials",Brown's Field Youth and Community Centre
LIST,Cambridge City Council,GPC,04/07/23,7,334, -   ,21,21,TENs Application Fee,Communities,60410,Licences,Folk Festival
LIST,Cambridge City Council,GPC,04/07/23,7,334, -   ,21,21,TENs Application Fee,Communities,60410,Licences,Folk Festival
LIST,Cambridge City Council,GPC,04/07/23,7,334, -   ,21,21,TENs Application Fee,Communities,60410,Licences,Folk Festival
LIST,Cambridge City Council,GPC,04/07/23,7,334, -   ,168.3,168.3,Stationary & Small Equipment Order,Communities,61703,"Purchase - Equipment, Furniture And Materials",Folk Festival
LIST,Cambridge City Council,GPC,04/07/23,7,334, -   ,26.85,26.85,Batteries,Communities,61703,"Purchase - Equipment, Furniture And Materials",Folk Festival
LIST,Cambridge City Council,GPC,04/07/23,7,334, -   ,25.49,25.49,Line marker,Communities,61703,"Purchase - Equipment, Furniture And Materials",Folk Festival
LIST,Cambridge City Council,GPC,04/07/23,7,334, -   ,18.12,18.12,Small Equipment Order,Communities,61703,"Purchase - Equipment, Furniture And Materials",Folk Festival
LIST,Cambridge City Council,GPC,04/07/23,7,334, -   ,77.64,77.64,Stationary & Small Equipment Order,Communities,62002,Stationery,Folk Festival
LIST,Cambridge City Council,GPC,04/07/23,7,334, -   ,37.3,37.3,Stationary & Small Equipment Order,Communities,62002,Stationery,Folk Festival
LIST,Cambridge City Council,GPC,04/07/23,6,297, -   ,65.92,65.92,Folk Festival ads,Communities,62005,"Advertising, Publicity And Marketing",Folk Festival
LIST,Cambridge City Council,GPC,04/07/23,6,297, -   ,43.19,43.19,Folk Festival ads,Communities,62005,"Advertising, Publicity And Marketing",Folk Festival
LIST,Cambridge City Council,GPC,04/07/23,5,289, -   ,4.5,4.5,Bin store key (RSAP),Communities,63900,Miscellaneous Expenses,DLUHC Homelessness Grants (RSI)
LIST,Cambridge City Council,GPC,04/07/23,5,286, -   ,55,55,50 X 1st class stamps for Community Eng,City Services,61703,"Purchase - Equipment, Furniture And Materials",Public Realm Enforcement
LIST,Cambridge City Council,GPC,04/07/23,5,286, -   ,29.29,29.29,Components for Sweeper,City Services,61703,"Purchase - Equipment, Furniture And Materials",Grounds Maintenance & Street Cleaning
LIST,Cambridge City Council,GPC,04/07/23,5,286, -   ,209.99,209.99,Battery for HAKO Sweeper,City Services,60904,Vehicle Repairs And Maintenance,Grounds Maintenance & Street Cleaning
LIST,Cambridge City Council,GPC,04/07/23,4,271, -   ,219.99,219.99,new drill for nigel,Place,61703,"Purchase - Equipment, Furniture And Materials",Facilities Management
LIST,Cambridge City Council,GPC,04/07/23,6,297, -   ,90.89,90.89,Folk Festival ads,Communities,62005,"Advertising, Publicity And Marketing",Corn Exchange and Guildhalls
LIST,Cambridge City Council,GPC,05/07/23,5,292, -   ,26.51,26.51,Food for Community Breakfast,Communities,64200,Subsistence,Community Resilience
LIST,Cambridge City Council,GPC,05/07/23,4,270,22.83,114.16,136.99,Walkie Talkies for summer events,Communities,61703,"Purchase - Equipment, Furniture And Materials",Active Lifestyles - Communities (ex Sports Development)
LIST,Cambridge City Council,GPC,05/07/23,10,399, -   ,248.4,248.4,PROJSS.CO.UK-BASILDON,Communities,60115,Staff Development And Training,City Events
LIST,Cambridge City Council,GPC,05/07/23,7,334, -   ,10.93,10.93,Small Equipment Order,Communities,61703,"Purchase - Equipment, Furniture And Materials",Folk Festival
LIST,Cambridge City Council,GPC,05/07/23,4,275, -   ,134.5,134.5,Frame for Honorary Recorder,Chief Executive,63900,Miscellaneous Expenses,Civic Affairs and Twinning
LIST,Cambridge City Council,GPC,05/07/23,5,278, -   ,9.25,9.25,Taxi for Shaun Hardwicke to GP surgery,Communities,63900,Miscellaneous Expenses,DLUHC Homelessness Grants (RSI)
LIST,Cambridge City Council,GPC,05/07/23,4,267, -   ,25,25,Curtains for RSAP property at 21 Ditton,Corporate,61703,"Purchase - Equipment, Furniture And Materials",Housing Revenue Account - Net Cost of Service
LIST,Cambridge City Council,GPC,05/07/23,5,278, -   ,79.81,79.81,Passport application,Communities,64900,Registration Fee,Housing Charity Grant Payments
LIST,Cambridge City Council,GPC,06/07/23,5,280, -   ,190.72,190.72,Uniform,City Services,62000,"Clothes, Uniform And Laundry",Bereavement Services Central Costs
LIST,Cambridge City Council,GPC,06/07/23,5,292,1,4.99,5.99,Spray Paint White,Communities,61703,"Purchase - Equipment, Furniture And Materials",Brown's Field Youth and Community Centre
LIST,Cambridge City Council,GPC,06/07/23,10,399, -   ,101.5,101.5,PREMIER INN-CORBY,Communities,60115,Staff Development And Training,City Events
LIST,Cambridge City Council,GPC,06/07/23,7,334, -   ,108,108,Site Plans Printed,Communities,62002,Stationery,Folk Festival
LIST,Cambridge City Council,GPC,06/07/23,4,267, -   ,50,50,130 Kingsway - Electric top up,Communities,60303,Electricity,Temporary Accommodation
LIST,Cambridge City Council,GPC,06/07/23,4,267, -   ,50,50,78a Chalmers Road - electric top up,Communities,60303,Electricity,Temporary Accommodation
LIST,Cambridge City Council,GPC,06/07/23,4,267, -   ,50,50,78a Chalmers Road - electric top up,Communities,60303,Electricity,Temporary Accommodation
LIST,Cambridge City Council,GPC,06/07/23,4,267, -   ,49,49,8 Davy Road - electric top up,Communities,60303,Electricity,Temporary Accommodation
LIST,Cambridge City Council,GPC,06/07/23,4,267, -   ,49,49,8 Davy Road - electric top up,Communities,60303,Electricity,Temporary Accommodation
LIST,Cambridge City Council,GPC,06/07/23,4,267, -   ,80,80,99 Wadloes Road - electric top up,Communities,60303,Electricity,Temporary Accommodation
LIST,Cambridge City Council,GPC,06/07/23,4,267, -   ,99,99,16 Ekin Road - gas top up,Communities,60305,Gas,Temporary Accommodation
LIST,Cambridge City Council,GPC,06/07/23,4,267, -   ,75,75,8 Davy Road - gas top up,Communities,60305,Gas,Temporary Accommodation
LIST,Cambridge City Council,GPC,06/07/23,4,267, -   ,99,99,8 Davy Road - gas top up,Communities,60305,Gas,Temporary Accommodation
LIST,Cambridge City Council,GPC,06/07/23,4,267, -   ,75,75,29a Ekin Road - gas top up,Communities,60305,Gas,Temporary Accommodation
LIST,Cambridge City Council,GPC,06/07/23,4,267, -   ,75,75,24a Ekin Road - gas top up,Communities,60305,Gas,Temporary Accommodation
LIST,Cambridge City Council,GPC,07/07/23,5,280, -   ,18.97,18.97,Cleaning Products,City Services,61703,"Purchase - Equipment, Furniture And Materials",Cambridge Crematorium
LIST,Cambridge City Council,GPC,07/07/23,5,295, -   ,3.1,3.1,refreshments,Communities,64200,Subsistence,The Meadows Community Centre
LIST,Cambridge City Council,GPC,07/07/23,5,292,7.5,37.5,45,Keys Window,Communities,61703,"Purchase - Equipment, Furniture And Materials",Brown's Field Youth and Community Centre
LIST,Cambridge City Council,GPC,07/07/23,5,292, -   ,4.5,4.5,Tesco No More Nails,Communities,61703,"Purchase - Equipment, Furniture And Materials",Brown's Field Youth and Community Centre
LIST,Cambridge City Council,GPC,07/07/23,4,272,3.17,15.84,19.01,Ice packs for 1st aid,Communities,60207,Health And Safety Supplies And Services,Clay Farm Community Centre
LIST,Cambridge City Council,GPC,07/07/23,4,272,0.78,3.91,4.69,Stationery,Communities,62002,Stationery,Clay Farm Community Centre
LIST,Cambridge City Council,GPC,07/07/23,4,272,1.24,6.2,7.44,Paper for Event Tickets,Communities,62900,Events,Clay Farm Community Centre
LIST,Cambridge City Council,GPC,07/07/23,4,272,0.88,4.37,5.25,Paper for Event tickets,Communities,62900,Events,Clay Farm Community Centre
LIST,Cambridge City Council,GPC,07/07/23,4,270, -   ,6,6,Phone Service for Contactless payments,Communities,64077,Telephone And Mobile Phone Costs,Sport & Recreation Administration
LIST,Cambridge City Council,GPC,07/07/23,5,274,28.33,141.62,169.95,Makita Drill,City Services,61703,"Purchase - Equipment, Furniture And Materials",Building Maintenance Response - Direct
LIST,Cambridge City Council,GPC,08/07/23,5,280, -   ,-51.73,-51.73,Stationery,City Services,62002,Stationery,Cambridge Crematorium
LIST,Cambridge City Council,GPC,08/07/23,5,280, -   ,2.25,2.25,Postage,City Services,64100,Postage And Courier Services,Bereavement Services Central Costs
LIST,Cambridge City Council,GPC,08/07/23,5,296, -   ,57.98,57.98,zoom license,Communities,64077,Telephone And Mobile Phone Costs,Neighbourhood Community Development
LIST,Cambridge City Council,GPC,08/07/23,6,297, -   ,128.12,128.12,Facebook ads,Communities,62005,"Advertising, Publicity And Marketing",Folk Festival
LIST,Cambridge City Council,GPC,08/07/23,6,297, -   ,42.71,42.71,Facebook ads,Communities,62005,"Advertising, Publicity And Marketing",Folk Festival
LIST,Cambridge City Council,GPC,08/07/23,5,287, -   ,14,14,Facebook advertisement payment for the,City Services,61703,"Purchase - Equipment, Furniture And Materials",Public Realm Enforcement
LIST,Cambridge City Council,GPC,08/07/23,6,297, -   ,29.17,29.17,Facebook ads,Communities,62005,"Advertising, Publicity And Marketing",Corn Exchange and Guildhalls
LIST,Cambridge City Council,GPC,09/07/23,4,272,2.83,14.15,16.98,Stationery,Communities,62002,Stationery,Clay Farm Community Centre
LIST,Cambridge City Council,GPC,09/07/23,4,272,1.08,5.4,6.48,Pins and ribbon for events,Communities,62900,Events,Clay Farm Community Centre
LIST,Cambridge City Council,GPC,09/07/23,6,293, -   ,98,98,Bus passes,Communities,60914,Public Transport For Staff And Members,Syrian Resettlement
LIST,Cambridge City Council,GPC,09/07/23,6,293, -   ,98,98,Bus passes,Communities,60914,Public Transport For Staff And Members,Syrian Resettlement
LIST,Cambridge City Council,GPC,10/07/23,4,270, -   ,40,40,MvF Weds Session,Communities,60402,Premises Hire - Facilities,Active Lifestyles - Communities (ex Sports Development)
LIST,Cambridge City Council,GPC,10/07/23,8,306, -   ,85.6,85.6,PPE,Corporate,61703,"Purchase - Equipment, Furniture And Materials",Quality/Health & Safety Management - Indirect
LIST,Cambridge City Council,GPC,10/07/23,7,277, -   ,18,18,Homes for Ukraine,Corporate,62500,Dbs Checks - Non-Staff,Strategic Director #2
LIST,Cambridge City Council,GPC,10/07/23,6,297, -   ,45.48,45.48,Facebook ads,Communities,62005,"Advertising, Publicity And Marketing",Folk Festival
LIST,Cambridge City Council,GPC,10/07/23,6,297, -   ,127.29,127.29,Facebook ads,Communities,62005,"Advertising, Publicity And Marketing",Folk Festival
LIST,Cambridge City Council,GPC,10/07/23,5,287, -   ,14,14,Facebook advert payment for Comms Team,City Services,61703,"Purchase - Equipment, Furniture And Materials",Public Realm Enforcement
LIST,Cambridge City Council,GPC,10/07/23,4,267, -   ,40,40,78a Chalmers Road - electric top up,Communities,60303,Electricity,Temporary Accommodation
LIST,Cambridge City Council,GPC,10/07/23,4,267, -   ,40,40,8 Davy Road - electric top up,Communities,60303,Electricity,Temporary Accommodation
LIST,Cambridge City Council,GPC,10/07/23,4,267, -   ,10,10,78a Chalmers Road - electric top up,Communities,60303,Electricity,Temporary Accommodation
LIST,Cambridge City Council,GPC,10/07/23,4,267, -   ,10,10,8 Davy Road - electric top up,Communities,60303,Electricity,Temporary Accommodation
LIST,Cambridge City Council,GPC,10/07/23,4,267, -   ,99,99,77 Birdwood Road - gas top up,Communities,60305,Gas,Temporary Accommodation
LIST,Cambridge City Council,GPC,10/07/23,5,274,1.98,9.89,11.87,Post Base,City Services,61703,"Purchase - Equipment, Furniture And Materials",Building Maintenance Response - Direct
LIST,Cambridge City Council,GPC,10/07/23,5,274,2.33,11.62,13.95,Garage Door Rollers,City Services,61703,"Purchase - Equipment, Furniture And Materials",Building Maintenance Response - Direct
LIST,Cambridge City Council,GPC,10/07/23,5,274,10.64,53.2,63.84,Traffic Barriers,City Services,61703,"Purchase - Equipment, Furniture And Materials",Building Maintenance Response - Direct
LIST,Cambridge City Council,GPC,10/07/23,5,274,2,9.98,11.98,Plinth Clips,City Services,61703,"Purchase - Equipment, Furniture And Materials",Building Maintenance Response - Direct
LIST,Cambridge City Council,GPC,10/07/23,6,297, -   ,27.23,27.23,Facebook ads,Communities,62005,"Advertising, Publicity And Marketing",Corn Exchange and Guildhalls
LIST,Cambridge City Council,GPC,11/07/23,5,288,9.49,47.46,56.95,clover leaf blanket weed treatment,City Services,60503,Grounds Maintenance,Cambridge Crematorium
LIST,Cambridge City Council,GPC,11/07/23,5,288,2.99,14.93,17.92,blanket weed treatment,City Services,61703,"Purchase - Equipment, Furniture And Materials",Bereavement Services - Burials & Grounds
LIST,Cambridge City Council,GPC,11/07/23,5,296, -   ,28.11,28.11,bookwhen software,Communities,62900,Events,Neighbourhood Community Development
LIST,Cambridge City Council,GPC,11/07/23,4,270,13.41,67.05,80.46,3x Stone nest boxes - Nightingale Pavil,Communities,61703,"Purchase - Equipment, Furniture And Materials",Sport & Recreation Administration
LIST,Cambridge City Council,GPC,11/07/23,4,270,14.27,71.33,85.6,Bat Boxes - Nightingale Pavilion,Communities,61703,"Purchase - Equipment, Furniture And Materials",Sport & Recreation Administration
LIST,Cambridge City Council,GPC,11/07/23,4,270, -   ,77.24,77.24,Dyna Exercise Bands - Ex ref,Communities,61703,"Purchase - Equipment, Furniture And Materials",Active Lifestyles - Projects
LIST,Cambridge City Council,GPC,11/07/23,5,268, -   ,100,100,Facebook advertising: Playbox - Parker',Corporate,62005,"Advertising, Publicity And Marketing",Corporate Marketing
LIST,Cambridge City Council,GPC,11/07/23,7,334, -   ,88,88,Stage furniture,Communities,61703,"Purchase - Equipment, Furniture And Materials",Folk Festival
LIST,Cambridge City Council,GPC,11/07/23,4,276, -   ,55,55,"Annual LGV medical for Mark Thomas, Gen",City Services,60907,Other Vehicle Costs,Grounds Maintenance & Street Cleaning
LIST,Cambridge City Council,GPC,11/07/23,5,294, -   ,103.18,103.18,Photos for publications,City Services,62005,"Advertising, Publicity And Marketing",River Frontage Management
LIST,Cambridge City Council,GPC,11/07/23,5,284,146.52,732.58,879.1,Replacement cooker for communal kitchen,Corporate,61703,"Purchase - Equipment, Furniture And Materials",Housing Revenue Account - Net Cost of Service
LIST,Cambridge City Council,GPC,11/07/23,5,274,3.16,15.82,18.98,Threshold Strip,City Services,61703,"Purchase - Equipment, Furniture And Materials",Building Maintenance Response - Direct
LIST,Cambridge City Council,GPC,12/07/23,5,290, -   ,228,228,bookwhen system for summer events booki,Communities,62900,Events,Neighbourhood Community Development
LIST,Cambridge City Council,GPC,12/07/23,5,290, -   , -   , -   ,bookwhen system for summer events booki,Communities,62900,Events,Neighbourhood Community Development
LIST,Cambridge City Council,GPC,12/07/23,5,292,34,169.99,203.99,Charles Hoover,Communities,61703,"Purchase - Equipment, Furniture And Materials",Brown's Field Youth and Community Centre
LIST,Cambridge City Council,GPC,12/07/23,4,270,3.8,18.97,22.77,Stampers for Summer Events,Communities,61703,"Purchase - Equipment, Furniture And Materials",Active Lifestyles - Communities (ex Sports Development)
LIST,Cambridge City Council,GPC,12/07/23,4,267, -   ,727,727,Belfast Beds for Town Hall Lettings,Communities,63900,Miscellaneous Expenses,Homelessness Prevention Grant
LIST,Cambridge City Council,GPC,12/07/23,5,291,55,275,330,Domestic Abuse flexible funding purchase,Communities,61703,"Purchase - Equipment, Furniture And Materials",Homelessness Prevention Grant
LIST,Cambridge City Council,GPC,12/07/23,4,267, -   ,189,189,Belfast Beds for Town Hall Lettings,Communities,60400,Rents Payable,Access Scheme
LIST,Cambridge City Council,GPC,12/07/23,5,274,1.5,7.48,8.98,Ducting Coupling,City Services,61703,"Purchase - Equipment, Furniture And Materials",Building Maintenance Response - Direct
LIST,Cambridge City Council,GPC,12/07/23,5,274,3.33,16.65,19.98,Flexible Ducting,City Services,61703,"Purchase - Equipment, Furniture And Materials",Building Maintenance Response - Direct
LIST,Cambridge City Council,GPC,12/07/23,5,274,6.68,33.37,40.05,Extractor Duct,City Services,61703,"Purchase - Equipment, Furniture And Materials",Building Maintenance Response - Direct
LIST,Cambridge City Council,GPC,12/07/23,5,274,1.34,6.7,8.04,Coloured Labels,City Services,62002,Stationery,Building Services - Indirect
LIST,Cambridge City Council,GPC,13/07/23,6,273, -   ,369.34,369.34,Dealership repairs to fleet number 134,City Services,61703,"Purchase - Equipment, Furniture And Materials",Fleet Management - Operational
LIST,Cambridge City Council,GPC,13/07/23,5,295, -   ,3.1,3.1,refreshments,Communities,64200,Subsistence,The Meadows Community Centre
LIST,Cambridge City Council,GPC,13/07/23,4,272,4.5,22.47,26.97,Pencils for event,Communities,62900,Events,Clay Farm Community Centre
LIST,Cambridge City Council,GPC,13/07/23,10,399, -   ,83.83,83.83,AMZNMktplace-amazon.co.uk,Communities,64200,Subsistence,City Events
LIST,Cambridge City Council,GPC,13/07/23,7,334, -   ,26.07,26.07,Stationary,Communities,62002,Stationery,Folk Festival
LIST,Cambridge City Council,GPC,13/07/23,5,278, -   ,10,10,Jake Chalker phone topup,Communities,63900,Miscellaneous Expenses,DLUHC Homelessness Grants (RSI)
LIST,Cambridge City Council,GPC,13/07/23,6,293, -   ,98,98,Bus passes,Communities,60914,Public Transport For Staff And Members,Syrian Resettlement
LIST,Cambridge City Council,GPC,13/07/23,5,287, -   ,17,17,Facebook advert payment for Comms Team,City Services,61703,"Purchase - Equipment, Furniture And Materials",Public Realm Enforcement
LIST,Cambridge City Council,GPC,13/07/23,5,294, -   ,76,76,eBook - Spons Landscape Manual,City Services,62003,"Books, Publications And Resources",Open Space Development
LIST,Cambridge City Council,GPC,13/07/23,6,316, -   ,-76,-76,refunded item,City Services,62003,"Books, Publications And Resources",Open Space Development
LIST,Cambridge City Council,GPC,13/07/23,4,267, -   ,80,80,4 Princess Court - electric top up,Communities,60303,Electricity,Temporary Accommodation
LIST,Cambridge City Council,GPC,13/07/23,5,274,1,4.98,5.98,Coloured Labels,City Services,62002,Stationery,Building Services - Indirect
LIST,Cambridge City Council,GPC,14/07/23,5,280, -   ,100.37,100.37,Stationery,City Services,62002,Stationery,Cambridge Crematorium
LIST,Cambridge City Council,GPC,14/07/23,5,296, -   ,353.99,353.99,national play day,Communities,62900,Events,Neighbourhood Community Development
LIST,Cambridge City Council,GPC,14/07/23,5,292,4.5,22.47,26.97,HMDI to VGA connectors,Communities,61703,"Purchase - Equipment, Furniture And Materials",Brown's Field Youth and Community Centre
LIST,Cambridge City Council,GPC,14/07/23,5,292, -   ,40.19,40.19,Paint Tools Brushes,Communities,61703,"Purchase - Equipment, Furniture And Materials",Brown's Field Youth and Community Centre
LIST,Cambridge City Council,GPC,14/07/23,4,272,4.33,21.66,25.99,Condolence Book,Communities,62002,Stationery,Clay Farm Community Centre
LIST,Cambridge City Council,GPC,14/07/23,4,272,5,24.97,29.97,Notepads for event,Communities,62900,Events,Clay Farm Community Centre
LIST,Cambridge City Council,GPC,14/07/23,4,270,7.99,39.97,47.96,Label Machine and print reels,Communities,61703,"Purchase - Equipment, Furniture And Materials",Sport & Recreation Administration
LIST,Cambridge City Council,GPC,14/07/23,7,277, -   ,18,18,Homes for Ukraine,Corporate,62500,Dbs Checks - Non-Staff,Strategic Director #2
LIST,Cambridge City Council,GPC,14/07/23,6,297, -   ,155.53,155.53,Facebook ads,Communities,62005,"Advertising, Publicity And Marketing",Folk Festival
LIST,Cambridge City Council,GPC,14/07/23,6,297, -   ,11.81,11.81,Facebook ads,Communities,62005,"Advertising, Publicity And Marketing",Folk Festival
LIST,Cambridge City Council,GPC,14/07/23,4,276, -   ,15.2,15.2,Public Ream Enforcement case file.,City Services,61703,"Purchase - Equipment, Furniture And Materials",Public Realm Enforcement
LIST,Cambridge City Council,GPC,14/07/23,5,284,58.83,294.17,353,Replacement Fridge Freezer for Unit 1 K,Corporate,61703,"Purchase - Equipment, Furniture And Materials",Housing Revenue Account - Net Cost of Service
LIST,Cambridge City Council,GPC,14/07/23,4,271, -   ,14.99,14.99,glue and tapes,Place,61703,"Purchase - Equipment, Furniture And Materials",Facilities Management
LIST,Cambridge City Council,GPC,14/07/23,6,297, -   ,32.66,32.66,Facebook ads,Communities,62005,"Advertising, Publicity And Marketing",Corn Exchange and Guildhalls
LIST,Cambridge City Council,GPC,15/07/23,5,280, -   ,79.84,79.84,Stationery,City Services,62002,Stationery,Cambridge Crematorium
LIST,Cambridge City Council,GPC,16/07/23,10,399, -   ,47.23,47.23,UBER *EATS-HELP.UBER.COM,Communities,64200,Subsistence,City Events
LIST,Cambridge City Council,GPC,16/07/23,7,334, -   ,216.44,216.44,Site Signs,Communities,61703,"Purchase - Equipment, Furniture And Materials",Folk Festival
LIST,Cambridge City Council,GPC,16/07/23,7,334, -   ,61.92,61.92,Rope,Communities,61703,"Purchase - Equipment, Furniture And Materials",Folk Festival
LIST,Cambridge City Council,GPC,16/07/23,7,334,47.64,238.2,285.84,Cable Ties,Communities,61703,"Purchase - Equipment, Furniture And Materials",Folk Festival
LIST,Cambridge City Council,GPC,16/07/23,4,283,9.33,46.65,55.98,Equipment,Communities,61703,"Purchase - Equipment, Furniture And Materials",Environmental Health Operational Support
LIST,Cambridge City Council,GPC,17/07/23,5,280, -   ,116.96,116.96,Stationery,City Services,62002,Stationery,Cambridge Crematorium
LIST,Cambridge City Council,GPC,17/07/23,5,288,14.18,70.92,85.1,strimmer cord and gloves,City Services,61703,"Purchase - Equipment, Furniture And Materials",Bereavement Services - Burials & Grounds
LIST,Cambridge City Council,GPC,17/07/23,4,270, -   ,40,40,MvF Weds Session,Communities,60402,Premises Hire - Facilities,Active Lifestyles - Communities (ex Sports Development)
LIST,Cambridge City Council,GPC,17/07/23,4,270,2.6,12.99,15.59,Online Coaching platform,Communities,62005,"Advertising, Publicity And Marketing",Active Lifestyles - Projects
LIST,Cambridge City Council,GPC,17/07/23,7,277, -   ,18,18,Homes for Ukraine,Corporate,62500,Dbs Checks - Non-Staff,Strategic Director #2
LIST,Cambridge City Council,GPC,17/07/23,7,277, -   ,18,18,Homes for Ukraine,Corporate,62500,Dbs Checks - Non-Staff,Strategic Director #2
LIST,Cambridge City Council,GPC,17/07/23,7,277, -   ,18,18,Homes for Ukraine,Corporate,62500,Dbs Checks - Non-Staff,Strategic Director #2
LIST,Cambridge City Council,GPC,17/07/23,10,399, -   ,15,15,ESSO KETTERING SERVICES-KETTERING,Communities,60902,Transport Fuel,City Events
LIST,Cambridge City Council,GPC,17/07/23,7,334, -   ,1.2,1.2,Subsistence,Communities,64200,Subsistence,Folk Festival
LIST,Cambridge City Council,GPC,17/07/23,4,283, -   ,36.97,36.97,Equipment,Communities,61703,"Purchase - Equipment, Furniture And Materials",Environmental Health Operational Support
LIST,Cambridge City Council,GPC,17/07/23,6,297, -   ,165.33,165.33,Facebook ads,Communities,62005,"Advertising, Publicity And Marketing",Folk Festival
LIST,Cambridge City Council,GPC,17/07/23,7,334,0.67,3.32,3.99,Tippex,Communities,62002,Stationery,Folk Festival
LIST,Cambridge City Council,GPC,17/07/23,5,289, -   ,26.99,26.99,New Phone (DC),Communities,64077,Telephone And Mobile Phone Costs,DLUHC Homelessness Grants (RSI)
LIST,Cambridge City Council,GPC,17/07/23,6,293, -   ,98,98,Bus passes,Communities,60914,Public Transport For Staff And Members,Syrian Resettlement
LIST,Cambridge City Council,GPC,17/07/23,6,293, -   ,126,126,Bus passes,Communities,60914,Public Transport For Staff And Members,Syrian Resettlement
LIST,Cambridge City Council,GPC,17/07/23,5,287, -   ,25,25,Facebook advert payment for comms team,City Services,61703,"Purchase - Equipment, Furniture And Materials",Public Realm Enforcement
LIST,Cambridge City Council,GPC,17/07/23,4,276, -   ,124.59,124.59,"Community Engagement EIP Project, Pond",City Services,61703,"Purchase - Equipment, Furniture And Materials",S&OS Community Engagement
LIST,Cambridge City Council,GPC,17/07/23,4,267, -   ,99,99,8 Ekin Road - electric top up,Communities,60303,Electricity,Temporary Accommodation
LIST,Cambridge City Council,GPC,17/07/23,4,267, -   ,99,99,8 Ekin Road - gas top up,Communities,60305,Gas,Temporary Accommodation
LIST,Cambridge City Council,GPC,17/07/23,5,274,5.98,29.89,35.87,Capping Steel,City Services,61703,"Purchase - Equipment, Furniture And Materials",Building Maintenance Response - Direct
LIST,Cambridge City Council,GPC,17/07/23,6,297, -   ,34.67,34.67,Facebook ads,Communities,62005,"Advertising, Publicity And Marketing",Corn Exchange and Guildhalls
LIST,Cambridge City Council,GPC,18/07/23,5,292,2.91,14.57,17.48,Child safety cupboard locks and key fobs,City Services,61703,"Purchase - Equipment, Furniture And Materials",City Cambridge Cemeteries
LIST,Cambridge City Council,GPC,18/07/23,5,295, -   ,3.1,3.1,refreshments,Communities,64200,Subsistence,The Meadows Community Centre
LIST,Cambridge City Council,GPC,18/07/23,5,294, -   ,70.21,70.21,Signs and Tools,City Services,61703,"Purchase - Equipment, Furniture And Materials",Open Space Development
LIST,Cambridge City Council,GPC,18/07/23,5,274,3.66,18.32,21.98,Basket Waste,City Services,61703,"Purchase - Equipment, Furniture And Materials",Building Maintenance Response - Direct
LIST,Cambridge City Council,GPC,18/07/23,5,274,4.67,23.32,27.99,Basin,City Services,61703,"Purchase - Equipment, Furniture And Materials",Building Maintenance Response - Direct
LIST,Cambridge City Council,GPC,18/07/23,5,274,6.33,31.65,37.98,Basil Lever Taps,City Services,61703,"Purchase - Equipment, Furniture And Materials",Building Maintenance Response - Direct
LIST,Cambridge City Council,GPC,18/07/23,4,255, -   ,144.48,144.48,,Corporate,80009,Disbursement Control - Events,General Fund Balance Sheet
LIST,Cambridge City Council,GPC,18/07/23,4,LEDGER EV, -   ,-144.48,-144.48,,Corporate,80009,Disbursement Control - Events,General Fund Balance Sheet
LIST,Cambridge City Council,GPC,18/07/23,4,256, -   ,126.19,126.19,,Corporate,80009,Disbursement Control - Events,General Fund Balance Sheet
LIST,Cambridge City Council,GPC,18/07/23,4,LEDGER EV, -   ,-126.19,-126.19,,Corporate,80009,Disbursement Control - Events,General Fund Balance Sheet
LIST,Cambridge City Council,GPC,18/07/23,4,260, -   ,129.33,129.33,,Corporate,80009,Disbursement Control - Events,General Fund Balance Sheet
LIST,Cambridge City Council,GPC,18/07/23,4,LEDGER EV, -   ,-129.33,-129.33,,Corporate,80009,Disbursement Control - Events,General Fund Balance Sheet
LIST,Cambridge City Council,GPC,18/07/23,4,261, -   ,135.14,135.14,,Corporate,80009,Disbursement Control - Events,General Fund Balance Sheet
LIST,Cambridge City Council,GPC,18/07/23,4,LEDGER EV, -   ,-135.14,-135.14,,Corporate,80009,Disbursement Control - Events,General Fund Balance Sheet
LIST,Cambridge City Council,GPC,18/07/23,4,262, -   ,55.93,55.93,,Corporate,80009,Disbursement Control - Events,General Fund Balance Sheet
LIST,Cambridge City Council,GPC,18/07/23,4,LEDGER EV, -   ,-55.93,-55.93,,Corporate,80009,Disbursement Control - Events,General Fund Balance Sheet
LIST,Cambridge City Council,GPC,19/07/23,5,282,2.19,10.95,13.14,Toilet Tissue for public toilets,City Services,61300,Cleaning Materials,Cambridge Crematorium
LIST,Cambridge City Council,GPC,19/07/23,5,290, -   ,121.47,121.47,modelling clay and crafts for summer ev,Communities,62900,Events,Neighbourhood Community Development
LIST,Cambridge City Council,GPC,19/07/23,5,292,0.35,1.75,2.1,AKS Community Breakfast,Communities,64200,Subsistence,Community Resilience
LIST,Cambridge City Council,GPC,19/07/23,5,298, -   ,666,666,Flight Case,Communities,61703,"Purchase - Equipment, Furniture And Materials",Corn Exchange and Guildhalls
LIST,Cambridge City Council,GPC,19/07/23,7,334, -   ,23.18,23.18,Small Equipment,Communities,61703,"Purchase - Equipment, Furniture And Materials",Folk Festival
LIST,Cambridge City Council,GPC,19/07/23,6,297, -   ,108.41,108.41,Facebook ads,Communities,62005,"Advertising, Publicity And Marketing",Folk Festival
LIST,Cambridge City Council,GPC,19/07/23,4,275,67,335,402,Time Management Training for Cllr Healy,Chief Executive,64300,Conference Expenses,Members Support
LIST,Cambridge City Council,GPC,19/07/23,4,283,1.28,6.37,7.65,Recorded Delivery at PO for legal,Communities,61703,"Purchase - Equipment, Furniture And Materials",Environmental Health Operational Support
LIST,Cambridge City Council,GPC,19/07/23,4,281, -   ,526.8,526.8,"Purchase of chair, desk and laptop stan",Communities,61703,"Purchase - Equipment, Furniture And Materials",Housing Advice Service
LIST,Cambridge City Council,GPC,19/07/23,6,297, -   ,80.54,80.54,Facebook ads,Communities,62005,"Advertising, Publicity And Marketing",Folk Festival
LIST,Cambridge City Council,GPC,19/07/23,5,278, -   ,26.99,26.99,Shirella Bee mobile phone,Communities,63900,Miscellaneous Expenses,DLUHC Homelessness Grants (RSI)
LIST,Cambridge City Council,GPC,19/07/23,5,278, -   ,50,50,Shaun Hardwicke refurbished laptop,Communities,63900,Miscellaneous Expenses,DLUHC Homelessness Grants (RSI)
LIST,Cambridge City Council,GPC,19/07/23,5,294, -   ,37.79,37.79,Keybaord and Mouse,City Services,62002,Stationery,Open Space Development
LIST,Cambridge City Council,GPC,19/07/23,5,274,6.33,31.66,37.99,First Aid Kit,City Services,61703,"Purchase - Equipment, Furniture And Materials",Building Maintenance Response - Direct
LIST,Cambridge City Council,GPC,19/07/23,5,274,25.71,128.52,154.23,Makita Planer,City Services,61703,"Purchase - Equipment, Furniture And Materials",Building Maintenance Response - Direct
LIST,Cambridge City Council,GPC,19/07/23,6,297, -   ,11.05,11.05,Facebook ads,Communities,62005,"Advertising, Publicity And Marketing",Corn Exchange and Guildhalls
LIST,Cambridge City Council,GPC,20/07/23,5,288,7.5,37.48,44.98,pruning saw and onion hoe,City Services,61703,"Purchase - Equipment, Furniture And Materials",Bereavement Services - Burials & Grounds
LIST,Cambridge City Council,GPC,20/07/23,4,272,12.5,62.52,75.02,Provisions for holiday lunch/Cleaning m,Communities,62900,Events,Neighbourhood Community Development
LIST,Cambridge City Council,GPC,20/07/23,4,272, -   ,21.98,21.98,Provisions for holiday lunch/Cleaning m,Communities,62900,Events,Neighbourhood Community Development
LIST,Cambridge City Council,GPC,20/07/23,4,272,1.6,7.98,9.58,Provisions for holiday lunch/Cleaning m,Communities,61300,Cleaning Materials,Clay Farm Community Centre
LIST,Cambridge City Council,GPC,20/07/23,4,272,0.5,2.49,2.99,Dustpan & Brush,Communities,61703,"Purchase - Equipment, Furniture And Materials",Clay Farm Community Centre
LIST,Cambridge City Council,GPC,20/07/23,4,272,1.61,8.04,9.65,Parcel Tape,Communities,62002,Stationery,Clay Farm Community Centre
LIST,Cambridge City Council,GPC,20/07/23,4,272, -   ,1.59,1.59,Parcel Tape,Communities,62002,Stationery,Clay Farm Community Centre
LIST,Cambridge City Council,GPC,20/07/23,4,272,4.65,23.22,27.87,Paper for events,Communities,62900,Events,Clay Farm Community Centre
LIST,Cambridge City Council,GPC,20/07/23,4,272,2.9,14.49,17.39,Provisions for holiday lunch/Cleaning m,Communities,62900,Events,Clay Farm Community Centre
LIST,Cambridge City Council,GPC,20/07/23,4,272, -   ,90.43,90.43,Provisions for holiday lunch/Cleaning m,Communities,62900,Events,Clay Farm Community Centre
LIST,Cambridge City Council,GPC,20/07/23,4,270, -   ,126.37,126.37,Fit out supplies for Nightingale Pavili,Communities,61703,"Purchase - Equipment, Furniture And Materials",Sport & Recreation Administration
LIST,Cambridge City Council,GPC,20/07/23,4,270,3.8,19,22.8,Online booking platform,Communities,62005,"Advertising, Publicity And Marketing",Active Lifestyles - Projects
LIST,Cambridge City Council,GPC,20/07/23,7,277, -   ,18,18,Homes for Ukraine,Corporate,62500,Dbs Checks - Non-Staff,Strategic Director #2
LIST,Cambridge City Council,GPC,20/07/23,6,297, -   ,148.72,148.72,Facebook ads,Communities,62005,"Advertising, Publicity And Marketing",Folk Festival
LIST,Cambridge City Council,GPC,20/07/23,6,293, -   ,226.97,226.97,Shopping for refugee familes,Communities,63900,Miscellaneous Expenses,Syrian Resettlement
LIST,Cambridge City Council,GPC,20/07/23,6,293, -   ,-6.55,-6.55,Refund of food,Communities,63900,Miscellaneous Expenses,Syrian Resettlement
LIST,Cambridge City Council,GPC,20/07/23,4,276, -   ,8.99,8.99,Amazon Prime for speedier delivery's of,City Services,61703,"Purchase - Equipment, Furniture And Materials",Grounds Maintenance & Street Cleaning
LIST,Cambridge City Council,GPC,20/07/23,5,286, -   ,24,24,Leaflets for Community Engagement,City Services,61703,"Purchase - Equipment, Furniture And Materials",Public Realm Enforcement
LIST,Cambridge City Council,GPC,20/07/23,4,271, -   ,32.94,32.94,pop rivet gun,Place,61703,"Purchase - Equipment, Furniture And Materials",Facilities Management
LIST,Cambridge City Council,GPC,21/07/23,5,302,4.88,24.37,29.25,Candles,City Services,61703,"Purchase - Equipment, Furniture And Materials",Cambridge Crematorium
LIST,Cambridge City Council,GPC,21/07/23,6,333, -   ,3.65,3.65,refreshments,Communities,64200,Subsistence,The Meadows Community Centre
LIST,Cambridge City Council,GPC,21/07/23,5,312, -   ,15,15,Spare set of bin store keys for Med Cen,Communities,60200,Facilities Management,Clay Farm Community Centre
LIST,Cambridge City Council,GPC,21/07/23,4,272,2.96,14.78,17.74,Card for Events,Communities,62900,Events,Clay Farm Community Centre
LIST,Cambridge City Council,GPC,21/07/23,7,357, -   ,18,18,Homes for Ukraine,Corporate,62500,Dbs Checks - Non-Staff,Strategic Director #2
LIST,Cambridge City Council,GPC,21/07/23,7,334, -   ,23.29,23.29,Stationary,Communities,62002,Stationery,Folk Festival
LIST,Cambridge City Council,GPC,21/07/23,6,323, -   ,60,60,Fixed Penalty notice issues to a operat,City Services,60907,Other Vehicle Costs,Grounds Maintenance & Street Cleaning
LIST,Cambridge City Council,GPC,21/07/23,5,294, -   ,104.98,104.98,Site Radios,City Services,61704,Specialist Equipment For Service Provision,Open Space Development
LIST,Cambridge City Council,GPC,21/07/23,6,316, -   ,140,140,New Fiat Fast Charging Cable - Ebay 05-,City Services,60801,"Acquisition - Vehicles, Plant And Equipment",Open Space Asset Maintenance
LIST,Cambridge City Council,GPC,21/07/23,6,313,2.62,13.11,15.73,Planer Dust Bag,City Services,61703,"Purchase - Equipment, Furniture And Materials",Building Maintenance Response - Direct
LIST,Cambridge City Council,GPC,21/07/23,6,313,2.16,10.78,12.94,Planer Blades,City Services,61703,"Purchase - Equipment, Furniture And Materials",Building Maintenance Response - Direct
LIST,Cambridge City Council,GPC,21/07/23,6,309, -   ,16.05,16.05,Taxi to Addenbrookes hospital-Nick Prit,Communities,63900,Miscellaneous Expenses,Housing Charity Grant Payments
LIST,Cambridge City Council,GPC,21/07/23,6,309, -   ,12.85,12.85,Taxi for Nick Pritchard to Addenbrooke',Communities,63900,Miscellaneous Expenses,Housing Charity Grant Payments
LIST,Cambridge City Council,GPC,22/07/23,7,334, -   ,15.03,15.03,Runner Fuel,Communities,60902,Transport Fuel,Folk Festival
LIST,Cambridge City Council,GPC,22/07/23,7,334, -   ,12.3,12.3,Cleaning Equipment,Communities,61703,"Purchase - Equipment, Furniture And Materials",Folk Festival
LIST,Cambridge City Council,GPC,22/07/23,7,334,26.63,133.17,159.8,Cables Ties,Communities,61703,"Purchase - Equipment, Furniture And Materials",Folk Festival
LIST,Cambridge City Council,GPC,22/07/23,7,334, -   ,161.2,161.2,Signs,Communities,61703,"Purchase - Equipment, Furniture And Materials",Folk Festival
LIST,Cambridge City Council,GPC,22/07/23,7,334,7.99,39.93,47.92,Line marker,Communities,61703,"Purchase - Equipment, Furniture And Materials",Folk Festival
LIST,Cambridge City Council,GPC,22/07/23,7,334, -   ,35.47,35.47,Stationary,Communities,62002,Stationery,Folk Festival
LIST,Cambridge City Council,GPC,23/07/23,7,334,7.43,37.16,44.59,Signs,Communities,61703,"Purchase - Equipment, Furniture And Materials",Folk Festival
LIST,Cambridge City Council,GPC,24/07/23,12,556, -   ,-1.46,-1.46,REFUND,Communities,62900,Events,Neighbourhood Community Development
LIST,Cambridge City Council,GPC,24/07/23,9,455, -   ,179.53,179.53,summer holidays food order. Reciept mis,Communities,62900,Events,Neighbourhood Community Development
LIST,Cambridge City Council,GPC,24/07/23,6,311,114.2,571,685.2,First aid training,City Services,60115,Staff Development And Training,Fleet Management - Operational
LIST,Cambridge City Council,GPC,24/07/23,6,303,11.46,57.32,68.78,Recycling Bins - Nightingale Pavilion,Communities,61703,"Purchase - Equipment, Furniture And Materials",Sport & Recreation Administration
LIST,Cambridge City Council,GPC,24/07/23,6,303, -   ,40,40,M v F Weds Session,Communities,60402,Premises Hire - Facilities,Active Lifestyles - Communities (ex Sports Development)
LIST,Cambridge City Council,GPC,24/07/23,7,357, -   ,18,18,Homes for Ukraine,Corporate,62500,Dbs Checks - Non-Staff,Strategic Director #2
LIST,Cambridge City Council,GPC,24/07/23,7,357, -   ,18,18,Homes for Ukraine,Corporate,62500,Dbs Checks - Non-Staff,Strategic Director #2
LIST,Cambridge City Council,GPC,24/07/23,7,357, -   ,18,18,Homes for Ukraine,Corporate,62500,Dbs Checks - Non-Staff,Strategic Director #2
LIST,Cambridge City Council,GPC,24/07/23,7,357, -   ,18,18,Homes for Ukraine,Corporate,62500,Dbs Checks - Non-Staff,Strategic Director #2
LIST,Cambridge City Council,GPC,24/07/23,7,334, -   ,43.38,43.38,Barrier Tape,Communities,61703,"Purchase - Equipment, Furniture And Materials",Folk Festival
LIST,Cambridge City Council,GPC,24/07/23,7,334,20.73,103.64,124.37,Jotform Monthly Subscription,Communities,64800,Membership And Subscriptions,Folk Festival
LIST,Cambridge City Council,GPC,24/07/23,6,317, -   ,39.98,39.98,Folk Festival - CRR photo frames,Communities,62005,"Advertising, Publicity And Marketing",Folk Festival
LIST,Cambridge City Council,GPC,24/07/23,6,317, -   ,76.44,76.44,Facebook adverts,Communities,62005,"Advertising, Publicity And Marketing",Folk Festival
LIST,Cambridge City Council,GPC,24/07/23,6,317, -   ,323.56,323.56,Facebook adverts,Communities,62005,"Advertising, Publicity And Marketing",Folk Festival
LIST,Cambridge City Council,GPC,24/07/23,6,317, -   ,125.81,125.81,Facebook ads,Communities,62005,"Advertising, Publicity And Marketing",Folk Festival
LIST,Cambridge City Council,GPC,24/07/23,6,317, -   ,271.93,271.93,Facebook ads,Communities,62005,"Advertising, Publicity And Marketing",Folk Festival
LIST,Cambridge City Council,GPC,24/07/23,6,317, -   ,350,350,Folk Festival google ads,Communities,62005,"Advertising, Publicity And Marketing",Folk Festival
LIST,Cambridge City Council,GPC,24/07/23,6,322,-4.25,-21.22,-25.47,Equipment,Communities,61703,"Purchase - Equipment, Furniture And Materials",Environmental Health Operational Support
LIST,Cambridge City Council,GPC,24/07/23,6,310, -   ,50,50,16 Cockerell Road - electric top up,Communities,60303,Electricity,Temporary Accommodation
LIST,Cambridge City Council,GPC,24/07/23,6,310, -   ,50,50,78 Hanover Court - electric top up,Communities,60303,Electricity,Temporary Accommodation
LIST,Cambridge City Council,GPC,24/07/23,6,310, -   ,50,50,78a Chalmers Road - electric top up,Communities,60303,Electricity,Temporary Accommodation
LIST,Cambridge City Council,GPC,24/07/23,6,310, -   ,50,50,23 Hanover Court - electric top up,Communities,60303,Electricity,Temporary Accommodation
LIST,Cambridge City Council,GPC,24/07/23,6,310, -   ,50,50,51 Hanover Court - electric top up,Communities,60303,Electricity,Temporary Accommodation
LIST,Cambridge City Council,GPC,24/07/23,6,310, -   ,50,50,8 Davy Road - electric top up,Communities,60303,Electricity,Temporary Accommodation
LIST,Cambridge City Council,GPC,24/07/23,6,310, -   ,50,50,12 Hanover Court - electric top up,Communities,60303,Electricity,Temporary Accommodation
LIST,Cambridge City Council,GPC,24/07/23,6,310, -   ,50,50,130 Kingsway = electric top up,Communities,60303,Electricity,Temporary Accommodation
LIST,Cambridge City Council,GPC,24/07/23,6,310, -   ,50,50,27 Princess Court - electric top up,Communities,60303,Electricity,Temporary Accommodation
LIST,Cambridge City Council,GPC,24/07/23,6,310, -   ,50,50,652 Newmarket Road - electric top up,Communities,60303,Electricity,Temporary Accommodation
LIST,Cambridge City Council,GPC,24/07/23,6,313,13.17,65.83,79,Ceiling Boards,City Services,61703,"Purchase - Equipment, Furniture And Materials",Building Maintenance Response - Direct
LIST,Cambridge City Council,GPC,24/07/23,6,313,4.99,24.95,29.94,Solar Light,City Services,61703,"Purchase - Equipment, Furniture And Materials",Building Maintenance Response - Direct
LIST,Cambridge City Council,GPC,24/07/23,6,329, -   ,34.48,34.48,tools,Place,61703,"Purchase - Equipment, Furniture And Materials",Facilities Management
LIST,Cambridge City Council,GPC,25/07/23,6,337, -   ,24,24,Land registry search for PHF,City Services,63900,Miscellaneous Expenses,Cambridge Crematorium
LIST,Cambridge City Council,GPC,25/07/23,6,321,23.66,118.29,141.95,activities materials - summer programme,Communities,62900,Events,Neighbourhood Community Development
LIST,Cambridge City Council,GPC,25/07/23,6,303,66.5,332.5,399,Dishwasher - Nightingale Pavilion Kitch,Communities,61703,"Purchase - Equipment, Furniture And Materials",Sport & Recreation Administration
LIST,Cambridge City Council,GPC,25/07/23,6,303,7,34.99,41.99,Shelving Units - Nightingale Pavilion,Communities,61703,"Purchase - Equipment, Furniture And Materials",Sport & Recreation Administration
LIST,Cambridge City Council,GPC,25/07/23,6,303, -   ,15.25,15.25,Switch Covers - Nightingale Pavilion,Communities,61703,"Purchase - Equipment, Furniture And Materials",Sport & Recreation Administration
LIST,Cambridge City Council,GPC,25/07/23,7,334, -   ,20,20,Carbon Monoxide Alarm,Communities,61703,"Purchase - Equipment, Furniture And Materials",Folk Festival
LIST,Cambridge City Council,GPC,25/07/23,7,334,9.87,49.33,59.2,Signs,Communities,61703,"Purchase - Equipment, Furniture And Materials",Folk Festival
LIST,Cambridge City Council,GPC,25/07/23,6,317, -   ,65.83,65.83,Facebook Ads,Communities,62005,"Advertising, Publicity And Marketing",Folk Festival
LIST,Cambridge City Council,GPC,25/07/23,6,317, -   ,134.17,134.17,Facebook Ads,Communities,62005,"Advertising, Publicity And Marketing",Folk Festival
LIST,Cambridge City Council,GPC,25/07/23,6,322,5,25,30,Purple guide book,Communities,64800,Membership And Subscriptions,Environmental Health Operational Support
LIST,Cambridge City Council,GPC,25/07/23,6,318, -   ,15.85,15.85,TAXI EP from hospital,Communities,60913,Public Transport For Clients,DLUHC Homelessness Grants (RSI)
LIST,Cambridge City Council,GPC,25/07/23,6,323, -   ,98.2,98.2,"Samsung Plug in mobile phone chargers,",City Services,61703,"Purchase - Equipment, Furniture And Materials",Grounds Maintenance & Street Cleaning
LIST,Cambridge City Council,GPC,25/07/23,7,364, -   ,25.45,25.45,Coffee Machine for Lichfield Road,Communities,63900,Miscellaneous Expenses,Independent Living Services
LIST,Cambridge City Council,GPC,25/07/23,6,313,8.26,41.31,49.57,Mira Solenoid,City Services,61703,"Purchase - Equipment, Furniture And Materials",Building Maintenance Response - Direct
LIST,Cambridge City Council,GPC,26/07/23,5,302,12.44,62.19,74.63,Printer Toner,City Services,62002,Stationery,Cambridge Crematorium
LIST,Cambridge City Council,GPC,26/07/23,6,333, -   ,12.5,12.5,refreshments,Communities,64200,Subsistence,The Meadows Community Centre
LIST,Cambridge City Council,GPC,26/07/23,6,303,7.62,38.08,45.7,Shelving Units - Nightingale Pavilion,Communities,61703,"Purchase - Equipment, Furniture And Materials",Sport & Recreation Administration
LIST,Cambridge City Council,GPC,26/07/23,7,357, -   ,18,18,Homes for Ukraine,Corporate,62500,Dbs Checks - Non-Staff,Strategic Director #2
LIST,Cambridge City Council,GPC,26/07/23,7,334,5.81,29.06,34.87,Runner Fuel,Communities,60902,Transport Fuel,Folk Festival
LIST,Cambridge City Council,GPC,26/07/23,7,334,7.66,38.3,45.96,Batteries,Communities,61703,"Purchase - Equipment, Furniture And Materials",Folk Festival
LIST,Cambridge City Council,GPC,26/07/23,6,317, -   ,41.22,41.22,Stationary for folk festival,Communities,62002,Stationery,Folk Festival
LIST,Cambridge City Council,GPC,26/07/23,6,317, -   ,28.41,28.41,Facebook ads,Communities,62005,"Advertising, Publicity And Marketing",Folk Festival
LIST,Cambridge City Council,GPC,26/07/23,6,317, -   ,171.59,171.59,Facebook ads,Communities,62005,"Advertising, Publicity And Marketing",Folk Festival
LIST,Cambridge City Council,GPC,26/07/23,6,322,-9.33,-46.65,-55.98,Equipment,Communities,61703,"Purchase - Equipment, Furniture And Materials",Environmental Health Operational Support
LIST,Cambridge City Council,GPC,26/07/23,6,317, -   ,20.95,20.95,Folk Festival Marketing microphone,Communities,62005,"Advertising, Publicity And Marketing",Folk Festival
LIST,Cambridge City Council,GPC,26/07/23,7,334,3.17,15.83,19,A4 Paper,Communities,62002,Stationery,Folk Festival
LIST,Cambridge City Council,GPC,26/07/23,7,334, -   ,8.97,8.97,Stationary,Communities,62002,Stationery,Folk Festival
LIST,Cambridge City Council,GPC,26/07/23,7,336, -   ,12.38,12.38,Duck tape,City Services,61703,"Purchase - Equipment, Furniture And Materials",Grounds Maintenance & Street Cleaning
LIST,Cambridge City Council,GPC,26/07/23,6,323,35,175,210,Community Engagement EIP project,City Services,61703,"Purchase - Equipment, Furniture And Materials",S&OS Community Engagement
